{"text_format":"1","workbook":"xlsx","n_sheets":6,"sheets":["البيانات","الانتدابات","خارج دوام ","دورات تدريبية","عيد الفطر","عيد الاضحى"],"not_rendered":{"charts":0,"images":5,"macros":1,"external_links":0,"defined_names":10,"comments":0,"pivot_tables":0},"unopened":[],"bounds":{"document_bytes":16777216,"sheet_cells":100000,"rows_first":2000,"rows_last":500,"rows_between":2000,"halvings":0,"cell_chars":16384,"cell_head_chars":4096},"cells_cut":0,"cells_raw":0,"read":"whole","date_system":"1900"}

{"sheet":"البيانات","index":0,"n_rows":152,"n_cols":6,"rows_kept":152,"cut":false,"hidden":false,"merged":[]}
[]
[null,"الرقم الوظيفي ","اسم الموظف ","المرتبة ","الحساب البنكي ","اسم البنك "]
[null,81444,"شيخ نوبى   شيخ",52,"SA4410000003300000678109","NCBK"]
[null,200641,"جيارول شيخ   نهار",52,"SA6210000003300000680307","NCBK"]
[null,200633,"رفيق ال سك   اسلام",52,"SA6410000003300000692008","NCBK"]
[null,200632,"داكر معز   الدين",52,"SA5010000003300000706810","NCBK"]
[null,200645,"الله رخا سك   ميرو",52,"SA4810000003300000675709","NCBK"]
[null,200639,"ادريس شيخ   قربان",52,"SA1710000003300000674909","NCBK"]
[null,200637,"بهارات سك   ثمن",52,"SA6210000003300000686806","NCBK"]
[null,200646,"منير مياه ماهتاب  الدين",52,"SA7410000003300000683001","NCBK"]
[null,200643,"اشرف ال اشرف   ال حوسان",52,"SA6610000003366670000107","NCBK"]
[null,200635,"مقبور مقبور   ابو الحسين",52,"SA4110000003300000689609","NCBK"]
[null,200772,"مد رجمن   فقير",52,"SA2110000003300000727605","NCBK"]
[null,200634,"محمد محمد   مياه",52,"SA6210000003300000690201","NCBK"]
[null,200631,"شريف شريف حبيب  الرحمن",52,"SA2710000003300000707806","NCBK"]
[null,200638,"شاه جلال حيدر شيكدار شيكدار",52,"SA1010000003366578000107","NCBK"]
[null,200636,"جمال الدين   عبدالجليل",52,"SA3510000003300000686904","NCBK"]
[null,200677,"سيف عبد   بارك",52,"SA8810000003300000684204","NCBK"]
[null,200694,"شلريف عبد   عبدالقدوس",52,"SA3810000003300000407102","NCBK"]
[null,200734,"شاهين عزيز   عزيز",52,"SA8510000003300000689108","NCBK"]
[null,200678,"هارون باطن   باطن",52,"SA1810000003300000684106","NCBK"]
[null,200880,"محمد رقيب   غازي",52,"SA7710000003300000234710","NCBK"]
[null,200647,"محمد جنيد   جازي",52,"SA9710000003300000707904","NCBK"]
[null,200719,"محسن فيض   فيض",52,"SA1410000003300000689707","NCBK"]
[null,200779,"مسعود رانا   اسلام",52,"SA7810000003300000832503","NCBK"]
[null,200771,"اميت اميت مد  سارجول",52,"SA1510000003300000724900","NCBK"]
[null,200675,"سيف الاسلام معيض   الدين",52,"SA9610000003300000676106","NCBK"]
[null,200679,"روبل روبل   خليل",52,"SA7410000003300000689500","NCBK"]
[null,200770,"روبل علد   المنان",52,"SA4710000003300000725003","NCBK"]
[null,200680,"ناين مياه بنكي  مياه",52,"SA0610000003300000710706","NCBK"]
[null,200780,"رقيب رقيب   موندل",52,"SA2110000003300000837603","NCBK"]
[null,200642,"راسل راسل   مياه",52,"SA0410000003300000689402","NCBK"]
[null,200835,"سراج الاسلام اسلام  مياه",52,"SA5710000003300000802908","NCBK"]
[null,200762,"عبد ال عبدال   مد فضل",52,"SA8010000003300000688907","NCBK"]
[null,200651,"الامين عبد   الرشيد",52,"SA6710000003300000683709","NCBK"]
[null,200744,"احمد شهريار   سور",52,"SA5610000003300000677505","NCBK"]
[null,200756,"فضل الحق محمد  رسم",52,"SA2710000003300000688406","NCBK"]
[null,200758,"اسماعيل حسين   ابو صديق",52,"SA6110000003300000684302","NCBK"]
[null,200761,"مد اسلام   مد",52,"SA8610000003300000691709","NCBK"]
[null,200791,"ليتون ليتون   مياه",52,"SA6910000003300000724704","NCBK"]
[null,200812,"روني روني شفيق  الاسلام",52,"SA2610000003300000763502","NCBK"]
[null,200790,"فقال فقال   روميغ",52,"SA9210000003300000733602","NCBK"]
[null,200792,"عبدالله مامون   عمر",52,"SA4810000003300000727507","NCBK"]
[null,200681,"محمد محمد بويان  برانتا",52,"SA9810000003300000684509","NCBK"]
[null,200746,"رامش دجلة   مالية",52,"SA3810000003300000675404","NCBK"]
[null,200794,"ابراهيم ابراهيم   خالق",52,"SA6810000003300000676901","NCBK"]
[null,200795,"منير منير   ستار",52,"SA4110000003300000683110","NCBK"]
[null,200811,"نور ال نور شاه جهان",52,"SA1810000003300000755110","NCBK"]
[null,200841,"شفيق عبدالقاسم تعلق  دار",52,"SA7110000003300000807409","NCBK"]
[null,200749,"باد شاه   مبارك",52,"SA2110000003300000675807","NCBK"]
[null,200738,"ضمير صمير   مياه",52,"SA8710000003300000335701","NCBK"]
[null,200664,"منار ال منار ال مد  ابو",52,"SA0710000003300000674604","NCBK"]
[null,200674,"روبل مياه مسلم  شيكدار",52,"SA7710000003300000678000","NCBK"]
[null,200737,"محمد محمد عبدالله  القادر",52,"SA1310000003300000706603","NCBK"]
[null,200716,"راسل مياه روبي  مياه",52,"SA3710000003300000692106","NCBK"]
[null,200745,"روبل روبل   ران",52,"SA9110000003300000675905","NCBK"]
[null,200742,"محمد اصغر   علي",52,"SA7010000003300000688602","NCBK"]
[null,200759,"روبل روبل مان  مياة",52,"SA0510000003300000685407","NCBK"]
[null,200748,"ابو ابو محمد  علي",52,"SA3610000003300000686207","NCBK"]
[null,200764,"محمد الياس   مياة",52,"SA2310000003300000706908","NCBK"]
[null,200753,"برويز خليل   مياة",52,"SA1410000003300000683208","NCBK"]
[null,200718,"ريبون ريبون   جوي",52,"SA4310000003300000678806","NCBK"]
[null,200781,"بالاراجو ذمييش   بيدين",52,"SA8010000003300000834310","NCBK"]
[null,200683,"مجبر سخ   ديندار",52,"SA3210000003300000691905","NCBK"]
[null,200684,"حسن سخ   مهم",52,"SA7210000003300000690506","NCBK"]
[null,200751,"صغير سخ   مصير",52,"SA4510000003300000680710","NCBK"]
[null,200796,"رشدول شيخ اول  عباس",52,"SA4810000003300000837505","NCBK"]
[null,200669,"غوتام مندل   جيناته",52,"SA6510000003300000675306","NCBK"]
[null,200741,"سجرل سك   عبدالكريم",52,"SA1510000003300000676400","NCBK"]
[null,200752,"ميلون بغدي   ثوبان",52,"SA0310000003300000677004","NCBK"]
[null,200743,"عمران سك   دبر",52,"SA9710000003300000678610","NCBK"]
[null,200740,"منجي يغدي   للين",52,"SA7210000003300000108603","NCBK"]
[null,200715,"سميل سك جيد  علي",52,"SA4610000003300000677200","NCBK"]
[null,200704,"نيمتلة سخ   مججل",52,"SA1510000003300000695606","NCBK"]
[null,200653,"محمد شيب   الام",52,"SA3410000003300000674506","NCBK"]
[null,200735,"راكش سك   بابو سيخ",52,"SA1010000003300000688809","NCBK"]
[null,200720,"بحنو براقش   غضل",52,"SA9310000003300000681107","NCBK"]
[null,200721,"سنجرفيل فينجدشلم   فينجدشلم",52,"SA9010000003300000679900","NCBK"]
[null,200707,"سكومر هلدر   هربدة",52,"SA5210000003300000680002","NCBK"]
[null,200706,"سرجل اسلام بيتولا  شيخ",52,"SA7710000003300000674702","NCBK"]
[null,200783,"جور هري   شيبي",52,"SA3310000003300000720502","NCBK"]
[null,200755,"ارباص علي   عبدالبصير",52,"SA2210000003300000675110","NCBK"]
[null,200710,"ستار علي   سك",52,"SA9510000003300000676803","NCBK"]
[null,200760,"راحل سيخ   ريجاول",52,"SA7310000003300000677102","NCBK"]
[null,200729,"نوسيد سيخ   عبدالقدوس",52,"SA5210000003300000676607","NCBK"]
[null,200757,"سن بغدي   نمي",52,"SA6910000003300000676204","NCBK"]
[null,200730,"اجهر سك   مجبر",52,"SA2510000003300000676705","NCBK"]
[null,200728,"رفكل سيخ   عبدالمنان",52,"SA2310000003300000681009","NCBK"]
[null,200813,"فسدل سيخ  هارج علي",52,"SA4110000003300000764008","NCBK"]
[null,200736,"بلة بغدي   بمال",52,"SA4910000003300000691502","NCBK"]
[null,200701,"بلال مياه   القش",52,"SA2110000003300000679105","NCBK"]
[null,200663,"جيرل فريد   فريد",52,"SA9710000003300000682005","NCBK"]
[null,200708,"لاكسمان بل   رمية",52,"SA2910000003300000690310","NCBK"]
[null,200670,"سرج سك   نجرل",52,"SA0410000003300000679508","NCBK"]
[null,200650,"جنجذر يلي شن   جنجرم",52,"SA4710000003300000679704","NCBK"]
[null,200668,"الرجاء ريدي   اتيلا",52,"SA4810000003300000679007","NCBK"]
[null,200686,"ملشم سنكرته   وجم",52,"SA2610000003300000676008","NCBK"]
[null,200700,"سطينر ينة يدكنطي  لمبيح",52,"SA8810000003300000680906","NCBK"]
[null,200696,"منرل ملة   جعفر",52,"SA0210000003300000677701","NCBK"]
[null,200676,"جنش جنغرام   غدور",52,"SA7610000003300000681510","NCBK"]
[null,200688,"فينكطي بيلي   لمباعة",52,"SA2510000003300000680100","NCBK"]
[null,200724,"سطحية ناريان   كرما",52,"SA8910000003300000680209","NCBK"]
[null,200660,"ندبي لنغم   ذمية",52,"SA7910000003300000676509","NCBK"]
[null,200655,"الرخا علي   ارد",52,"SA2610000003300000682604","NCBK"]
[null,200699,"سجمان سك   منور",52,"SA7610000003300000691404","NCBK"]
[null,200717,"دفنة جدلة   نادبي",52,"SA1710000003300000688101","NCBK"]
[null,200690,"الازمان خا   سليم",52,"SA0610000003300000691306","NCBK"]
[null,200725,"مجبر مندل   تنطل",52,"SA6410000003300000679301","NCBK"]
[null,200659,"نورول سيخ   شجمل",52,"SA3110000003300000679410","NCBK"]
[null,200691,"صغر سيخ   جون",52,"SA4310000003300000688700","NCBK"]
[null,200649,"محمد سهجهان  نعيم الدين",52,"SA4410000003300000707403","NCBK"]
[null,200733,"سرمن سك   منصور",52,"SA9410000003300000693505","NCBK"]
[null,200784,"سجل مندل   ابو الكلام",52,"SA8810000003300000836106","NCBK"]
[null,200671,"منج كومار   دس",52,"SA4510000003300000690604","NCBK"]
[null,200702,"دبو برمنك   نيتي",52,"SA9310000003300000691001","NCBK"]
[null,200673,"كهمرل سخ   لدو",52,"SA1610000003300000678904","NCBK"]
[null,200785,"فيروز شيخ   جلسيد",52,"SA7310000003300000835600","NCBK"]
[null,200689,"سومن مندل   بسوناته",52,"SA2010000003300000679802","NCBK"]
[null,200825,"انرل سك   كتاب",52,"SA1110000003300000785500","NCBK"]
[null,200786,"جان نبي   شيخ",52,"SA3710000003365730000110","NCBK"]
[null,200726,"متون سيخ عبدل   غني",52,"SA5710000003300000683404","NCBK"]
[null,200773,"اجل شودهري   سك سنتو",52,"SA5810000003300000731207","NCBK"]
[null,200698,"بسوجيت مندل   نيتي",52,"SA0310000003300000683600","NCBK"]
[null,200665,"سنتان دس   رمبدة",52,"SA6610000003300000681205","NCBK"]
[null,200774,"جكرية سخ   حفج",52,"SA8810000003300000732704","NCBK"]
[null,200787,"ترون كومار   دس",52,"SA9210000003300000833706","NCBK"]
[null,200775,"نبير ملك   ستار",52,"SA7410000003300000731501","NCBK"]
[null,200666,"سفل مندل   اناندا",52,"SA5410000003365338000106","NCBK"]
[null,200793,"صفى الدي كامارو   حامد",52,"SA6110000003300000707000","NCBK"]
[null,200687,"سرجمل سخ   سراج",52,"SA3010000003300000683502","NCBK"]
[null,200722,"مهدل سك محاسن  محاسن",52,"SA1310000003300000677309","NCBK"]
[null,200658,"كفاجول سخ قادر   بوكش",52,"SA3910000003300000681303","NCBK"]
[null,200672,"منرل سخ نور  محمد",52,"SA2910000003300000677603","NCBK"]
[null,200789,"كمال شيخ   تكبير",52,"SA6510000003300000833804","NCBK"]
[null,200712,"اشم رجبنشي   اكرر",52,"SA5710000003300000359909","NCBK"]
[null,200731,"دينيش محتو   راما",52,"SA4510000003300000684008","NCBK"]
[null,200703,"كشرم مالكي   سيلو",52,"SA3510000003300000680405","NCBK"]
[null,200714,"شيك سيد   احمد",52,"SA0810000003300000680503","NCBK"]
[null,200709,"ابو حسين   شيخ",52,"SA1110000003300000698006","NCBK"]
[null,200711,"برشرمنيك غغلثو   نندينيك",52,"SA1710000003300000684803","NCBK"]
[null,200713,"برسنجيت سنترا   ديليب",52,"SA1810000003300000690702","NCBK"]
[null,200662,"خادر اسف   حنيف",52,"SA1210000003300000681401","NCBK"]
[null,200695,"نرسية جرجي   جرجي",52,"SA7710000003300000693908","NCBK"]
[null,200661,"رجكمرية بولي   قمرية",52,"SA9110000003300000679203","NCBK"]
[null,200692,"سوامي غرم   بشمال",52,"SA4210000003300000676302","NCBK"]
[null,200739,"عمر اشرف محمد  اشرف",52,"SA2210000003300000691600","NCBK"]
[null,200776,"علي اصغر يميد  رسول",52,"SA3410000003300000732900","NCBK"]
[null,200837,"اكبر علي كرامت  علي",52,"SA8410000003300000799803","NCBK"]
[null,200648,"مدثر علي محمد  اسلم",52,"SA6310000003300000696003","NCBK"]
[null,200763,"صدورو خان غلام  رسول ملك",52,"SA1310000003300000683905","NCBK"]
[null,200765,"امير حمزه محمد  طفيل",52,"SA5910000003300000691807","NCBK"]
[null,200778,"نديم عاصم  محمد صديقي",52,"SA6610000003300000733003","NCBK"]

{"sheet":"الانتدابات","index":1,"n_rows":600,"n_cols":12,"rows_kept":600,"cut":false,"hidden":false,"merged":[[0,9,0,10]]}
[null,null,null,{"$f":"COUNT(B3:B599)","v":3},null,null,null,null,null,"الإجمالي",null,{"$f":"SUM(L600)","v":8364}]
[null,"مسلسل","اسم الموظف ","الحساب البنكي ","اسم البنك ","الاستحقاق1","الاستحقاق2","الاستحقاق3","الاستحقاق4","الاستحقاق5","الاستحقاق6","الصافي "]
[null,{"$f":"IF(C3>0.005,1,\"\")","v":1},"انور ثامر عواد  الشمري","SA82550000000G7865100171","BSFR",1244,null,null,null,null,null,{"$f":"SUM(F3:K3)","v":1244}]
[null,{"$f":"IF(C4>0.005,B3+1,\"\")","v":2},"مهوس ظاهر شعف  الشمرى","SA3920000006120286659940","RIBL",2300,null,null,null,null,null,{"$f":"SUM(F4:K4)","v":2300}]
[null,{"$f":"IF(C5>0.005,B4+1,\"\")","v":3},"خالد محمد عبدالله  الخالد","SA7580000455608010074409","RJHI",1000,1270,2550,null,null,null,4820]
[null,"",null,null,null,null,null,null,null,null,null,0]
[null,"",null,null,null,null,null,null,null,null,null,0]
[null,"",null,null,null,null,null,null,null,null,null,0]
[null,"",null,null,null,null,null,null,null,null,null,0]
[null,"",null,null,null,null,null,null,null,null,null,0]
[null,"",null,null,null,null,null,null,null,null,null,0]
[null,"",null,null,null,null,null,null,null,null,null,0]
[null,"",null,null,null,null,null,null,null,null,null,0]
[null,"",null,null,null,null,null,null,null,null,null,0]
[null,"",null,null,null,null,null,null,null,null,null,0]
[null,"",null,null,null,null,null,null,null,null,null,0]
[null,"",null,null,null,null,null,null,null,null,null,0]
[null,"",null,null,null,null,null,null,null,null,null,0]
[null,"",null,null,null,null,null,null,null,null,null,0]
[null,"",null,null,null,null,null,null,null,null,null,0]
[null,"",null,null,null,null,null,null,null,null,null,0]
[null,"",null,null,null,null,null,null,null,null,null,0]
[null,"",null,null,null,null,null,null,null,null,null,0]
[null,"",null,null,null,null,null,null,null,null,null,0]
[null,"",null,null,null,null,null,null,null,null,null,0]
[null,"",null,null,null,null,null,null,null,null,null,0]
[null,"",null,null,null,null,null,null,null,null,null,0]
[null,"",null,null,null,null,null,null,null,null,null,0]
[null,"",null,null,null,null,null,null,null,null,null,0]
[null,"",null,null,null,null,null,null,null,null,null,0]
[null,"",null,null,null,null,null,null,null,null,null,0]
[null,"",null,null,null,null,null,null,null,null,null,0]
[null,"",null,null,null,null,null,null,null,null,null,0]
[null,"",null,null,null,null,null,null,null,null,null,0]
[null,"",null,null,null,null,null,null,null,null,null,0]
[null,"",null,null,null,null,null,null,null,null,null,0]
[null,"",null,null,null,null,null,null,null,null,null,0]
[null,"",null,null,null,null,null,null,null,null,null,0]
[null,"",null,null,null,null,null,null,null,null,null,0]
[null,"",null,null,null,null,null,null,null,null,null,0]
[null,"",null,null,null,null,null,null,null,null,null,0]
[null,"",null,null,null,null,null,null,null,null,null,0]
[null,"",null,null,null,null,null,null,null,null,null,0]
[null,"",null,null,null,null,null,null,null,null,null,0]
[null,"",null,null,null,null,null,null,null,null,null,0]
[null,"",null,null,null,null,null,null,null,null,null,0]
[null,"",null,null,null,null,null,null,null,null,null,0]
[null,"",null,null,null,null,null,null,null,null,null,0]
[null,"",null,null,null,null,null,null,null,null,null,0]
[null,"",null,null,null,null,null,null,null,null,null,0]
[null,"",null,null,null,null,null,null,null,null,null,0]
[null,"",null,null,null,null,null,null,null,null,null,0]
[null,"",null,null,null,null,null,null,null,null,null,0]
[null,"",null,null,null,null,null,null,null,null,null,0]
[null,"",null,null,null,null,null,null,null,null,null,0]
[null,"",null,null,null,null,null,null,null,null,null,0]
[null,"",null,null,null,null,null,null,null,null,null,0]
[null,"",null,null,null,null,null,null,null,null,null,0]
[null,"",null,null,null,null,null,null,null,null,null,0]
[null,"",null,null,null,null,null,null,null,null,null,0]
[null,"",null,null,null,null,null,null,null,null,null,0]
[null,"",null,null,null,null,null,null,null,null,null,0]
[null,"",null,null,null,null,null,null,null,null,null,0]
[null,"",null,null,null,null,null,null,null,null,null,0]
[null,"",null,null,null,null,null,null,null,null,null,0]
[null,"",null,null,null,null,null,null,null,null,null,0]
[null,"",null,null,null,null,null,null,null,null,null,0]
[null,"",null,null,null,null,null,null,null,null,null,{"$f":"SUM(F68:K68)","v":0}]
[null,{"$f":"IF(C69>0.005,B68+1,\"\")","v":""},null,null,null,null,null,null,null,null,null,0]
[null,"",null,null,null,null,null,null,null,null,null,0]
[null,"",null,null,null,null,null,null,null,null,null,0]
[null,"",null,null,null,null,null,null,null,null,null,0]
[null,"",null,null,null,null,null,null,null,null,null,0]
[null,"",null,null,null,null,null,null,null,null,null,0]
[null,"",null,null,null,null,null,null,null,null,null,0]
[null,"",null,null,null,null,null,null,null,null,null,0]
[null,"",null,null,null,null,null,null,null,null,null,0]
[null,"",null,null,null,null,null,null,null,null,null,0]
[null,"",null,null,null,null,null,null,null,null,null,0]
[null,"",null,null,null,null,null,null,null,null,null,0]
[null,"",null,null,null,null,null,null,null,null,null,0]
[null,"",null,null,null,null,null,null,null,null,null,0]
[null,"",null,null,null,null,null,null,null,null,null,0]
[null,"",null,null,null,null,null,null,null,null,null,0]
[null,"",null,null,null,null,null,null,null,null,null,0]
[null,"",null,null,null,null,null,null,null,null,null,0]
[null,"",null,null,null,null,null,null,null,null,null,0]
[null,"",null,null,null,null,null,null,null,null,null,0]
[null,"",null,null,null,null,null,null,null,null,null,0]
[null,"",null,null,null,null,null,null,null,null,null,0]
[null,"",null,null,null,null,null,null,null,null,null,0]
[null,"",null,null,null,null,null,null,null,null,null,0]
[null,"",null,null,null,null,null,null,null,null,null,0]
[null,"",null,null,null,null,null,null,null,null,null,0]
[null,"",null,null,null,null,null,null,null,null,null,0]
[null,"",null,null,null,null,null,null,null,null,null,0]
[null,"",null,null,null,null,null,null,null,null,null,0]
[null,"",null,null,null,null,null,null,null,null,null,0]
[null,"",null,null,null,null,null,null,null,null,null,0]
[null,"",null,null,null,null,null,null,null,null,null,0]
[null,"",null,null,null,null,null,null,null,null,null,0]
[null,"",null,null,null,null,null,null,null,null,null,0]
[null,"",null,null,null,null,null,null,null,null,null,0]
[null,"",null,null,null,null,null,null,null,null,null,0]
[null,"",null,null,null,null,null,null,null,null,null,0]
[null,"",null,null,null,null,null,null,null,null,null,0]
[null,"",null,null,null,null,null,null,null,null,null,0]
[null,"",null,null,null,null,null,null,null,null,null,0]
[null,"",null,null,null,null,null,null,null,null,null,0]
[null,"",null,null,null,null,null,null,null,null,null,0]
[null,"",null,null,null,null,null,null,null,null,null,0]
[null,"",null,null,null,null,null,null,null,null,null,0]
[null,"",null,null,null,null,null,null,null,null,null,0]
[null,"",null,null,null,null,null,null,null,null,null,0]
[null,"",null,null,null,null,null,null,null,null,null,0]
[null,"",null,null,null,null,null,null,null,null,null,0]
[null,"",null,null,null,null,null,null,null,null,null,0]
[null,"",null,null,null,null,null,null,null,null,null,0]
[null,"",null,null,null,null,null,null,null,null,null,0]
[null,"",null,null,null,null,null,null,null,null,null,0]
[null,"",null,null,null,null,null,null,null,null,null,0]
[null,"",null,null,null,null,null,null,null,null,null,0]
[null,"",null,null,null,null,null,null,null,null,null,0]
[null,"",null,null,null,null,null,null,null,null,null,0]
[null,"",null,null,null,null,null,null,null,null,null,0]
[null,"",null,null,null,null,null,null,null,null,null,0]
[null,"",null,null,null,null,null,null,null,null,null,0]
[null,"",null,null,null,null,null,null,null,null,null,0]
[null,"",null,null,null,null,null,null,null,null,null,0]
[null,"",null,null,null,null,null,null,null,null,null,0]
[null,"",null,null,null,null,null,null,null,null,null,0]
[null,"",null,null,null,null,null,null,null,null,null,{"$f":"SUM(F132:K132)","v":0}]
[null,{"$f":"IF(C133>0.005,B132+1,\"\")","v":""},null,null,null,null,null,null,null,null,null,0]
[null,"",null,null,null,null,null,null,null,null,null,0]
[null,"",null,null,null,null,null,null,null,null,null,0]
[null,"",null,null,null,null,null,null,null,null,null,0]
[null,"",null,null,null,null,null,null,null,null,null,0]
[null,"",null,null,null,null,null,null,null,null,null,0]
[null,"",null,null,null,null,null,null,null,null,null,0]
[null,"",null,null,null,null,null,null,null,null,null,0]
[null,"",null,null,null,null,null,null,null,null,null,0]
[null,"",null,null,null,null,null,null,null,null,null,0]
[null,"",null,null,null,null,null,null,null,null,null,0]
[null,"",null,null,null,null,null,null,null,null,null,0]
[null,"",null,null,null,null,null,null,null,null,null,0]
[null,"",null,null,null,null,null,null,null,null,null,0]
[null,"",null,null,null,null,null,null,null,null,null,0]
[null,"",null,null,null,null,null,null,null,null,null,0]
[null,"",null,null,null,null,null,null,null,null,null,0]
[null,"",null,null,null,null,null,null,null,null,null,0]
[null,"",null,null,null,null,null,null,null,null,null,0]
[null,"",null,null,null,null,null,null,null,null,null,0]
[null,"",null,null,null,null,null,null,null,null,null,0]
[null,"",null,null,null,null,null,null,null,null,null,0]
[null,"",null,null,null,null,null,null,null,null,null,0]
[null,"",null,null,null,null,null,null,null,null,null,0]
[null,"",null,null,null,null,null,null,null,null,null,0]
[null,"",null,null,null,null,null,null,null,null,null,0]
[null,"",null,null,null,null,null,null,null,null,null,0]
[null,"",null,null,null,null,null,null,null,null,null,0]
[null,"",null,null,null,null,null,null,null,null,null,0]
[null,"",null,null,null,null,null,null,null,null,null,0]
[null,"",null,null,null,null,null,null,null,null,null,0]
[null,"",null,null,null,null,null,null,null,null,null,0]
[null,"",null,null,null,null,null,null,null,null,null,0]
[null,"",null,null,null,null,null,null,null,null,null,0]
[null,"",null,null,null,null,null,null,null,null,null,0]
[null,"",null,null,null,null,null,null,null,null,null,0]
[null,"",null,null,null,null,null,null,null,null,null,0]
[null,"",null,null,null,null,null,null,null,null,null,0]
[null,"",null,null,null,null,null,null,null,null,null,0]
[null,"",null,null,null,null,null,null,null,null,null,0]
[null,"",null,null,null,null,null,null,null,null,null,0]
[null,"",null,null,null,null,null,null,null,null,null,0]
[null,"",null,null,null,null,null,null,null,null,null,0]
[null,"",null,null,null,null,null,null,null,null,null,0]
[null,"",null,null,null,null,null,null,null,null,null,0]
[null,"",null,null,null,null,null,null,null,null,null,0]
[null,"",null,null,null,null,null,null,null,null,null,0]
[null,"",null,null,null,null,null,null,null,null,null,0]
[null,"",null,null,null,null,null,null,null,null,null,0]
[null,"",null,null,null,null,null,null,null,null,null,0]
[null,"",null,null,null,null,null,null,null,null,null,0]
[null,"",null,null,null,null,null,null,null,null,null,0]
[null,"",null,null,null,null,null,null,null,null,null,0]
[null,"",null,null,null,null,null,null,null,null,null,0]
[null,"",null,null,null,null,null,null,null,null,null,0]
[null,"",null,null,null,null,null,null,null,null,null,0]
[null,"",null,null,null,null,null,null,null,null,null,0]
[null,"",null,null,null,null,null,null,null,null,null,0]
[null,"",null,null,null,null,null,null,null,null,null,0]
[null,"",null,null,null,null,null,null,null,null,null,0]
[null,"",null,null,null,null,null,null,null,null,null,0]
[null,"",null,null,null,null,null,null,null,null,null,0]
[null,"",null,null,null,null,null,null,null,null,null,0]
[null,"",null,null,null,null,null,null,null,null,null,{"$f":"SUM(F196:K196)","v":0}]
[null,{"$f":"IF(C197>0.005,B196+1,\"\")","v":""},null,null,null,null,null,null,null,null,null,0]
[null,"",null,null,null,null,null,null,null,null,null,0]
[null,"",null,null,null,null,null,null,null,null,null,0]
[null,"",null,null,null,null,null,null,null,null,null,0]
[null,"",null,null,null,null,null,null,null,null,null,0]
[null,"",null,null,null,null,null,null,null,null,null,0]
[null,"",null,null,null,null,null,null,null,null,null,0]
[null,"",null,null,null,null,null,null,null,null,null,0]
[null,"",null,null,null,null,null,null,null,null,null,0]
[null,"",null,null,null,null,null,null,null,null,null,0]
[null,"",null,null,null,null,null,null,null,null,null,0]
[null,"",null,null,null,null,null,null,null,null,null,0]
[null,"",null,null,null,null,null,null,null,null,null,0]
[null,"",null,null,null,null,null,null,null,null,null,0]
[null,"",null,null,null,null,null,null,null,null,null,0]
[null,"",null,null,null,null,null,null,null,null,null,0]
[null,"",null,null,null,null,null,null,null,null,null,0]
[null,"",null,null,null,null,null,null,null,null,null,0]
[null,"",null,null,null,null,null,null,null,null,null,0]
[null,"",null,null,null,null,null,null,null,null,null,0]
[null,"",null,null,null,null,null,null,null,null,null,0]
[null,"",null,null,null,null,null,null,null,null,null,0]
[null,"",null,null,null,null,null,null,null,null,null,0]
[null,"",null,null,null,null,null,null,null,null,null,0]
[null,"",null,null,null,null,null,null,null,null,null,0]
[null,"",null,null,null,null,null,null,null,null,null,0]
[null,"",null,null,null,null,null,null,null,null,null,0]
[null,"",null,null,null,null,null,null,null,null,null,0]
[null,"",null,null,null,null,null,null,null,null,null,0]
[null,"",null,null,null,null,null,null,null,null,null,0]
[null,"",null,null,null,null,null,null,null,null,null,0]
[null,"",null,null,null,null,null,null,null,null,null,0]
[null,"",null,null,null,null,null,null,null,null,null,0]
[null,"",null,null,null,null,null,null,null,null,null,0]
[null,"",null,null,null,null,null,null,null,null,null,0]
[null,"",null,null,null,null,null,null,null,null,null,0]
[null,"",null,null,null,null,null,null,null,null,null,0]
[null,"",null,null,null,null,null,null,null,null,null,0]
[null,"",null,null,null,null,null,null,null,null,null,0]
[null,"",null,null,null,null,null,null,null,null,null,0]
[null,"",null,null,null,null,null,null,null,null,null,0]
[null,"",null,null,null,null,null,null,null,null,null,0]
[null,"",null,null,null,null,null,null,null,null,null,0]
[null,"",null,null,null,null,null,null,null,null,null,0]
[null,"",null,null,null,null,null,null,null,null,null,0]
[null,"",null,null,null,null,null,null,null,null,null,0]
[null,"",null,null,null,null,null,null,null,null,null,0]
[null,"",null,null,null,null,null,null,null,null,null,0]
[null,"",null,null,null,null,null,null,null,null,null,0]
[null,"",null,null,null,null,null,null,null,null,null,0]
[null,"",null,null,null,null,null,null,null,null,null,0]
[null,"",null,null,null,null,null,null,null,null,null,0]
[null,"",null,null,null,null,null,null,null,null,null,0]
[null,"",null,null,null,null,null,null,null,null,null,0]
[null,"",null,null,null,null,null,null,null,null,null,0]
[null,"",null,null,null,null,null,null,null,null,null,0]
[null,"",null,null,null,null,null,null,null,null,null,0]
[null,"",null,null,null,null,null,null,null,null,null,0]
[null,"",null,null,null,null,null,null,null,null,null,0]
[null,"",null,null,null,null,null,null,null,null,null,0]
[null,"",null,null,null,null,null,null,null,null,null,0]
[null,"",null,null,null,null,null,null,null,null,null,0]
[null,"",null,null,null,null,null,null,null,null,null,0]
[null,"",null,null,null,null,null,null,null,null,null,{"$f":"SUM(F260:K260)","v":0}]
[null,{"$f":"IF(C261>0.005,B260+1,\"\")","v":""},null,null,null,null,null,null,null,null,null,0]
[null,"",null,null,null,null,null,null,null,null,null,0]
[null,"",null,null,null,null,null,null,null,null,null,0]
[null,"",null,null,null,null,null,null,null,null,null,0]
[null,"",null,null,null,null,null,null,null,null,null,0]
[null,"",null,null,null,null,null,null,null,null,null,0]
[null,"",null,null,null,null,null,null,null,null,null,0]
[null,"",null,null,null,null,null,null,null,null,null,0]
[null,"",null,null,null,null,null,null,null,null,null,0]
[null,"",null,null,null,null,null,null,null,null,null,0]
[null,"",null,null,null,null,null,null,null,null,null,0]
[null,"",null,null,null,null,null,null,null,null,null,0]
[null,"",null,null,null,null,null,null,null,null,null,0]
[null,"",null,null,null,null,null,null,null,null,null,0]
[null,"",null,null,null,null,null,null,null,null,null,0]
[null,"",null,null,null,null,null,null,null,null,null,0]
[null,"",null,null,null,null,null,null,null,null,null,0]
[null,"",null,null,null,null,null,null,null,null,null,0]
[null,"",null,null,null,null,null,null,null,null,null,0]
[null,"",null,null,null,null,null,null,null,null,null,0]
[null,"",null,null,null,null,null,null,null,null,null,0]
[null,"",null,null,null,null,null,null,null,null,null,0]
[null,"",null,null,null,null,null,null,null,null,null,0]
[null,"",null,null,null,null,null,null,null,null,null,0]
[null,"",null,null,null,null,null,null,null,null,null,0]
[null,"",null,null,null,null,null,null,null,null,null,0]
[null,"",null,null,null,null,null,null,null,null,null,0]
[null,"",null,null,null,null,null,null,null,null,null,0]
[null,"",null,null,null,null,null,null,null,null,null,0]
[null,"",null,null,null,null,null,null,null,null,null,0]
[null,"",null,null,null,null,null,null,null,null,null,0]
[null,"",null,null,null,null,null,null,null,null,null,0]
[null,"",null,null,null,null,null,null,null,null,null,0]
[null,"",null,null,null,null,null,null,null,null,null,0]
[null,"",null,null,null,null,null,null,null,null,null,0]
[null,"",null,null,null,null,null,null,null,null,null,0]
[null,"",null,null,null,null,null,null,null,null,null,0]
[null,"",null,null,null,null,null,null,null,null,null,0]
[null,"",null,null,null,null,null,null,null,null,null,0]
[null,"",null,null,null,null,null,null,null,null,null,0]
[null,"",null,null,null,null,null,null,null,null,null,0]
[null,"",null,null,null,null,null,null,null,null,null,0]
[null,"",null,null,null,null,null,null,null,null,null,0]
[null,"",null,null,null,null,null,null,null,null,null,0]
[null,"",null,null,null,null,null,null,null,null,null,0]
[null,"",null,null,null,null,null,null,null,null,null,0]
[null,"",null,null,null,null,null,null,null,null,null,0]
[null,"",null,null,null,null,null,null,null,null,null,0]
[null,"",null,null,null,null,null,null,null,null,null,0]
[null,"",null,null,null,null,null,null,null,null,null,0]
[null,"",null,null,null,null,null,null,null,null,null,0]
[null,"",null,null,null,null,null,null,null,null,null,0]
[null,"",null,null,null,null,null,null,null,null,null,0]
[null,"",null,null,null,null,null,null,null,null,null,0]
[null,"",null,null,null,null,null,null,null,null,null,0]
[null,"",null,null,null,null,null,null,null,null,null,0]
[null,"",null,null,null,null,null,null,null,null,null,0]
[null,"",null,null,null,null,null,null,null,null,null,0]
[null,"",null,null,null,null,null,null,null,null,null,0]
[null,"",null,null,null,null,null,null,null,null,null,0]
[null,"",null,null,null,null,null,null,null,null,null,0]
[null,"",null,null,null,null,null,null,null,null,null,0]
[null,"",null,null,null,null,null,null,null,null,null,0]
[null,"",null,null,null,null,null,null,null,null,null,{"$f":"SUM(F324:K324)","v":0}]
[null,{"$f":"IF(C325>0.005,B324+1,\"\")","v":""},null,null,null,null,null,null,null,null,null,0]
[null,"",null,null,null,null,null,null,null,null,null,0]
[null,"",null,null,null,null,null,null,null,null,null,0]
[null,"",null,null,null,null,null,null,null,null,null,0]
[null,"",null,null,null,null,null,null,null,null,null,0]
[null,"",null,null,null,null,null,null,null,null,null,0]
[null,"",null,null,null,null,null,null,null,null,null,0]
[null,"",null,null,null,null,null,null,null,null,null,0]
[null,"",null,null,null,null,null,null,null,null,null,0]
[null,"",null,null,null,null,null,null,null,null,null,0]
[null,"",null,null,null,null,null,null,null,null,null,0]
[null,"",null,null,null,null,null,null,null,null,null,0]
[null,"",null,null,null,null,null,null,null,null,null,0]
[null,"",null,null,null,null,null,null,null,null,null,0]
[null,"",null,null,null,null,null,null,null,null,null,0]
[null,"",null,null,null,null,null,null,null,null,null,0]
[null,"",null,null,null,null,null,null,null,null,null,0]
[null,"",null,null,null,null,null,null,null,null,null,0]
[null,"",null,null,null,null,null,null,null,null,null,0]
[null,"",null,null,null,null,null,null,null,null,null,0]
[null,"",null,null,null,null,null,null,null,null,null,0]
[null,"",null,null,null,null,null,null,null,null,null,0]
[null,"",null,null,null,null,null,null,null,null,null,0]
[null,"",null,null,null,null,null,null,null,null,null,0]
[null,"",null,null,null,null,null,null,null,null,null,0]
[null,"",null,null,null,null,null,null,null,null,null,0]
[null,"",null,null,null,null,null,null,null,null,null,0]
[null,"",null,null,null,null,null,null,null,null,null,0]
[null,"",null,null,null,null,null,null,null,null,null,0]
[null,"",null,null,null,null,null,null,null,null,null,0]
[null,"",null,null,null,null,null,null,null,null,null,0]
[null,"",null,null,null,null,null,null,null,null,null,0]
[null,"",null,null,null,null,null,null,null,null,null,0]
[null,"",null,null,null,null,null,null,null,null,null,0]
[null,"",null,null,null,null,null,null,null,null,null,0]
[null,"",null,null,null,null,null,null,null,null,null,0]
[null,"",null,null,null,null,null,null,null,null,null,0]
[null,"",null,null,null,null,null,null,null,null,null,0]
[null,"",null,null,null,null,null,null,null,null,null,0]
[null,"",null,null,null,null,null,null,null,null,null,0]
[null,"",null,null,null,null,null,null,null,null,null,0]
[null,"",null,null,null,null,null,null,null,null,null,0]
[null,"",null,null,null,null,null,null,null,null,null,0]
[null,"",null,null,null,null,null,null,null,null,null,0]
[null,"",null,null,null,null,null,null,null,null,null,0]
[null,"",null,null,null,null,null,null,null,null,null,0]
[null,"",null,null,null,null,null,null,null,null,null,0]
[null,"",null,null,null,null,null,null,null,null,null,0]
[null,"",null,null,null,null,null,null,null,null,null,0]
[null,"",null,null,null,null,null,null,null,null,null,0]
[null,"",null,null,null,null,null,null,null,null,null,0]
[null,"",null,null,null,null,null,null,null,null,null,0]
[null,"",null,null,null,null,null,null,null,null,null,0]
[null,"",null,null,null,null,null,null,null,null,null,0]
[null,"",null,null,null,null,null,null,null,null,null,0]
[null,"",null,null,null,null,null,null,null,null,null,0]
[null,"",null,null,null,null,null,null,null,null,null,0]
[null,"",null,null,null,null,null,null,null,null,null,0]
[null,"",null,null,null,null,null,null,null,null,null,0]
[null,"",null,null,null,null,null,null,null,null,null,0]
[null,"",null,null,null,null,null,null,null,null,null,0]
[null,"",null,null,null,null,null,null,null,null,null,0]
[null,"",null,null,null,null,null,null,null,null,null,0]
[null,"",null,null,null,null,null,null,null,null,null,{"$f":"SUM(F388:K388)","v":0}]
[null,{"$f":"IF(C389>0.005,B388+1,\"\")","v":""},null,null,null,null,null,null,null,null,null,0]
[null,"",null,null,null,null,null,null,null,null,null,0]
[null,"",null,null,null,null,null,null,null,null,null,0]
[null,"",null,null,null,null,null,null,null,null,null,0]
[null,"",null,null,null,null,null,null,null,null,null,0]
[null,"",null,null,null,null,null,null,null,null,null,0]
[null,"",null,null,null,null,null,null,null,null,null,0]
[null,"",null,null,null,null,null,null,null,null,null,0]
[null,"",null,null,null,null,null,null,null,null,null,0]
[null,"",null,null,null,null,null,null,null,null,null,0]
[null,"",null,null,null,null,null,null,null,null,null,0]
[null,"",null,null,null,null,null,null,null,null,null,0]
[null,"",null,null,null,null,null,null,null,null,null,0]
[null,"",null,null,null,null,null,null,null,null,null,0]
[null,"",null,null,null,null,null,null,null,null,null,0]
[null,"",null,null,null,null,null,null,null,null,null,0]
[null,"",null,null,null,null,null,null,null,null,null,0]
[null,"",null,null,null,null,null,null,null,null,null,0]
[null,"",null,null,null,null,null,null,null,null,null,0]
[null,"",null,null,null,null,null,null,null,null,null,0]
[null,"",null,null,null,null,null,null,null,null,null,0]
[null,"",null,null,null,null,null,null,null,null,null,0]
[null,"",null,null,null,null,null,null,null,null,null,0]
[null,"",null,null,null,null,null,null,null,null,null,0]
[null,"",null,null,null,null,null,null,null,null,null,0]
[null,"",null,null,null,null,null,null,null,null,null,0]
[null,"",null,null,null,null,null,null,null,null,null,0]
[null,"",null,null,null,null,null,null,null,null,null,0]
[null,"",null,null,null,null,null,null,null,null,null,0]
[null,"",null,null,null,null,null,null,null,null,null,0]
[null,"",null,null,null,null,null,null,null,null,null,0]
[null,"",null,null,null,null,null,null,null,null,null,0]
[null,"",null,null,null,null,null,null,null,null,null,0]
[null,"",null,null,null,null,null,null,null,null,null,0]
[null,"",null,null,null,null,null,null,null,null,null,0]
[null,"",null,null,null,null,null,null,null,null,null,0]
[null,"",null,null,null,null,null,null,null,null,null,0]
[null,"",null,null,null,null,null,null,null,null,null,0]
[null,"",null,null,null,null,null,null,null,null,null,0]
[null,"",null,null,null,null,null,null,null,null,null,0]
[null,"",null,null,null,null,null,null,null,null,null,0]
[null,"",null,null,null,null,null,null,null,null,null,0]
[null,"",null,null,null,null,null,null,null,null,null,0]
[null,"",null,null,null,null,null,null,null,null,null,0]
[null,"",null,null,null,null,null,null,null,null,null,0]
[null,"",null,null,null,null,null,null,null,null,null,0]
[null,"",null,null,null,null,null,null,null,null,null,0]
[null,"",null,null,null,null,null,null,null,null,null,0]
[null,"",null,null,null,null,null,null,null,null,null,0]
[null,"",null,null,null,null,null,null,null,null,null,0]
[null,"",null,null,null,null,null,null,null,null,null,0]
[null,"",null,null,null,null,null,null,null,null,null,0]
[null,"",null,null,null,null,null,null,null,null,null,0]
[null,"",null,null,null,null,null,null,null,null,null,0]
[null,"",null,null,null,null,null,null,null,null,null,0]
[null,"",null,null,null,null,null,null,null,null,null,0]
[null,"",null,null,null,null,null,null,null,null,null,0]
[null,"",null,null,null,null,null,null,null,null,null,0]
[null,"",null,null,null,null,null,null,null,null,null,0]
[null,"",null,null,null,null,null,null,null,null,null,0]
[null,"",null,null,null,null,null,null,null,null,null,0]
[null,"",null,null,null,null,null,null,null,null,null,0]
[null,"",null,null,null,null,null,null,null,null,null,0]
[null,"",null,null,null,null,null,null,null,null,null,{"$f":"SUM(F452:K452)","v":0}]
[null,{"$f":"IF(C453>0.005,B452+1,\"\")","v":""},null,null,null,null,null,null,null,null,null,0]
[null,"",null,null,null,null,null,null,null,null,null,0]
[null,"",null,null,null,null,null,null,null,null,null,0]
[null,"",null,null,null,null,null,null,null,null,null,0]
[null,"",null,null,null,null,null,null,null,null,null,0]
[null,"",null,null,null,null,null,null,null,null,null,0]
[null,"",null,null,null,null,null,null,null,null,null,0]
[null,"",null,null,null,null,null,null,null,null,null,0]
[null,"",null,null,null,null,null,null,null,null,null,0]
[null,"",null,null,null,null,null,null,null,null,null,0]
[null,"",null,null,null,null,null,null,null,null,null,0]
[null,"",null,null,null,null,null,null,null,null,null,0]
[null,"",null,null,null,null,null,null,null,null,null,0]
[null,"",null,null,null,null,null,null,null,null,null,0]
[null,"",null,null,null,null,null,null,null,null,null,0]
[null,"",null,null,null,null,null,null,null,null,null,0]
[null,"",null,null,null,null,null,null,null,null,null,0]
[null,"",null,null,null,null,null,null,null,null,null,0]
[null,"",null,null,null,null,null,null,null,null,null,0]
[null,"",null,null,null,null,null,null,null,null,null,0]
[null,"",null,null,null,null,null,null,null,null,null,0]
[null,"",null,null,null,null,null,null,null,null,null,0]
[null,"",null,null,null,null,null,null,null,null,null,0]
[null,"",null,null,null,null,null,null,null,null,null,0]
[null,"",null,null,null,null,null,null,null,null,null,0]
[null,"",null,null,null,null,null,null,null,null,null,0]
[null,"",null,null,null,null,null,null,null,null,null,0]
[null,"",null,null,null,null,null,null,null,null,null,0]
[null,"",null,null,null,null,null,null,null,null,null,0]
[null,"",null,null,null,null,null,null,null,null,null,0]
[null,"",null,null,null,null,null,null,null,null,null,0]
[null,"",null,null,null,null,null,null,null,null,null,0]
[null,"",null,null,null,null,null,null,null,null,null,0]
[null,"",null,null,null,null,null,null,null,null,null,0]
[null,"",null,null,null,null,null,null,null,null,null,0]
[null,"",null,null,null,null,null,null,null,null,null,0]
[null,"",null,null,null,null,null,null,null,null,null,0]
[null,"",null,null,null,null,null,null,null,null,null,0]
[null,"",null,null,null,null,null,null,null,null,null,0]
[null,"",null,null,null,null,null,null,null,null,null,0]
[null,"",null,null,null,null,null,null,null,null,null,0]
[null,"",null,null,null,null,null,null,null,null,null,0]
[null,"",null,null,null,null,null,null,null,null,null,0]
[null,"",null,null,null,null,null,null,null,null,null,0]
[null,"",null,null,null,null,null,null,null,null,null,0]
[null,"",null,null,null,null,null,null,null,null,null,0]
[null,"",null,null,null,null,null,null,null,null,null,0]
[null,"",null,null,null,null,null,null,null,null,null,0]
[null,"",null,null,null,null,null,null,null,null,null,0]
[null,"",null,null,null,null,null,null,null,null,null,0]
[null,"",null,null,null,null,null,null,null,null,null,0]
[null,"",null,null,null,null,null,null,null,null,null,0]
[null,"",null,null,null,null,null,null,null,null,null,0]
[null,"",null,null,null,null,null,null,null,null,null,0]
[null,"",null,null,null,null,null,null,null,null,null,0]
[null,"",null,null,null,null,null,null,null,null,null,0]
[null,"",null,null,null,null,null,null,null,null,null,0]
[null,"",null,null,null,null,null,null,null,null,null,0]
[null,"",null,null,null,null,null,null,null,null,null,0]
[null,"",null,null,null,null,null,null,null,null,null,0]
[null,"",null,null,null,null,null,null,null,null,null,0]
[null,"",null,null,null,null,null,null,null,null,null,0]
[null,"",null,null,null,null,null,null,null,null,null,0]
[null,"",null,null,null,null,null,null,null,null,null,{"$f":"SUM(F516:K516)","v":0}]
[null,{"$f":"IF(C517>0.005,B516+1,\"\")","v":""},null,null,null,null,null,null,null,null,null,0]
[null,"",null,null,null,null,null,null,null,null,null,0]
[null,"",null,null,null,null,null,null,null,null,null,0]
[null,"",null,null,null,null,null,null,null,null,null,0]
[null,"",null,null,null,null,null,null,null,null,null,0]
[null,"",null,null,null,null,null,null,null,null,null,0]
[null,"",null,null,null,null,null,null,null,null,null,0]
[null,"",null,null,null,null,null,null,null,null,null,0]
[null,"",null,null,null,null,null,null,null,null,null,0]
[null,"",null,null,null,null,null,null,null,null,null,0]
[null,"",null,null,null,null,null,null,null,null,null,0]
[null,"",null,null,null,null,null,null,null,null,null,0]
[null,"",null,null,null,null,null,null,null,null,null,0]
[null,"",null,null,null,null,null,null,null,null,null,0]
[null,"",null,null,null,null,null,null,null,null,null,0]
[null,"",null,null,null,null,null,null,null,null,null,0]
[null,"",null,null,null,null,null,null,null,null,null,0]
[null,"",null,null,null,null,null,null,null,null,null,0]
[null,"",null,null,null,null,null,null,null,null,null,0]
[null,"",null,null,null,null,null,null,null,null,null,0]
[null,"",null,null,null,null,null,null,null,null,null,0]
[null,"",null,null,null,null,null,null,null,null,null,0]
[null,"",null,null,null,null,null,null,null,null,null,0]
[null,"",null,null,null,null,null,null,null,null,null,0]
[null,"",null,null,null,null,null,null,null,null,null,0]
[null,"",null,null,null,null,null,null,null,null,null,0]
[null,"",null,null,null,null,null,null,null,null,null,0]
[null,"",null,null,null,null,null,null,null,null,null,0]
[null,"",null,null,null,null,null,null,null,null,null,0]
[null,"",null,null,null,null,null,null,null,null,null,0]
[null,"",null,null,null,null,null,null,null,null,null,0]
[null,"",null,null,null,null,null,null,null,null,null,0]
[null,"",null,null,null,null,null,null,null,null,null,0]
[null,"",null,null,null,null,null,null,null,null,null,0]
[null,"",null,null,null,null,null,null,null,null,null,0]
[null,"",null,null,null,null,null,null,null,null,null,0]
[null,"",null,null,null,null,null,null,null,null,null,0]
[null,"",null,null,null,null,null,null,null,null,null,0]
[null,"",null,null,null,null,null,null,null,null,null,0]
[null,"",null,null,null,null,null,null,null,null,null,0]
[null,"",null,null,null,null,null,null,null,null,null,0]
[null,"",null,null,null,null,null,null,null,null,null,0]
[null,"",null,null,null,null,null,null,null,null,null,0]
[null,"",null,null,null,null,null,null,null,null,null,0]
[null,"",null,null,null,null,null,null,null,null,null,0]
[null,"",null,null,null,null,null,null,null,null,null,0]
[null,"",null,null,null,null,null,null,null,null,null,0]
[null,"",null,null,null,null,null,null,null,null,null,0]
[null,"",null,null,null,null,null,null,null,null,null,0]
[null,"",null,null,null,null,null,null,null,null,null,0]
[null,"",null,null,null,null,null,null,null,null,null,0]
[null,"",null,null,null,null,null,null,null,null,null,0]
[null,"",null,null,null,null,null,null,null,null,null,0]
[null,"",null,null,null,null,null,null,null,null,null,0]
[null,"",null,null,null,null,null,null,null,null,null,0]
[null,"",null,null,null,null,null,null,null,null,null,0]
[null,"",null,null,null,null,null,null,null,null,null,0]
[null,"",null,null,null,null,null,null,null,null,null,0]
[null,"",null,null,null,null,null,null,null,null,null,0]
[null,"",null,null,null,null,null,null,null,null,null,0]
[null,"",null,null,null,null,null,null,null,null,null,0]
[null,"",null,null,null,null,null,null,null,null,null,0]
[null,"",null,null,null,null,null,null,null,null,null,0]
[null,"",null,null,null,null,null,null,null,null,null,{"$f":"SUM(F580:K580)","v":0}]
[null,{"$f":"IF(C581>0.005,B580+1,\"\")","v":""},null,null,null,null,null,null,null,null,null,0]
[null,"",null,null,null,null,null,null,null,null,null,0]
[null,"",null,null,null,null,null,null,null,null,null,0]
[null,"",null,null,null,null,null,null,null,null,null,0]
[null,"",null,null,null,null,null,null,null,null,null,0]
[null,"",null,null,null,null,null,null,null,null,null,0]
[null,"",null,null,null,null,null,null,null,null,null,0]
[null,"",null,null,null,null,null,null,null,null,null,0]
[null,"",null,null,null,null,null,null,null,null,null,0]
[null,"",null,null,null,null,null,null,null,null,null,0]
[null,"",null,null,null,null,null,null,null,null,null,0]
[null,"",null,null,null,null,null,null,null,null,null,0]
[null,"",null,null,null,null,null,null,null,null,null,0]
[null,"",null,null,null,null,null,null,null,null,null,0]
[null,"",null,null,null,null,null,null,null,null,null,0]
[null,"",null,null,null,null,null,null,null,null,null,0]
[null,"",null,null,null,null,null,null,null,null,null,0]
[null,"",null,null,null,null,null,null,null,null,null,0]
[null,"",null,null,null,null,null,null,null,null,null,0]
[null,"",null,null,null,null,null,null,null,null,null,{"$f":"SUM(L3:L599)","v":8364}]

{"sheet":"خارج دوام ","index":2,"n_rows":597,"n_cols":12,"rows_kept":597,"cut":false,"hidden":false,"merged":[[0,9,0,10]]}
[null,null,"عدد المستحقين ",{"$f":"COUNT(B3:B599)","v":0},null,null,null,null,null,"الإجمالي",null,{"$f":"SUM(L600)","v":0}]
[null,"مسلسل","اسم الموظف ","الحساب البنكي ","اسم البنك ","الاستحقاق1","الاستحقاق2","الاستحقاق3","الاستحقاق4","الاستحقاق5","الاستحقاق6","الصافي "]
[null,{"$f":"IF(C3=\"\",\"\",\"1\")","v":""},null,null,null,null,null,null,null,null,null,{"$f":"SUM(F3:K3)","v":0}]
[null,{"$f":"IF(C4=\"\",\"\",B3+1)","v":""},null,null,null,null,null,null,null,null,null,{"$f":"SUM(F4:K4)","v":0}]
[null,{"$f":"IF(C5>0.005,B4+1,\"\")","v":""},null,null,null,null,null,null,null,null,null,0]
[null,"",null,null,null,null,null,null,null,null,null,0]
[null,"",null,null,null,null,null,null,null,null,null,0]
[null,"",null,null,null,null,null,null,null,null,null,0]
[null,"",null,null,null,null,null,null,null,null,null,0]
[null,"",null,null,null,null,null,null,null,null,null,0]
[null,"",null,null,null,null,null,null,null,null,null,0]
[null,"",null,null,null,null,null,null,null,null,null,0]
[null,"",null,null,null,null,null,null,null,null,null,0]
[null,"",null,null,null,null,null,null,null,null,null,0]
[null,"",null,null,null,null,null,null,null,null,null,0]
[null,"",null,null,null,null,null,null,null,null,null,0]
[null,"",null,null,null,null,null,null,null,null,null,0]
[null,"",null,null,null,null,null,null,null,null,null,0]
[null,"",null,null,null,null,null,null,null,null,null,0]
[null,"",null,null,null,null,null,null,null,null,null,0]
[null,"",null,null,null,null,null,null,null,null,null,0]
[null,"",null,null,null,null,null,null,null,null,null,0]
[null,"",null,null,null,null,null,null,null,null,null,0]
[null,"",null,null,null,null,null,null,null,null,null,0]
[null,"",null,null,null,null,null,null,null,null,null,0]
[null,"",null,null,null,null,null,null,null,null,null,0]
[null,"",null,null,null,null,null,null,null,null,null,0]
[null,"",null,null,null,null,null,null,null,null,null,0]
[null,"",null,null,null,null,null,null,null,null,null,0]
[null,"",null,null,null,null,null,null,null,null,null,0]
[null,"",null,null,null,null,null,null,null,null,null,0]
[null,"",null,null,null,null,null,null,null,null,null,0]
[null,"",null,null,null,null,null,null,null,null,null,0]
[null,"",null,null,null,null,null,null,null,null,null,0]
[null,"",null,null,null,null,null,null,null,null,null,0]
[null,"",null,null,null,null,null,null,null,null,null,0]
[null,"",null,null,null,null,null,null,null,null,null,0]
[null,"",null,null,null,null,null,null,null,null,null,0]
[null,"",null,null,null,null,null,null,null,null,null,0]
[null,"",null,null,null,null,null,null,null,null,null,0]
[null,"",null,null,null,null,null,null,null,null,null,0]
[null,"",null,null,null,null,null,null,null,null,null,0]
[null,"",null,null,null,null,null,null,null,null,null,0]
[null,"",null,null,null,null,null,null,null,null,null,0]
[null,"",null,null,null,null,null,null,null,null,null,0]
[null,"",null,null,null,null,null,null,null,null,null,0]
[null,"",null,null,null,null,null,null,null,null,null,0]
[null,"",null,null,null,null,null,null,null,null,null,0]
[null,"",null,null,null,null,null,null,null,null,null,0]
[null,"",null,null,null,null,null,null,null,null,null,0]
[null,"",null,null,null,null,null,null,null,null,null,0]
[null,"",null,null,null,null,null,null,null,null,null,0]
[null,"",null,null,null,null,null,null,null,null,null,0]
[null,"",null,null,null,null,null,null,null,null,null,0]
[null,"",null,null,null,null,null,null,null,null,null,0]
[null,"",null,null,null,null,null,null,null,null,null,0]
[null,"",null,null,null,null,null,null,null,null,null,0]
[null,"",null,null,null,null,null,null,null,null,null,0]
[null,"",null,null,null,null,null,null,null,null,null,0]
[null,"",null,null,null,null,null,null,null,null,null,0]
[null,"",null,null,null,null,null,null,null,null,null,0]
[null,"",null,null,null,null,null,null,null,null,null,0]
[null,"",null,null,null,null,null,null,null,null,null,0]
[null,"",null,null,null,null,null,null,null,null,null,0]
[null,"",null,null,null,null,null,null,null,null,null,0]
[null,"",null,null,null,null,null,null,null,null,null,0]
[null,"",null,null,null,null,null,null,null,null,null,{"$f":"SUM(F67:K67)","v":0}]
[null,{"$f":"IF(C68>0.005,B67+1,\"\")","v":""},null,null,null,null,null,null,null,null,null,0]
[null,"",null,null,null,null,null,null,null,null,null,0]
[null,"",null,null,null,null,null,null,null,null,null,0]
[null,"",null,null,null,null,null,null,null,null,null,0]
[null,"",null,null,null,null,null,null,null,null,null,0]
[null,"",null,null,null,null,null,null,null,null,null,0]
[null,"",null,null,null,null,null,null,null,null,null,0]
[null,"",null,null,null,null,null,null,null,null,null,0]
[null,"",null,null,null,null,null,null,null,null,null,0]
[null,"",null,null,null,null,null,null,null,null,null,0]
[null,"",null,null,null,null,null,null,null,null,null,0]
[null,"",null,null,null,null,null,null,null,null,null,0]
[null,"",null,null,null,null,null,null,null,null,null,0]
[null,"",null,null,null,null,null,null,null,null,null,0]
[null,"",null,null,null,null,null,null,null,null,null,0]
[null,"",null,null,null,null,null,null,null,null,null,0]
[null,"",null,null,null,null,null,null,null,null,null,0]
[null,"",null,null,null,null,null,null,null,null,null,0]
[null,"",null,null,null,null,null,null,null,null,null,0]
[null,"",null,null,null,null,null,null,null,null,null,0]
[null,"",null,null,null,null,null,null,null,null,null,0]
[null,"",null,null,null,null,null,null,null,null,null,0]
[null,"",null,null,null,null,null,null,null,null,null,0]
[null,"",null,null,null,null,null,null,null,null,null,0]
[null,"",null,null,null,null,null,null,null,null,null,0]
[null,"",null,null,null,null,null,null,null,null,null,0]
[null,"",null,null,null,null,null,null,null,null,null,0]
[null,"",null,null,null,null,null,null,null,null,null,0]
[null,"",null,null,null,null,null,null,null,null,null,0]
[null,"",null,null,null,null,null,null,null,null,null,0]
[null,"",null,null,null,null,null,null,null,null,null,0]
[null,"",null,null,null,null,null,null,null,null,null,0]
[null,"",null,null,null,null,null,null,null,null,null,0]
[null,"",null,null,null,null,null,null,null,null,null,0]
[null,"",null,null,null,null,null,null,null,null,null,0]
[null,"",null,null,null,null,null,null,null,null,null,0]
[null,"",null,null,null,null,null,null,null,null,null,0]
[null,"",null,null,null,null,null,null,null,null,null,0]
[null,"",null,null,null,null,null,null,null,null,null,0]
[null,"",null,null,null,null,null,null,null,null,null,0]
[null,"",null,null,null,null,null,null,null,null,null,0]
[null,"",null,null,null,null,null,null,null,null,null,0]
[null,"",null,null,null,null,null,null,null,null,null,0]
[null,"",null,null,null,null,null,null,null,null,null,0]
[null,"",null,null,null,null,null,null,null,null,null,0]
[null,"",null,null,null,null,null,null,null,null,null,0]
[null,"",null,null,null,null,null,null,null,null,null,0]
[null,"",null,null,null,null,null,null,null,null,null,0]
[null,"",null,null,null,null,null,null,null,null,null,0]
[null,"",null,null,null,null,null,null,null,null,null,0]
[null,"",null,null,null,null,null,null,null,null,null,0]
[null,"",null,null,null,null,null,null,null,null,null,0]
[null,"",null,null,null,null,null,null,null,null,null,0]
[null,"",null,null,null,null,null,null,null,null,null,0]
[null,"",null,null,null,null,null,null,null,null,null,0]
[null,"",null,null,null,null,null,null,null,null,null,0]
[null,"",null,null,null,null,null,null,null,null,null,0]
[null,"",null,null,null,null,null,null,null,null,null,0]
[null,"",null,null,null,null,null,null,null,null,null,0]
[null,"",null,null,null,null,null,null,null,null,null,0]
[null,"",null,null,null,null,null,null,null,null,null,0]
[null,"",null,null,null,null,null,null,null,null,null,0]
[null,"",null,null,null,null,null,null,null,null,null,0]
[null,"",null,null,null,null,null,null,null,null,null,{"$f":"SUM(F131:K131)","v":0}]
[null,{"$f":"IF(C132>0.005,B131+1,\"\")","v":""},null,null,null,null,null,null,null,null,null,0]
[null,"",null,null,null,null,null,null,null,null,null,0]
[null,"",null,null,null,null,null,null,null,null,null,0]
[null,"",null,null,null,null,null,null,null,null,null,0]
[null,"",null,null,null,null,null,null,null,null,null,0]
[null,"",null,null,null,null,null,null,null,null,null,0]
[null,"",null,null,null,null,null,null,null,null,null,0]
[null,"",null,null,null,null,null,null,null,null,null,0]
[null,"",null,null,null,null,null,null,null,null,null,0]
[null,"",null,null,null,null,null,null,null,null,null,0]
[null,"",null,null,null,null,null,null,null,null,null,0]
[null,"",null,null,null,null,null,null,null,null,null,0]
[null,"",null,null,null,null,null,null,null,null,null,0]
[null,"",null,null,null,null,null,null,null,null,null,0]
[null,"",null,null,null,null,null,null,null,null,null,0]
[null,"",null,null,null,null,null,null,null,null,null,0]
[null,"",null,null,null,null,null,null,null,null,null,0]
[null,"",null,null,null,null,null,null,null,null,null,0]
[null,"",null,null,null,null,null,null,null,null,null,0]
[null,"",null,null,null,null,null,null,null,null,null,0]
[null,"",null,null,null,null,null,null,null,null,null,0]
[null,"",null,null,null,null,null,null,null,null,null,0]
[null,"",null,null,null,null,null,null,null,null,null,0]
[null,"",null,null,null,null,null,null,null,null,null,0]
[null,"",null,null,null,null,null,null,null,null,null,0]
[null,"",null,null,null,null,null,null,null,null,null,0]
[null,"",null,null,null,null,null,null,null,null,null,0]
[null,"",null,null,null,null,null,null,null,null,null,0]
[null,"",null,null,null,null,null,null,null,null,null,0]
[null,"",null,null,null,null,null,null,null,null,null,0]
[null,"",null,null,null,null,null,null,null,null,null,0]
[null,"",null,null,null,null,null,null,null,null,null,0]
[null,"",null,null,null,null,null,null,null,null,null,0]
[null,"",null,null,null,null,null,null,null,null,null,0]
[null,"",null,null,null,null,null,null,null,null,null,0]
[null,"",null,null,null,null,null,null,null,null,null,0]
[null,"",null,null,null,null,null,null,null,null,null,0]
[null,"",null,null,null,null,null,null,null,null,null,0]
[null,"",null,null,null,null,null,null,null,null,null,0]
[null,"",null,null,null,null,null,null,null,null,null,0]
[null,"",null,null,null,null,null,null,null,null,null,0]
[null,"",null,null,null,null,null,null,null,null,null,0]
[null,"",null,null,null,null,null,null,null,null,null,0]
[null,"",null,null,null,null,null,null,null,null,null,0]
[null,"",null,null,null,null,null,null,null,null,null,0]
[null,"",null,null,null,null,null,null,null,null,null,0]
[null,"",null,null,null,null,null,null,null,null,null,0]
[null,"",null,null,null,null,null,null,null,null,null,0]
[null,"",null,null,null,null,null,null,null,null,null,0]
[null,"",null,null,null,null,null,null,null,null,null,0]
[null,"",null,null,null,null,null,null,null,null,null,0]
[null,"",null,null,null,null,null,null,null,null,null,0]
[null,"",null,null,null,null,null,null,null,null,null,0]
[null,"",null,null,null,null,null,null,null,null,null,0]
[null,"",null,null,null,null,null,null,null,null,null,0]
[null,"",null,null,null,null,null,null,null,null,null,0]
[null,"",null,null,null,null,null,null,null,null,null,0]
[null,"",null,null,null,null,null,null,null,null,null,0]
[null,"",null,null,null,null,null,null,null,null,null,0]
[null,"",null,null,null,null,null,null,null,null,null,0]
[null,"",null,null,null,null,null,null,null,null,null,0]
[null,"",null,null,null,null,null,null,null,null,null,0]
[null,"",null,null,null,null,null,null,null,null,null,0]
[null,"",null,null,null,null,null,null,null,null,null,{"$f":"SUM(F195:K195)","v":0}]
[null,{"$f":"IF(C196>0.005,B195+1,\"\")","v":""},null,null,null,null,null,null,null,null,null,0]
[null,"",null,null,null,null,null,null,null,null,null,0]
[null,"",null,null,null,null,null,null,null,null,null,0]
[null,"",null,null,null,null,null,null,null,null,null,0]
[null,"",null,null,null,null,null,null,null,null,null,0]
[null,"",null,null,null,null,null,null,null,null,null,0]
[null,"",null,null,null,null,null,null,null,null,null,0]
[null,"",null,null,null,null,null,null,null,null,null,0]
[null,"",null,null,null,null,null,null,null,null,null,0]
[null,"",null,null,null,null,null,null,null,null,null,0]
[null,"",null,null,null,null,null,null,null,null,null,0]
[null,"",null,null,null,null,null,null,null,null,null,0]
[null,"",null,null,null,null,null,null,null,null,null,0]
[null,"",null,null,null,null,null,null,null,null,null,0]
[null,"",null,null,null,null,null,null,null,null,null,0]
[null,"",null,null,null,null,null,null,null,null,null,0]
[null,"",null,null,null,null,null,null,null,null,null,0]
[null,"",null,null,null,null,null,null,null,null,null,0]
[null,"",null,null,null,null,null,null,null,null,null,0]
[null,"",null,null,null,null,null,null,null,null,null,0]
[null,"",null,null,null,null,null,null,null,null,null,0]
[null,"",null,null,null,null,null,null,null,null,null,0]
[null,"",null,null,null,null,null,null,null,null,null,0]
[null,"",null,null,null,null,null,null,null,null,null,0]
[null,"",null,null,null,null,null,null,null,null,null,0]
[null,"",null,null,null,null,null,null,null,null,null,0]
[null,"",null,null,null,null,null,null,null,null,null,0]
[null,"",null,null,null,null,null,null,null,null,null,0]
[null,"",null,null,null,null,null,null,null,null,null,0]
[null,"",null,null,null,null,null,null,null,null,null,0]
[null,"",null,null,null,null,null,null,null,null,null,0]
[null,"",null,null,null,null,null,null,null,null,null,0]
[null,"",null,null,null,null,null,null,null,null,null,0]
[null,"",null,null,null,null,null,null,null,null,null,0]
[null,"",null,null,null,null,null,null,null,null,null,0]
[null,"",null,null,null,null,null,null,null,null,null,0]
[null,"",null,null,null,null,null,null,null,null,null,0]
[null,"",null,null,null,null,null,null,null,null,null,0]
[null,"",null,null,null,null,null,null,null,null,null,0]
[null,"",null,null,null,null,null,null,null,null,null,0]
[null,"",null,null,null,null,null,null,null,null,null,0]
[null,"",null,null,null,null,null,null,null,null,null,0]
[null,"",null,null,null,null,null,null,null,null,null,0]
[null,"",null,null,null,null,null,null,null,null,null,0]
[null,"",null,null,null,null,null,null,null,null,null,0]
[null,"",null,null,null,null,null,null,null,null,null,0]
[null,"",null,null,null,null,null,null,null,null,null,0]
[null,"",null,null,null,null,null,null,null,null,null,0]
[null,"",null,null,null,null,null,null,null,null,null,0]
[null,"",null,null,null,null,null,null,null,null,null,0]
[null,"",null,null,null,null,null,null,null,null,null,0]
[null,"",null,null,null,null,null,null,null,null,null,0]
[null,"",null,null,null,null,null,null,null,null,null,0]
[null,"",null,null,null,null,null,null,null,null,null,0]
[null,"",null,null,null,null,null,null,null,null,null,0]
[null,"",null,null,null,null,null,null,null,null,null,0]
[null,"",null,null,null,null,null,null,null,null,null,0]
[null,"",null,null,null,null,null,null,null,null,null,0]
[null,"",null,null,null,null,null,null,null,null,null,0]
[null,"",null,null,null,null,null,null,null,null,null,0]
[null,"",null,null,null,null,null,null,null,null,null,0]
[null,"",null,null,null,null,null,null,null,null,null,0]
[null,"",null,null,null,null,null,null,null,null,null,0]
[null,"",null,null,null,null,null,null,null,null,null,{"$f":"SUM(F259:K259)","v":0}]
[null,{"$f":"IF(C260>0.005,B259+1,\"\")","v":""},null,null,null,null,null,null,null,null,null,0]
[null,"",null,null,null,null,null,null,null,null,null,0]
[null,"",null,null,null,null,null,null,null,null,null,0]
[null,"",null,null,null,null,null,null,null,null,null,0]
[null,"",null,null,null,null,null,null,null,null,null,0]
[null,"",null,null,null,null,null,null,null,null,null,0]
[null,"",null,null,null,null,null,null,null,null,null,0]
[null,"",null,null,null,null,null,null,null,null,null,0]
[null,"",null,null,null,null,null,null,null,null,null,0]
[null,"",null,null,null,null,null,null,null,null,null,0]
[null,"",null,null,null,null,null,null,null,null,null,0]
[null,"",null,null,null,null,null,null,null,null,null,0]
[null,"",null,null,null,null,null,null,null,null,null,0]
[null,"",null,null,null,null,null,null,null,null,null,0]
[null,"",null,null,null,null,null,null,null,null,null,0]
[null,"",null,null,null,null,null,null,null,null,null,0]
[null,"",null,null,null,null,null,null,null,null,null,0]
[null,"",null,null,null,null,null,null,null,null,null,0]
[null,"",null,null,null,null,null,null,null,null,null,0]
[null,"",null,null,null,null,null,null,null,null,null,0]
[null,"",null,null,null,null,null,null,null,null,null,0]
[null,"",null,null,null,null,null,null,null,null,null,0]
[null,"",null,null,null,null,null,null,null,null,null,0]
[null,"",null,null,null,null,null,null,null,null,null,0]
[null,"",null,null,null,null,null,null,null,null,null,0]
[null,"",null,null,null,null,null,null,null,null,null,0]
[null,"",null,null,null,null,null,null,null,null,null,0]
[null,"",null,null,null,null,null,null,null,null,null,0]
[null,"",null,null,null,null,null,null,null,null,null,0]
[null,"",null,null,null,null,null,null,null,null,null,0]
[null,"",null,null,null,null,null,null,null,null,null,0]
[null,"",null,null,null,null,null,null,null,null,null,0]
[null,"",null,null,null,null,null,null,null,null,null,0]
[null,"",null,null,null,null,null,null,null,null,null,0]
[null,"",null,null,null,null,null,null,null,null,null,0]
[null,"",null,null,null,null,null,null,null,null,null,0]
[null,"",null,null,null,null,null,null,null,null,null,0]
[null,"",null,null,null,null,null,null,null,null,null,0]
[null,"",null,null,null,null,null,null,null,null,null,0]
[null,"",null,null,null,null,null,null,null,null,null,0]
[null,"",null,null,null,null,null,null,null,null,null,0]
[null,"",null,null,null,null,null,null,null,null,null,0]
[null,"",null,null,null,null,null,null,null,null,null,0]
[null,"",null,null,null,null,null,null,null,null,null,0]
[null,"",null,null,null,null,null,null,null,null,null,0]
[null,"",null,null,null,null,null,null,null,null,null,0]
[null,"",null,null,null,null,null,null,null,null,null,0]
[null,"",null,null,null,null,null,null,null,null,null,0]
[null,"",null,null,null,null,null,null,null,null,null,0]
[null,"",null,null,null,null,null,null,null,null,null,0]
[null,"",null,null,null,null,null,null,null,null,null,0]
[null,"",null,null,null,null,null,null,null,null,null,0]
[null,"",null,null,null,null,null,null,null,null,null,0]
[null,"",null,null,null,null,null,null,null,null,null,0]
[null,"",null,null,null,null,null,null,null,null,null,0]
[null,"",null,null,null,null,null,null,null,null,null,0]
[null,"",null,null,null,null,null,null,null,null,null,0]
[null,"",null,null,null,null,null,null,null,null,null,0]
[null,"",null,null,null,null,null,null,null,null,null,0]
[null,"",null,null,null,null,null,null,null,null,null,0]
[null,"",null,null,null,null,null,null,null,null,null,0]
[null,"",null,null,null,null,null,null,null,null,null,0]
[null,"",null,null,null,null,null,null,null,null,null,0]
[null,"",null,null,null,null,null,null,null,null,null,{"$f":"SUM(F323:K323)","v":0}]
[null,{"$f":"IF(C324>0.005,B323+1,\"\")","v":""},null,null,null,null,null,null,null,null,null,0]
[null,"",null,null,null,null,null,null,null,null,null,0]
[null,"",null,null,null,null,null,null,null,null,null,0]
[null,"",null,null,null,null,null,null,null,null,null,0]
[null,"",null,null,null,null,null,null,null,null,null,0]
[null,"",null,null,null,null,null,null,null,null,null,0]
[null,"",null,null,null,null,null,null,null,null,null,0]
[null,"",null,null,null,null,null,null,null,null,null,0]
[null,"",null,null,null,null,null,null,null,null,null,0]
[null,"",null,null,null,null,null,null,null,null,null,0]
[null,"",null,null,null,null,null,null,null,null,null,0]
[null,"",null,null,null,null,null,null,null,null,null,0]
[null,"",null,null,null,null,null,null,null,null,null,0]
[null,"",null,null,null,null,null,null,null,null,null,0]
[null,"",null,null,null,null,null,null,null,null,null,0]
[null,"",null,null,null,null,null,null,null,null,null,0]
[null,"",null,null,null,null,null,null,null,null,null,0]
[null,"",null,null,null,null,null,null,null,null,null,0]
[null,"",null,null,null,null,null,null,null,null,null,0]
[null,"",null,null,null,null,null,null,null,null,null,0]
[null,"",null,null,null,null,null,null,null,null,null,0]
[null,"",null,null,null,null,null,null,null,null,null,0]
[null,"",null,null,null,null,null,null,null,null,null,0]
[null,"",null,null,null,null,null,null,null,null,null,0]
[null,"",null,null,null,null,null,null,null,null,null,0]
[null,"",null,null,null,null,null,null,null,null,null,0]
[null,"",null,null,null,null,null,null,null,null,null,0]
[null,"",null,null,null,null,null,null,null,null,null,0]
[null,"",null,null,null,null,null,null,null,null,null,0]
[null,"",null,null,null,null,null,null,null,null,null,0]
[null,"",null,null,null,null,null,null,null,null,null,0]
[null,"",null,null,null,null,null,null,null,null,null,0]
[null,"",null,null,null,null,null,null,null,null,null,0]
[null,"",null,null,null,null,null,null,null,null,null,0]
[null,"",null,null,null,null,null,null,null,null,null,0]
[null,"",null,null,null,null,null,null,null,null,null,0]
[null,"",null,null,null,null,null,null,null,null,null,0]
[null,"",null,null,null,null,null,null,null,null,null,0]
[null,"",null,null,null,null,null,null,null,null,null,0]
[null,"",null,null,null,null,null,null,null,null,null,0]
[null,"",null,null,null,null,null,null,null,null,null,0]
[null,"",null,null,null,null,null,null,null,null,null,0]
[null,"",null,null,null,null,null,null,null,null,null,0]
[null,"",null,null,null,null,null,null,null,null,null,0]
[null,"",null,null,null,null,null,null,null,null,null,0]
[null,"",null,null,null,null,null,null,null,null,null,0]
[null,"",null,null,null,null,null,null,null,null,null,0]
[null,"",null,null,null,null,null,null,null,null,null,0]
[null,"",null,null,null,null,null,null,null,null,null,0]
[null,"",null,null,null,null,null,null,null,null,null,0]
[null,"",null,null,null,null,null,null,null,null,null,0]
[null,"",null,null,null,null,null,null,null,null,null,0]
[null,"",null,null,null,null,null,null,null,null,null,0]
[null,"",null,null,null,null,null,null,null,null,null,0]
[null,"",null,null,null,null,null,null,null,null,null,0]
[null,"",null,null,null,null,null,null,null,null,null,0]
[null,"",null,null,null,null,null,null,null,null,null,0]
[null,"",null,null,null,null,null,null,null,null,null,0]
[null,"",null,null,null,null,null,null,null,null,null,0]
[null,"",null,null,null,null,null,null,null,null,null,0]
[null,"",null,null,null,null,null,null,null,null,null,0]
[null,"",null,null,null,null,null,null,null,null,null,0]
[null,"",null,null,null,null,null,null,null,null,null,0]
[null,"",null,null,null,null,null,null,null,null,null,{"$f":"SUM(F387:K387)","v":0}]
[null,{"$f":"IF(C388>0.005,B387+1,\"\")","v":""},null,null,null,null,null,null,null,null,null,0]
[null,"",null,null,null,null,null,null,null,null,null,0]
[null,"",null,null,null,null,null,null,null,null,null,0]
[null,"",null,null,null,null,null,null,null,null,null,0]
[null,"",null,null,null,null,null,null,null,null,null,0]
[null,"",null,null,null,null,null,null,null,null,null,0]
[null,"",null,null,null,null,null,null,null,null,null,0]
[null,"",null,null,null,null,null,null,null,null,null,0]
[null,"",null,null,null,null,null,null,null,null,null,0]
[null,"",null,null,null,null,null,null,null,null,null,0]
[null,"",null,null,null,null,null,null,null,null,null,0]
[null,"",null,null,null,null,null,null,null,null,null,0]
[null,"",null,null,null,null,null,null,null,null,null,0]
[null,"",null,null,null,null,null,null,null,null,null,0]
[null,"",null,null,null,null,null,null,null,null,null,0]
[null,"",null,null,null,null,null,null,null,null,null,0]
[null,"",null,null,null,null,null,null,null,null,null,0]
[null,"",null,null,null,null,null,null,null,null,null,0]
[null,"",null,null,null,null,null,null,null,null,null,0]
[null,"",null,null,null,null,null,null,null,null,null,0]
[null,"",null,null,null,null,null,null,null,null,null,0]
[null,"",null,null,null,null,null,null,null,null,null,0]
[null,"",null,null,null,null,null,null,null,null,null,0]
[null,"",null,null,null,null,null,null,null,null,null,0]
[null,"",null,null,null,null,null,null,null,null,null,0]
[null,"",null,null,null,null,null,null,null,null,null,0]
[null,"",null,null,null,null,null,null,null,null,null,0]
[null,"",null,null,null,null,null,null,null,null,null,0]
[null,"",null,null,null,null,null,null,null,null,null,0]
[null,"",null,null,null,null,null,null,null,null,null,0]
[null,"",null,null,null,null,null,null,null,null,null,0]
[null,"",null,null,null,null,null,null,null,null,null,0]
[null,"",null,null,null,null,null,null,null,null,null,0]
[null,"",null,null,null,null,null,null,null,null,null,0]
[null,"",null,null,null,null,null,null,null,null,null,0]
[null,"",null,null,null,null,null,null,null,null,null,0]
[null,"",null,null,null,null,null,null,null,null,null,0]
[null,"",null,null,null,null,null,null,null,null,null,0]
[null,"",null,null,null,null,null,null,null,null,null,0]
[null,"",null,null,null,null,null,null,null,null,null,0]
[null,"",null,null,null,null,null,null,null,null,null,0]
[null,"",null,null,null,null,null,null,null,null,null,0]
[null,"",null,null,null,null,null,null,null,null,null,0]
[null,"",null,null,null,null,null,null,null,null,null,0]
[null,"",null,null,null,null,null,null,null,null,null,0]
[null,"",null,null,null,null,null,null,null,null,null,0]
[null,"",null,null,null,null,null,null,null,null,null,0]
[null,"",null,null,null,null,null,null,null,null,null,0]
[null,"",null,null,null,null,null,null,null,null,null,0]
[null,"",null,null,null,null,null,null,null,null,null,0]
[null,"",null,null,null,null,null,null,null,null,null,0]
[null,"",null,null,null,null,null,null,null,null,null,0]
[null,"",null,null,null,null,null,null,null,null,null,0]
[null,"",null,null,null,null,null,null,null,null,null,0]
[null,"",null,null,null,null,null,null,null,null,null,0]
[null,"",null,null,null,null,null,null,null,null,null,0]
[null,"",null,null,null,null,null,null,null,null,null,0]
[null,"",null,null,null,null,null,null,null,null,null,0]
[null,"",null,null,null,null,null,null,null,null,null,0]
[null,"",null,null,null,null,null,null,null,null,null,0]
[null,"",null,null,null,null,null,null,null,null,null,0]
[null,"",null,null,null,null,null,null,null,null,null,0]
[null,"",null,null,null,null,null,null,null,null,null,0]
[null,"",null,null,null,null,null,null,null,null,null,{"$f":"SUM(F451:K451)","v":0}]
[null,{"$f":"IF(C452>0.005,B451+1,\"\")","v":""},null,null,null,null,null,null,null,null,null,0]
[null,"",null,null,null,null,null,null,null,null,null,0]
[null,"",null,null,null,null,null,null,null,null,null,0]
[null,"",null,null,null,null,null,null,null,null,null,0]
[null,"",null,null,null,null,null,null,null,null,null,0]
[null,"",null,null,null,null,null,null,null,null,null,0]
[null,"",null,null,null,null,null,null,null,null,null,0]
[null,"",null,null,null,null,null,null,null,null,null,0]
[null,"",null,null,null,null,null,null,null,null,null,0]
[null,"",null,null,null,null,null,null,null,null,null,0]
[null,"",null,null,null,null,null,null,null,null,null,0]
[null,"",null,null,null,null,null,null,null,null,null,0]
[null,"",null,null,null,null,null,null,null,null,null,0]
[null,"",null,null,null,null,null,null,null,null,null,0]
[null,"",null,null,null,null,null,null,null,null,null,0]
[null,"",null,null,null,null,null,null,null,null,null,0]
[null,"",null,null,null,null,null,null,null,null,null,0]
[null,"",null,null,null,null,null,null,null,null,null,0]
[null,"",null,null,null,null,null,null,null,null,null,0]
[null,"",null,null,null,null,null,null,null,null,null,0]
[null,"",null,null,null,null,null,null,null,null,null,0]
[null,"",null,null,null,null,null,null,null,null,null,0]
[null,"",null,null,null,null,null,null,null,null,null,0]
[null,"",null,null,null,null,null,null,null,null,null,0]
[null,"",null,null,null,null,null,null,null,null,null,0]
[null,"",null,null,null,null,null,null,null,null,null,0]
[null,"",null,null,null,null,null,null,null,null,null,0]
[null,"",null,null,null,null,null,null,null,null,null,0]
[null,"",null,null,null,null,null,null,null,null,null,0]
[null,"",null,null,null,null,null,null,null,null,null,0]
[null,"",null,null,null,null,null,null,null,null,null,0]
[null,"",null,null,null,null,null,null,null,null,null,0]
[null,"",null,null,null,null,null,null,null,null,null,0]
[null,"",null,null,null,null,null,null,null,null,null,0]
[null,"",null,null,null,null,null,null,null,null,null,0]
[null,"",null,null,null,null,null,null,null,null,null,0]
[null,"",null,null,null,null,null,null,null,null,null,0]
[null,"",null,null,null,null,null,null,null,null,null,0]
[null,"",null,null,null,null,null,null,null,null,null,0]
[null,"",null,null,null,null,null,null,null,null,null,0]
[null,"",null,null,null,null,null,null,null,null,null,0]
[null,"",null,null,null,null,null,null,null,null,null,0]
[null,"",null,null,null,null,null,null,null,null,null,0]
[null,"",null,null,null,null,null,null,null,null,null,0]
[null,"",null,null,null,null,null,null,null,null,null,0]
[null,"",null,null,null,null,null,null,null,null,null,0]
[null,"",null,null,null,null,null,null,null,null,null,0]
[null,"",null,null,null,null,null,null,null,null,null,0]
[null,"",null,null,null,null,null,null,null,null,null,0]
[null,"",null,null,null,null,null,null,null,null,null,0]
[null,"",null,null,null,null,null,null,null,null,null,0]
[null,"",null,null,null,null,null,null,null,null,null,0]
[null,"",null,null,null,null,null,null,null,null,null,0]
[null,"",null,null,null,null,null,null,null,null,null,0]
[null,"",null,null,null,null,null,null,null,null,null,0]
[null,"",null,null,null,null,null,null,null,null,null,0]
[null,"",null,null,null,null,null,null,null,null,null,0]
[null,"",null,null,null,null,null,null,null,null,null,0]
[null,"",null,null,null,null,null,null,null,null,null,0]
[null,"",null,null,null,null,null,null,null,null,null,0]
[null,"",null,null,null,null,null,null,null,null,null,0]
[null,"",null,null,null,null,null,null,null,null,null,0]
[null,"",null,null,null,null,null,null,null,null,null,0]
[null,"",null,null,null,null,null,null,null,null,null,{"$f":"SUM(F515:K515)","v":0}]
[null,{"$f":"IF(C516>0.005,B515+1,\"\")","v":""},null,null,null,null,null,null,null,null,null,0]
[null,"",null,null,null,null,null,null,null,null,null,0]
[null,"",null,null,null,null,null,null,null,null,null,0]
[null,"",null,null,null,null,null,null,null,null,null,0]
[null,"",null,null,null,null,null,null,null,null,null,0]
[null,"",null,null,null,null,null,null,null,null,null,0]
[null,"",null,null,null,null,null,null,null,null,null,0]
[null,"",null,null,null,null,null,null,null,null,null,0]
[null,"",null,null,null,null,null,null,null,null,null,0]
[null,"",null,null,null,null,null,null,null,null,null,0]
[null,"",null,null,null,null,null,null,null,null,null,0]
[null,"",null,null,null,null,null,null,null,null,null,0]
[null,"",null,null,null,null,null,null,null,null,null,0]
[null,"",null,null,null,null,null,null,null,null,null,0]
[null,"",null,null,null,null,null,null,null,null,null,0]
[null,"",null,null,null,null,null,null,null,null,null,0]
[null,"",null,null,null,null,null,null,null,null,null,0]
[null,"",null,null,null,null,null,null,null,null,null,0]
[null,"",null,null,null,null,null,null,null,null,null,0]
[null,"",null,null,null,null,null,null,null,null,null,0]
[null,"",null,null,null,null,null,null,null,null,null,0]
[null,"",null,null,null,null,null,null,null,null,null,0]
[null,"",null,null,null,null,null,null,null,null,null,0]
[null,"",null,null,null,null,null,null,null,null,null,0]
[null,"",null,null,null,null,null,null,null,null,null,0]
[null,"",null,null,null,null,null,null,null,null,null,0]
[null,"",null,null,null,null,null,null,null,null,null,0]
[null,"",null,null,null,null,null,null,null,null,null,0]
[null,"",null,null,null,null,null,null,null,null,null,0]
[null,"",null,null,null,null,null,null,null,null,null,0]
[null,"",null,null,null,null,null,null,null,null,null,0]
[null,"",null,null,null,null,null,null,null,null,null,0]
[null,"",null,null,null,null,null,null,null,null,null,0]
[null,"",null,null,null,null,null,null,null,null,null,0]
[null,"",null,null,null,null,null,null,null,null,null,0]
[null,"",null,null,null,null,null,null,null,null,null,0]
[null,"",null,null,null,null,null,null,null,null,null,0]
[null,"",null,null,null,null,null,null,null,null,null,0]
[null,"",null,null,null,null,null,null,null,null,null,0]
[null,"",null,null,null,null,null,null,null,null,null,0]
[null,"",null,null,null,null,null,null,null,null,null,0]
[null,"",null,null,null,null,null,null,null,null,null,0]
[null,"",null,null,null,null,null,null,null,null,null,0]
[null,"",null,null,null,null,null,null,null,null,null,0]
[null,"",null,null,null,null,null,null,null,null,null,0]
[null,"",null,null,null,null,null,null,null,null,null,0]
[null,"",null,null,null,null,null,null,null,null,null,0]
[null,"",null,null,null,null,null,null,null,null,null,0]
[null,"",null,null,null,null,null,null,null,null,null,0]
[null,"",null,null,null,null,null,null,null,null,null,0]
[null,"",null,null,null,null,null,null,null,null,null,0]
[null,"",null,null,null,null,null,null,null,null,null,0]
[null,"",null,null,null,null,null,null,null,null,null,0]
[null,"",null,null,null,null,null,null,null,null,null,0]
[null,"",null,null,null,null,null,null,null,null,null,0]
[null,"",null,null,null,null,null,null,null,null,null,0]
[null,"",null,null,null,null,null,null,null,null,null,0]
[null,"",null,null,null,null,null,null,null,null,null,0]
[null,"",null,null,null,null,null,null,null,null,null,0]
[null,"",null,null,null,null,null,null,null,null,null,0]
[null,"",null,null,null,null,null,null,null,null,null,0]
[null,"",null,null,null,null,null,null,null,null,null,0]
[null,"",null,null,null,null,null,null,null,null,null,0]
[null,"",null,null,null,null,null,null,null,null,null,{"$f":"SUM(F579:K579)","v":0}]
[null,{"$f":"IF(C580>0.005,B579+1,\"\")","v":""},null,null,null,null,null,null,null,null,null,0]
[null,"",null,null,null,null,null,null,null,null,null,0]
[null,"",null,null,null,null,null,null,null,null,null,0]
[null,"",null,null,null,null,null,null,null,null,null,0]
[null,"",null,null,null,null,null,null,null,null,null,0]
[null,"",null,null,null,null,null,null,null,null,null,0]
[null,"",null,null,null,null,null,null,null,null,null,0]
[null,"",null,null,null,null,null,null,null,null,null,0]
[null,"",null,null,null,null,null,null,null,null,null,0]
[null,"",null,null,null,null,null,null,null,null,null,0]
[null,"",null,null,null,null,null,null,null,null,null,0]
[null,"",null,null,null,null,null,null,null,null,null,0]
[null,"",null,null,null,null,null,null,null,null,null,0]
[null,"",null,null,null,null,null,null,null,null,null,0]
[null,"",null,null,null,null,null,null,null,null,null,0]
[null,"",null,null,null,null,null,null,null,null,null,0]
[null,"",null,null,null,null,null,null,null,null,null,0]
[null,"",null,null,null,null,null,null,null,null,null,{"$f":"SUM(L3:L596)","v":0}]

{"sheet":"دورات تدريبية","index":3,"n_rows":600,"n_cols":12,"rows_kept":600,"cut":false,"hidden":false,"merged":[[0,9,0,10]]}
[null,null,"عدد المستحقين ",{"$f":"COUNT(B3:B599)","v":0},null,null,null,null,null,"الإجمالي",null,{"$f":"SUM(L600)","v":0}]
[null,"مسلسل","اسم الموظف ","الحساب البنكي ","اسم البنك ","الاستحقاق1","الاستحقاق2","الاستحقاق3","الاستحقاق4","الاستحقاق5","الاستحقاق6","الصافي "]
[null,{"$f":"IF(C3>0.005,1,\"\")","v":""},null,null,null,null,null,null,null,null,null,{"$f":"SUM(F3:K3)","v":0}]
[null,{"$f":"IF(C4>0.005,B3+1,\"\")","v":""},null,null,null,null,null,null,null,null,null,{"$f":"SUM(F4:K4)","v":0}]
[null,{"$f":"IF(C5>0.005,B4+1,\"\")","v":""},null,null,null,null,null,null,null,null,null,0]
[null,"",null,null,null,null,null,null,null,null,null,0]
[null,"",null,null,null,null,null,null,null,null,null,0]
[null,"",null,null,null,null,null,null,null,null,null,0]
[null,"",null,null,null,null,null,null,null,null,null,0]
[null,"",null,null,null,null,null,null,null,null,null,0]
[null,"",null,null,null,null,null,null,null,null,null,0]
[null,"",null,null,null,null,null,null,null,null,null,0]
[null,"",null,null,null,null,null,null,null,null,null,0]
[null,"",null,null,null,null,null,null,null,null,null,0]
[null,"",null,null,null,null,null,null,null,null,null,0]
[null,"",null,null,null,null,null,null,null,null,null,0]
[null,"",null,null,null,null,null,null,null,null,null,0]
[null,"",null,null,null,null,null,null,null,null,null,0]
[null,"",null,null,null,null,null,null,null,null,null,0]
[null,"",null,null,null,null,null,null,null,null,null,0]
[null,"",null,null,null,null,null,null,null,null,null,0]
[null,"",null,null,null,null,null,null,null,null,null,0]
[null,"",null,null,null,null,null,null,null,null,null,0]
[null,"",null,null,null,null,null,null,null,null,null,0]
[null,"",null,null,null,null,null,null,null,null,null,0]
[null,"",null,null,null,null,null,null,null,null,null,0]
[null,"",null,null,null,null,null,null,null,null,null,0]
[null,"",null,null,null,null,null,null,null,null,null,0]
[null,"",null,null,null,null,null,null,null,null,null,0]
[null,"",null,null,null,null,null,null,null,null,null,0]
[null,"",null,null,null,null,null,null,null,null,null,0]
[null,"",null,null,null,null,null,null,null,null,null,0]
[null,"",null,null,null,null,null,null,null,null,null,0]
[null,"",null,null,null,null,null,null,null,null,null,0]
[null,"",null,null,null,null,null,null,null,null,null,0]
[null,"",null,null,null,null,null,null,null,null,null,0]
[null,"",null,null,null,null,null,null,null,null,null,0]
[null,"",null,null,null,null,null,null,null,null,null,0]
[null,"",null,null,null,null,null,null,null,null,null,0]
[null,"",null,null,null,null,null,null,null,null,null,0]
[null,"",null,null,null,null,null,null,null,null,null,0]
[null,"",null,null,null,null,null,null,null,null,null,0]
[null,"",null,null,null,null,null,null,null,null,null,0]
[null,"",null,null,null,null,null,null,null,null,null,0]
[null,"",null,null,null,null,null,null,null,null,null,0]
[null,"",null,null,null,null,null,null,null,null,null,0]
[null,"",null,null,null,null,null,null,null,null,null,0]
[null,"",null,null,null,null,null,null,null,null,null,0]
[null,"",null,null,null,null,null,null,null,null,null,0]
[null,"",null,null,null,null,null,null,null,null,null,0]
[null,"",null,null,null,null,null,null,null,null,null,0]
[null,"",null,null,null,null,null,null,null,null,null,0]
[null,"",null,null,null,null,null,null,null,null,null,0]
[null,"",null,null,null,null,null,null,null,null,null,0]
[null,"",null,null,null,null,null,null,null,null,null,0]
[null,"",null,null,null,null,null,null,null,null,null,0]
[null,"",null,null,null,null,null,null,null,null,null,0]
[null,"",null,null,null,null,null,null,null,null,null,0]
[null,"",null,null,null,null,null,null,null,null,null,0]
[null,"",null,null,null,null,null,null,null,null,null,0]
[null,"",null,null,null,null,null,null,null,null,null,0]
[null,"",null,null,null,null,null,null,null,null,null,0]
[null,"",null,null,null,null,null,null,null,null,null,0]
[null,"",null,null,null,null,null,null,null,null,null,0]
[null,"",null,null,null,null,null,null,null,null,null,0]
[null,"",null,null,null,null,null,null,null,null,null,0]
[null,"",null,null,null,null,null,null,null,null,null,0]
[null,"",null,null,null,null,null,null,null,null,null,{"$f":"SUM(F68:K68)","v":0}]
[null,{"$f":"IF(C69>0.005,B68+1,\"\")","v":""},null,null,null,null,null,null,null,null,null,0]
[null,"",null,null,null,null,null,null,null,null,null,0]
[null,"",null,null,null,null,null,null,null,null,null,0]
[null,"",null,null,null,null,null,null,null,null,null,0]
[null,"",null,null,null,null,null,null,null,null,null,0]
[null,"",null,null,null,null,null,null,null,null,null,0]
[null,"",null,null,null,null,null,null,null,null,null,0]
[null,"",null,null,null,null,null,null,null,null,null,0]
[null,"",null,null,null,null,null,null,null,null,null,0]
[null,"",null,null,null,null,null,null,null,null,null,0]
[null,"",null,null,null,null,null,null,null,null,null,0]
[null,"",null,null,null,null,null,null,null,null,null,0]
[null,"",null,null,null,null,null,null,null,null,null,0]
[null,"",null,null,null,null,null,null,null,null,null,0]
[null,"",null,null,null,null,null,null,null,null,null,0]
[null,"",null,null,null,null,null,null,null,null,null,0]
[null,"",null,null,null,null,null,null,null,null,null,0]
[null,"",null,null,null,null,null,null,null,null,null,0]
[null,"",null,null,null,null,null,null,null,null,null,0]
[null,"",null,null,null,null,null,null,null,null,null,0]
[null,"",null,null,null,null,null,null,null,null,null,0]
[null,"",null,null,null,null,null,null,null,null,null,0]
[null,"",null,null,null,null,null,null,null,null,null,0]
[null,"",null,null,null,null,null,null,null,null,null,0]
[null,"",null,null,null,null,null,null,null,null,null,0]
[null,"",null,null,null,null,null,null,null,null,null,0]
[null,"",null,null,null,null,null,null,null,null,null,0]
[null,"",null,null,null,null,null,null,null,null,null,0]
[null,"",null,null,null,null,null,null,null,null,null,0]
[null,"",null,null,null,null,null,null,null,null,null,0]
[null,"",null,null,null,null,null,null,null,null,null,0]
[null,"",null,null,null,null,null,null,null,null,null,0]
[null,"",null,null,null,null,null,null,null,null,null,0]
[null,"",null,null,null,null,null,null,null,null,null,0]
[null,"",null,null,null,null,null,null,null,null,null,0]
[null,"",null,null,null,null,null,null,null,null,null,0]
[null,"",null,null,null,null,null,null,null,null,null,0]
[null,"",null,null,null,null,null,null,null,null,null,0]
[null,"",null,null,null,null,null,null,null,null,null,0]
[null,"",null,null,null,null,null,null,null,null,null,0]
[null,"",null,null,null,null,null,null,null,null,null,0]
[null,"",null,null,null,null,null,null,null,null,null,0]
[null,"",null,null,null,null,null,null,null,null,null,0]
[null,"",null,null,null,null,null,null,null,null,null,0]
[null,"",null,null,null,null,null,null,null,null,null,0]
[null,"",null,null,null,null,null,null,null,null,null,0]
[null,"",null,null,null,null,null,null,null,null,null,0]
[null,"",null,null,null,null,null,null,null,null,null,0]
[null,"",null,null,null,null,null,null,null,null,null,0]
[null,"",null,null,null,null,null,null,null,null,null,0]
[null,"",null,null,null,null,null,null,null,null,null,0]
[null,"",null,null,null,null,null,null,null,null,null,0]
[null,"",null,null,null,null,null,null,null,null,null,0]
[null,"",null,null,null,null,null,null,null,null,null,0]
[null,"",null,null,null,null,null,null,null,null,null,0]
[null,"",null,null,null,null,null,null,null,null,null,0]
[null,"",null,null,null,null,null,null,null,null,null,0]
[null,"",null,null,null,null,null,null,null,null,null,0]
[null,"",null,null,null,null,null,null,null,null,null,0]
[null,"",null,null,null,null,null,null,null,null,null,0]
[null,"",null,null,null,null,null,null,null,null,null,0]
[null,"",null,null,null,null,null,null,null,null,null,0]
[null,"",null,null,null,null,null,null,null,null,null,0]
[null,"",null,null,null,null,null,null,null,null,null,{"$f":"SUM(F132:K132)","v":0}]
[null,{"$f":"IF(C133>0.005,B132+1,\"\")","v":""},null,null,null,null,null,null,null,null,null,0]
[null,"",null,null,null,null,null,null,null,null,null,0]
[null,"",null,null,null,null,null,null,null,null,null,0]
[null,"",null,null,null,null,null,null,null,null,null,0]
[null,"",null,null,null,null,null,null,null,null,null,0]
[null,"",null,null,null,null,null,null,null,null,null,0]
[null,"",null,null,null,null,null,null,null,null,null,0]
[null,"",null,null,null,null,null,null,null,null,null,0]
[null,"",null,null,null,null,null,null,null,null,null,0]
[null,"",null,null,null,null,null,null,null,null,null,0]
[null,"",null,null,null,null,null,null,null,null,null,0]
[null,"",null,null,null,null,null,null,null,null,null,0]
[null,"",null,null,null,null,null,null,null,null,null,0]
[null,"",null,null,null,null,null,null,null,null,null,0]
[null,"",null,null,null,null,null,null,null,null,null,0]
[null,"",null,null,null,null,null,null,null,null,null,0]
[null,"",null,null,null,null,null,null,null,null,null,0]
[null,"",null,null,null,null,null,null,null,null,null,0]
[null,"",null,null,null,null,null,null,null,null,null,0]
[null,"",null,null,null,null,null,null,null,null,null,0]
[null,"",null,null,null,null,null,null,null,null,null,0]
[null,"",null,null,null,null,null,null,null,null,null,0]
[null,"",null,null,null,null,null,null,null,null,null,0]
[null,"",null,null,null,null,null,null,null,null,null,0]
[null,"",null,null,null,null,null,null,null,null,null,0]
[null,"",null,null,null,null,null,null,null,null,null,0]
[null,"",null,null,null,null,null,null,null,null,null,0]
[null,"",null,null,null,null,null,null,null,null,null,0]
[null,"",null,null,null,null,null,null,null,null,null,0]
[null,"",null,null,null,null,null,null,null,null,null,0]
[null,"",null,null,null,null,null,null,null,null,null,0]
[null,"",null,null,null,null,null,null,null,null,null,0]
[null,"",null,null,null,null,null,null,null,null,null,0]
[null,"",null,null,null,null,null,null,null,null,null,0]
[null,"",null,null,null,null,null,null,null,null,null,0]
[null,"",null,null,null,null,null,null,null,null,null,0]
[null,"",null,null,null,null,null,null,null,null,null,0]
[null,"",null,null,null,null,null,null,null,null,null,0]
[null,"",null,null,null,null,null,null,null,null,null,0]
[null,"",null,null,null,null,null,null,null,null,null,0]
[null,"",null,null,null,null,null,null,null,null,null,0]
[null,"",null,null,null,null,null,null,null,null,null,0]
[null,"",null,null,null,null,null,null,null,null,null,0]
[null,"",null,null,null,null,null,null,null,null,null,0]
[null,"",null,null,null,null,null,null,null,null,null,0]
[null,"",null,null,null,null,null,null,null,null,null,0]
[null,"",null,null,null,null,null,null,null,null,null,0]
[null,"",null,null,null,null,null,null,null,null,null,0]
[null,"",null,null,null,null,null,null,null,null,null,0]
[null,"",null,null,null,null,null,null,null,null,null,0]
[null,"",null,null,null,null,null,null,null,null,null,0]
[null,"",null,null,null,null,null,null,null,null,null,0]
[null,"",null,null,null,null,null,null,null,null,null,0]
[null,"",null,null,null,null,null,null,null,null,null,0]
[null,"",null,null,null,null,null,null,null,null,null,0]
[null,"",null,null,null,null,null,null,null,null,null,0]
[null,"",null,null,null,null,null,null,null,null,null,0]
[null,"",null,null,null,null,null,null,null,null,null,0]
[null,"",null,null,null,null,null,null,null,null,null,0]
[null,"",null,null,null,null,null,null,null,null,null,0]
[null,"",null,null,null,null,null,null,null,null,null,0]
[null,"",null,null,null,null,null,null,null,null,null,0]
[null,"",null,null,null,null,null,null,null,null,null,0]
[null,"",null,null,null,null,null,null,null,null,null,{"$f":"SUM(F196:K196)","v":0}]
[null,{"$f":"IF(C197>0.005,B196+1,\"\")","v":""},null,null,null,null,null,null,null,null,null,0]
[null,"",null,null,null,null,null,null,null,null,null,0]
[null,"",null,null,null,null,null,null,null,null,null,0]
[null,"",null,null,null,null,null,null,null,null,null,0]
[null,"",null,null,null,null,null,null,null,null,null,0]
[null,"",null,null,null,null,null,null,null,null,null,0]
[null,"",null,null,null,null,null,null,null,null,null,0]
[null,"",null,null,null,null,null,null,null,null,null,0]
[null,"",null,null,null,null,null,null,null,null,null,0]
[null,"",null,null,null,null,null,null,null,null,null,0]
[null,"",null,null,null,null,null,null,null,null,null,0]
[null,"",null,null,null,null,null,null,null,null,null,0]
[null,"",null,null,null,null,null,null,null,null,null,0]
[null,"",null,null,null,null,null,null,null,null,null,0]
[null,"",null,null,null,null,null,null,null,null,null,0]
[null,"",null,null,null,null,null,null,null,null,null,0]
[null,"",null,null,null,null,null,null,null,null,null,0]
[null,"",null,null,null,null,null,null,null,null,null,0]
[null,"",null,null,null,null,null,null,null,null,null,0]
[null,"",null,null,null,null,null,null,null,null,null,0]
[null,"",null,null,null,null,null,null,null,null,null,0]
[null,"",null,null,null,null,null,null,null,null,null,0]
[null,"",null,null,null,null,null,null,null,null,null,0]
[null,"",null,null,null,null,null,null,null,null,null,0]
[null,"",null,null,null,null,null,null,null,null,null,0]
[null,"",null,null,null,null,null,null,null,null,null,0]
[null,"",null,null,null,null,null,null,null,null,null,0]
[null,"",null,null,null,null,null,null,null,null,null,0]
[null,"",null,null,null,null,null,null,null,null,null,0]
[null,"",null,null,null,null,null,null,null,null,null,0]
[null,"",null,null,null,null,null,null,null,null,null,0]
[null,"",null,null,null,null,null,null,null,null,null,0]
[null,"",null,null,null,null,null,null,null,null,null,0]
[null,"",null,null,null,null,null,null,null,null,null,0]
[null,"",null,null,null,null,null,null,null,null,null,0]
[null,"",null,null,null,null,null,null,null,null,null,0]
[null,"",null,null,null,null,null,null,null,null,null,0]
[null,"",null,null,null,null,null,null,null,null,null,0]
[null,"",null,null,null,null,null,null,null,null,null,0]
[null,"",null,null,null,null,null,null,null,null,null,0]
[null,"",null,null,null,null,null,null,null,null,null,0]
[null,"",null,null,null,null,null,null,null,null,null,0]
[null,"",null,null,null,null,null,null,null,null,null,0]
[null,"",null,null,null,null,null,null,null,null,null,0]
[null,"",null,null,null,null,null,null,null,null,null,0]
[null,"",null,null,null,null,null,null,null,null,null,0]
[null,"",null,null,null,null,null,null,null,null,null,0]
[null,"",null,null,null,null,null,null,null,null,null,0]
[null,"",null,null,null,null,null,null,null,null,null,0]
[null,"",null,null,null,null,null,null,null,null,null,0]
[null,"",null,null,null,null,null,null,null,null,null,0]
[null,"",null,null,null,null,null,null,null,null,null,0]
[null,"",null,null,null,null,null,null,null,null,null,0]
[null,"",null,null,null,null,null,null,null,null,null,0]
[null,"",null,null,null,null,null,null,null,null,null,0]
[null,"",null,null,null,null,null,null,null,null,null,0]
[null,"",null,null,null,null,null,null,null,null,null,0]
[null,"",null,null,null,null,null,null,null,null,null,0]
[null,"",null,null,null,null,null,null,null,null,null,0]
[null,"",null,null,null,null,null,null,null,null,null,0]
[null,"",null,null,null,null,null,null,null,null,null,0]
[null,"",null,null,null,null,null,null,null,null,null,0]
[null,"",null,null,null,null,null,null,null,null,null,0]
[null,"",null,null,null,null,null,null,null,null,null,{"$f":"SUM(F260:K260)","v":0}]
[null,{"$f":"IF(C261>0.005,B260+1,\"\")","v":""},null,null,null,null,null,null,null,null,null,0]
[null,"",null,null,null,null,null,null,null,null,null,0]
[null,"",null,null,null,null,null,null,null,null,null,0]
[null,"",null,null,null,null,null,null,null,null,null,0]
[null,"",null,null,null,null,null,null,null,null,null,0]
[null,"",null,null,null,null,null,null,null,null,null,0]
[null,"",null,null,null,null,null,null,null,null,null,0]
[null,"",null,null,null,null,null,null,null,null,null,0]
[null,"",null,null,null,null,null,null,null,null,null,0]
[null,"",null,null,null,null,null,null,null,null,null,0]
[null,"",null,null,null,null,null,null,null,null,null,0]
[null,"",null,null,null,null,null,null,null,null,null,0]
[null,"",null,null,null,null,null,null,null,null,null,0]
[null,"",null,null,null,null,null,null,null,null,null,0]
[null,"",null,null,null,null,null,null,null,null,null,0]
[null,"",null,null,null,null,null,null,null,null,null,0]
[null,"",null,null,null,null,null,null,null,null,null,0]
[null,"",null,null,null,null,null,null,null,null,null,0]
[null,"",null,null,null,null,null,null,null,null,null,0]
[null,"",null,null,null,null,null,null,null,null,null,0]
[null,"",null,null,null,null,null,null,null,null,null,0]
[null,"",null,null,null,null,null,null,null,null,null,0]
[null,"",null,null,null,null,null,null,null,null,null,0]
[null,"",null,null,null,null,null,null,null,null,null,0]
[null,"",null,null,null,null,null,null,null,null,null,0]
[null,"",null,null,null,null,null,null,null,null,null,0]
[null,"",null,null,null,null,null,null,null,null,null,0]
[null,"",null,null,null,null,null,null,null,null,null,0]
[null,"",null,null,null,null,null,null,null,null,null,0]
[null,"",null,null,null,null,null,null,null,null,null,0]
[null,"",null,null,null,null,null,null,null,null,null,0]
[null,"",null,null,null,null,null,null,null,null,null,0]
[null,"",null,null,null,null,null,null,null,null,null,0]
[null,"",null,null,null,null,null,null,null,null,null,0]
[null,"",null,null,null,null,null,null,null,null,null,0]
[null,"",null,null,null,null,null,null,null,null,null,0]
[null,"",null,null,null,null,null,null,null,null,null,0]
[null,"",null,null,null,null,null,null,null,null,null,0]
[null,"",null,null,null,null,null,null,null,null,null,0]
[null,"",null,null,null,null,null,null,null,null,null,0]
[null,"",null,null,null,null,null,null,null,null,null,0]
[null,"",null,null,null,null,null,null,null,null,null,0]
[null,"",null,null,null,null,null,null,null,null,null,0]
[null,"",null,null,null,null,null,null,null,null,null,0]
[null,"",null,null,null,null,null,null,null,null,null,0]
[null,"",null,null,null,null,null,null,null,null,null,0]
[null,"",null,null,null,null,null,null,null,null,null,0]
[null,"",null,null,null,null,null,null,null,null,null,0]
[null,"",null,null,null,null,null,null,null,null,null,0]
[null,"",null,null,null,null,null,null,null,null,null,0]
[null,"",null,null,null,null,null,null,null,null,null,0]
[null,"",null,null,null,null,null,null,null,null,null,0]
[null,"",null,null,null,null,null,null,null,null,null,0]
[null,"",null,null,null,null,null,null,null,null,null,0]
[null,"",null,null,null,null,null,null,null,null,null,0]
[null,"",null,null,null,null,null,null,null,null,null,0]
[null,"",null,null,null,null,null,null,null,null,null,0]
[null,"",null,null,null,null,null,null,null,null,null,0]
[null,"",null,null,null,null,null,null,null,null,null,0]
[null,"",null,null,null,null,null,null,null,null,null,0]
[null,"",null,null,null,null,null,null,null,null,null,0]
[null,"",null,null,null,null,null,null,null,null,null,0]
[null,"",null,null,null,null,null,null,null,null,null,0]
[null,"",null,null,null,null,null,null,null,null,null,{"$f":"SUM(F324:K324)","v":0}]
[null,{"$f":"IF(C325>0.005,B324+1,\"\")","v":""},null,null,null,null,null,null,null,null,null,0]
[null,"",null,null,null,null,null,null,null,null,null,0]
[null,"",null,null,null,null,null,null,null,null,null,0]
[null,"",null,null,null,null,null,null,null,null,null,0]
[null,"",null,null,null,null,null,null,null,null,null,0]
[null,"",null,null,null,null,null,null,null,null,null,0]
[null,"",null,null,null,null,null,null,null,null,null,0]
[null,"",null,null,null,null,null,null,null,null,null,0]
[null,"",null,null,null,null,null,null,null,null,null,0]
[null,"",null,null,null,null,null,null,null,null,null,0]
[null,"",null,null,null,null,null,null,null,null,null,0]
[null,"",null,null,null,null,null,null,null,null,null,0]
[null,"",null,null,null,null,null,null,null,null,null,0]
[null,"",null,null,null,null,null,null,null,null,null,0]
[null,"",null,null,null,null,null,null,null,null,null,0]
[null,"",null,null,null,null,null,null,null,null,null,0]
[null,"",null,null,null,null,null,null,null,null,null,0]
[null,"",null,null,null,null,null,null,null,null,null,0]
[null,"",null,null,null,null,null,null,null,null,null,0]
[null,"",null,null,null,null,null,null,null,null,null,0]
[null,"",null,null,null,null,null,null,null,null,null,0]
[null,"",null,null,null,null,null,null,null,null,null,0]
[null,"",null,null,null,null,null,null,null,null,null,0]
[null,"",null,null,null,null,null,null,null,null,null,0]
[null,"",null,null,null,null,null,null,null,null,null,0]
[null,"",null,null,null,null,null,null,null,null,null,0]
[null,"",null,null,null,null,null,null,null,null,null,0]
[null,"",null,null,null,null,null,null,null,null,null,0]
[null,"",null,null,null,null,null,null,null,null,null,0]
[null,"",null,null,null,null,null,null,null,null,null,0]
[null,"",null,null,null,null,null,null,null,null,null,0]
[null,"",null,null,null,null,null,null,null,null,null,0]
[null,"",null,null,null,null,null,null,null,null,null,0]
[null,"",null,null,null,null,null,null,null,null,null,0]
[null,"",null,null,null,null,null,null,null,null,null,0]
[null,"",null,null,null,null,null,null,null,null,null,0]
[null,"",null,null,null,null,null,null,null,null,null,0]
[null,"",null,null,null,null,null,null,null,null,null,0]
[null,"",null,null,null,null,null,null,null,null,null,0]
[null,"",null,null,null,null,null,null,null,null,null,0]
[null,"",null,null,null,null,null,null,null,null,null,0]
[null,"",null,null,null,null,null,null,null,null,null,0]
[null,"",null,null,null,null,null,null,null,null,null,0]
[null,"",null,null,null,null,null,null,null,null,null,0]
[null,"",null,null,null,null,null,null,null,null,null,0]
[null,"",null,null,null,null,null,null,null,null,null,0]
[null,"",null,null,null,null,null,null,null,null,null,0]
[null,"",null,null,null,null,null,null,null,null,null,0]
[null,"",null,null,null,null,null,null,null,null,null,0]
[null,"",null,null,null,null,null,null,null,null,null,0]
[null,"",null,null,null,null,null,null,null,null,null,0]
[null,"",null,null,null,null,null,null,null,null,null,0]
[null,"",null,null,null,null,null,null,null,null,null,0]
[null,"",null,null,null,null,null,null,null,null,null,0]
[null,"",null,null,null,null,null,null,null,null,null,0]
[null,"",null,null,null,null,null,null,null,null,null,0]
[null,"",null,null,null,null,null,null,null,null,null,0]
[null,"",null,null,null,null,null,null,null,null,null,0]
[null,"",null,null,null,null,null,null,null,null,null,0]
[null,"",null,null,null,null,null,null,null,null,null,0]
[null,"",null,null,null,null,null,null,null,null,null,0]
[null,"",null,null,null,null,null,null,null,null,null,0]
[null,"",null,null,null,null,null,null,null,null,null,0]
[null,"",null,null,null,null,null,null,null,null,null,{"$f":"SUM(F388:K388)","v":0}]
[null,{"$f":"IF(C389>0.005,B388+1,\"\")","v":""},null,null,null,null,null,null,null,null,null,0]
[null,"",null,null,null,null,null,null,null,null,null,0]
[null,"",null,null,null,null,null,null,null,null,null,0]
[null,"",null,null,null,null,null,null,null,null,null,0]
[null,"",null,null,null,null,null,null,null,null,null,0]
[null,"",null,null,null,null,null,null,null,null,null,0]
[null,"",null,null,null,null,null,null,null,null,null,0]
[null,"",null,null,null,null,null,null,null,null,null,0]
[null,"",null,null,null,null,null,null,null,null,null,0]
[null,"",null,null,null,null,null,null,null,null,null,0]
[null,"",null,null,null,null,null,null,null,null,null,0]
[null,"",null,null,null,null,null,null,null,null,null,0]
[null,"",null,null,null,null,null,null,null,null,null,0]
[null,"",null,null,null,null,null,null,null,null,null,0]
[null,"",null,null,null,null,null,null,null,null,null,0]
[null,"",null,null,null,null,null,null,null,null,null,0]
[null,"",null,null,null,null,null,null,null,null,null,0]
[null,"",null,null,null,null,null,null,null,null,null,0]
[null,"",null,null,null,null,null,null,null,null,null,0]
[null,"",null,null,null,null,null,null,null,null,null,0]
[null,"",null,null,null,null,null,null,null,null,null,0]
[null,"",null,null,null,null,null,null,null,null,null,0]
[null,"",null,null,null,null,null,null,null,null,null,0]
[null,"",null,null,null,null,null,null,null,null,null,0]
[null,"",null,null,null,null,null,null,null,null,null,0]
[null,"",null,null,null,null,null,null,null,null,null,0]
[null,"",null,null,null,null,null,null,null,null,null,0]
[null,"",null,null,null,null,null,null,null,null,null,0]
[null,"",null,null,null,null,null,null,null,null,null,0]
[null,"",null,null,null,null,null,null,null,null,null,0]
[null,"",null,null,null,null,null,null,null,null,null,0]
[null,"",null,null,null,null,null,null,null,null,null,0]
[null,"",null,null,null,null,null,null,null,null,null,0]
[null,"",null,null,null,null,null,null,null,null,null,0]
[null,"",null,null,null,null,null,null,null,null,null,0]
[null,"",null,null,null,null,null,null,null,null,null,0]
[null,"",null,null,null,null,null,null,null,null,null,0]
[null,"",null,null,null,null,null,null,null,null,null,0]
[null,"",null,null,null,null,null,null,null,null,null,0]
[null,"",null,null,null,null,null,null,null,null,null,0]
[null,"",null,null,null,null,null,null,null,null,null,0]
[null,"",null,null,null,null,null,null,null,null,null,0]
[null,"",null,null,null,null,null,null,null,null,null,0]
[null,"",null,null,null,null,null,null,null,null,null,0]
[null,"",null,null,null,null,null,null,null,null,null,0]
[null,"",null,null,null,null,null,null,null,null,null,0]
[null,"",null,null,null,null,null,null,null,null,null,0]
[null,"",null,null,null,null,null,null,null,null,null,0]
[null,"",null,null,null,null,null,null,null,null,null,0]
[null,"",null,null,null,null,null,null,null,null,null,0]
[null,"",null,null,null,null,null,null,null,null,null,0]
[null,"",null,null,null,null,null,null,null,null,null,0]
[null,"",null,null,null,null,null,null,null,null,null,0]
[null,"",null,null,null,null,null,null,null,null,null,0]
[null,"",null,null,null,null,null,null,null,null,null,0]
[null,"",null,null,null,null,null,null,null,null,null,0]
[null,"",null,null,null,null,null,null,null,null,null,0]
[null,"",null,null,null,null,null,null,null,null,null,0]
[null,"",null,null,null,null,null,null,null,null,null,0]
[null,"",null,null,null,null,null,null,null,null,null,0]
[null,"",null,null,null,null,null,null,null,null,null,0]
[null,"",null,null,null,null,null,null,null,null,null,0]
[null,"",null,null,null,null,null,null,null,null,null,0]
[null,"",null,null,null,null,null,null,null,null,null,{"$f":"SUM(F452:K452)","v":0}]
[null,{"$f":"IF(C453>0.005,B452+1,\"\")","v":""},null,null,null,null,null,null,null,null,null,0]
[null,"",null,null,null,null,null,null,null,null,null,0]
[null,"",null,null,null,null,null,null,null,null,null,0]
[null,"",null,null,null,null,null,null,null,null,null,0]
[null,"",null,null,null,null,null,null,null,null,null,0]
[null,"",null,null,null,null,null,null,null,null,null,0]
[null,"",null,null,null,null,null,null,null,null,null,0]
[null,"",null,null,null,null,null,null,null,null,null,0]
[null,"",null,null,null,null,null,null,null,null,null,0]
[null,"",null,null,null,null,null,null,null,null,null,0]
[null,"",null,null,null,null,null,null,null,null,null,0]
[null,"",null,null,null,null,null,null,null,null,null,0]
[null,"",null,null,null,null,null,null,null,null,null,0]
[null,"",null,null,null,null,null,null,null,null,null,0]
[null,"",null,null,null,null,null,null,null,null,null,0]
[null,"",null,null,null,null,null,null,null,null,null,0]
[null,"",null,null,null,null,null,null,null,null,null,0]
[null,"",null,null,null,null,null,null,null,null,null,0]
[null,"",null,null,null,null,null,null,null,null,null,0]
[null,"",null,null,null,null,null,null,null,null,null,0]
[null,"",null,null,null,null,null,null,null,null,null,0]
[null,"",null,null,null,null,null,null,null,null,null,0]
[null,"",null,null,null,null,null,null,null,null,null,0]
[null,"",null,null,null,null,null,null,null,null,null,0]
[null,"",null,null,null,null,null,null,null,null,null,0]
[null,"",null,null,null,null,null,null,null,null,null,0]
[null,"",null,null,null,null,null,null,null,null,null,0]
[null,"",null,null,null,null,null,null,null,null,null,0]
[null,"",null,null,null,null,null,null,null,null,null,0]
[null,"",null,null,null,null,null,null,null,null,null,0]
[null,"",null,null,null,null,null,null,null,null,null,0]
[null,"",null,null,null,null,null,null,null,null,null,0]
[null,"",null,null,null,null,null,null,null,null,null,0]
[null,"",null,null,null,null,null,null,null,null,null,0]
[null,"",null,null,null,null,null,null,null,null,null,0]
[null,"",null,null,null,null,null,null,null,null,null,0]
[null,"",null,null,null,null,null,null,null,null,null,0]
[null,"",null,null,null,null,null,null,null,null,null,0]
[null,"",null,null,null,null,null,null,null,null,null,0]
[null,"",null,null,null,null,null,null,null,null,null,0]
[null,"",null,null,null,null,null,null,null,null,null,0]
[null,"",null,null,null,null,null,null,null,null,null,0]
[null,"",null,null,null,null,null,null,null,null,null,0]
[null,"",null,null,null,null,null,null,null,null,null,0]
[null,"",null,null,null,null,null,null,null,null,null,0]
[null,"",null,null,null,null,null,null,null,null,null,0]
[null,"",null,null,null,null,null,null,null,null,null,0]
[null,"",null,null,null,null,null,null,null,null,null,0]
[null,"",null,null,null,null,null,null,null,null,null,0]
[null,"",null,null,null,null,null,null,null,null,null,0]
[null,"",null,null,null,null,null,null,null,null,null,0]
[null,"",null,null,null,null,null,null,null,null,null,0]
[null,"",null,null,null,null,null,null,null,null,null,0]
[null,"",null,null,null,null,null,null,null,null,null,0]
[null,"",null,null,null,null,null,null,null,null,null,0]
[null,"",null,null,null,null,null,null,null,null,null,0]
[null,"",null,null,null,null,null,null,null,null,null,0]
[null,"",null,null,null,null,null,null,null,null,null,0]
[null,"",null,null,null,null,null,null,null,null,null,0]
[null,"",null,null,null,null,null,null,null,null,null,0]
[null,"",null,null,null,null,null,null,null,null,null,0]
[null,"",null,null,null,null,null,null,null,null,null,0]
[null,"",null,null,null,null,null,null,null,null,null,0]
[null,"",null,null,null,null,null,null,null,null,null,{"$f":"SUM(F516:K516)","v":0}]
[null,{"$f":"IF(C517>0.005,B516+1,\"\")","v":""},null,null,null,null,null,null,null,null,null,0]
[null,"",null,null,null,null,null,null,null,null,null,0]
[null,"",null,null,null,null,null,null,null,null,null,0]
[null,"",null,null,null,null,null,null,null,null,null,0]
[null,"",null,null,null,null,null,null,null,null,null,0]
[null,"",null,null,null,null,null,null,null,null,null,0]
[null,"",null,null,null,null,null,null,null,null,null,0]
[null,"",null,null,null,null,null,null,null,null,null,0]
[null,"",null,null,null,null,null,null,null,null,null,0]
[null,"",null,null,null,null,null,null,null,null,null,0]
[null,"",null,null,null,null,null,null,null,null,null,0]
[null,"",null,null,null,null,null,null,null,null,null,0]
[null,"",null,null,null,null,null,null,null,null,null,0]
[null,"",null,null,null,null,null,null,null,null,null,0]
[null,"",null,null,null,null,null,null,null,null,null,0]
[null,"",null,null,null,null,null,null,null,null,null,0]
[null,"",null,null,null,null,null,null,null,null,null,0]
[null,"",null,null,null,null,null,null,null,null,null,0]
[null,"",null,null,null,null,null,null,null,null,null,0]
[null,"",null,null,null,null,null,null,null,null,null,0]
[null,"",null,null,null,null,null,null,null,null,null,0]
[null,"",null,null,null,null,null,null,null,null,null,0]
[null,"",null,null,null,null,null,null,null,null,null,0]
[null,"",null,null,null,null,null,null,null,null,null,0]
[null,"",null,null,null,null,null,null,null,null,null,0]
[null,"",null,null,null,null,null,null,null,null,null,0]
[null,"",null,null,null,null,null,null,null,null,null,0]
[null,"",null,null,null,null,null,null,null,null,null,0]
[null,"",null,null,null,null,null,null,null,null,null,0]
[null,"",null,null,null,null,null,null,null,null,null,0]
[null,"",null,null,null,null,null,null,null,null,null,0]
[null,"",null,null,null,null,null,null,null,null,null,0]
[null,"",null,null,null,null,null,null,null,null,null,0]
[null,"",null,null,null,null,null,null,null,null,null,0]
[null,"",null,null,null,null,null,null,null,null,null,0]
[null,"",null,null,null,null,null,null,null,null,null,0]
[null,"",null,null,null,null,null,null,null,null,null,0]
[null,"",null,null,null,null,null,null,null,null,null,0]
[null,"",null,null,null,null,null,null,null,null,null,0]
[null,"",null,null,null,null,null,null,null,null,null,0]
[null,"",null,null,null,null,null,null,null,null,null,0]
[null,"",null,null,null,null,null,null,null,null,null,0]
[null,"",null,null,null,null,null,null,null,null,null,0]
[null,"",null,null,null,null,null,null,null,null,null,0]
[null,"",null,null,null,null,null,null,null,null,null,0]
[null,"",null,null,null,null,null,null,null,null,null,0]
[null,"",null,null,null,null,null,null,null,null,null,0]
[null,"",null,null,null,null,null,null,null,null,null,0]
[null,"",null,null,null,null,null,null,null,null,null,0]
[null,"",null,null,null,null,null,null,null,null,null,0]
[null,"",null,null,null,null,null,null,null,null,null,0]
[null,"",null,null,null,null,null,null,null,null,null,0]
[null,"",null,null,null,null,null,null,null,null,null,0]
[null,"",null,null,null,null,null,null,null,null,null,0]
[null,"",null,null,null,null,null,null,null,null,null,0]
[null,"",null,null,null,null,null,null,null,null,null,0]
[null,"",null,null,null,null,null,null,null,null,null,0]
[null,"",null,null,null,null,null,null,null,null,null,0]
[null,"",null,null,null,null,null,null,null,null,null,0]
[null,"",null,null,null,null,null,null,null,null,null,0]
[null,"",null,null,null,null,null,null,null,null,null,0]
[null,"",null,null,null,null,null,null,null,null,null,0]
[null,"",null,null,null,null,null,null,null,null,null,0]
[null,"",null,null,null,null,null,null,null,null,null,{"$f":"SUM(F580:K580)","v":0}]
[null,{"$f":"IF(C581>0.005,B580+1,\"\")","v":""},null,null,null,null,null,null,null,null,null,0]
[null,"",null,null,null,null,null,null,null,null,null,0]
[null,"",null,null,null,null,null,null,null,null,null,0]
[null,"",null,null,null,null,null,null,null,null,null,0]
[null,"",null,null,null,null,null,null,null,null,null,0]
[null,"",null,null,null,null,null,null,null,null,null,0]
[null,"",null,null,null,null,null,null,null,null,null,0]
[null,"",null,null,null,null,null,null,null,null,null,0]
[null,"",null,null,null,null,null,null,null,null,null,0]
[null,"",null,null,null,null,null,null,null,null,null,0]
[null,"",null,null,null,null,null,null,null,null,null,0]
[null,"",null,null,null,null,null,null,null,null,null,0]
[null,"",null,null,null,null,null,null,null,null,null,0]
[null,"",null,null,null,null,null,null,null,null,null,0]
[null,"",null,null,null,null,null,null,null,null,null,0]
[null,"",null,null,null,null,null,null,null,null,null,0]
[null,"",null,null,null,null,null,null,null,null,null,0]
[null,"",null,null,null,null,null,null,null,null,null,0]
[null,"",null,null,null,null,null,null,null,null,null,0]
[null,"",null,null,null,null,null,null,null,null,null,{"$f":"SUM(L3:L599)","v":0}]

{"sheet":"عيد الفطر","index":4,"n_rows":600,"n_cols":12,"rows_kept":600,"cut":false,"hidden":false,"merged":[[0,9,0,10]]}
[null,null,"عدد المستحقين ",{"$f":"COUNT(B3:B599)","v":0},null,null,null,null,null,"الإجمالي",null,{"$f":"SUM(L600)","v":0}]
[null,"مسلسل","اسم الموظف ","الحساب البنكي ","اسم البنك ","الاستحقاق1","الاستحقاق2","الاستحقاق3","الاستحقاق4","الاستحقاق5","الاستحقاق6","الصافي "]
[null,{"$f":"IF(C3>0.005,1,\"\")","v":""},null,null,null,null,null,null,null,null,null,{"$f":"SUM(F3:K3)","v":0}]
[null,{"$f":"IF(C4>0.005,B3+1,\"\")","v":""},null,null,null,null,null,null,null,null,null,{"$f":"SUM(F4:K4)","v":0}]
[null,{"$f":"IF(C5>0.005,B4+1,\"\")","v":""},null,null,null,null,null,null,null,null,null,0]
[null,"",null,null,null,null,null,null,null,null,null,0]
[null,"",null,null,null,null,null,null,null,null,null,0]
[null,"",null,null,null,null,null,null,null,null,null,0]
[null,"",null,null,null,null,null,null,null,null,null,0]
[null,"",null,null,null,null,null,null,null,null,null,0]
[null,"",null,null,null,null,null,null,null,null,null,0]
[null,"",null,null,null,null,null,null,null,null,null,0]
[null,"",null,null,null,null,null,null,null,null,null,0]
[null,"",null,null,null,null,null,null,null,null,null,0]
[null,"",null,null,null,null,null,null,null,null,null,0]
[null,"",null,null,null,null,null,null,null,null,null,0]
[null,"",null,null,null,null,null,null,null,null,null,0]
[null,"",null,null,null,null,null,null,null,null,null,0]
[null,"",null,null,null,null,null,null,null,null,null,0]
[null,"",null,null,null,null,null,null,null,null,null,0]
[null,"",null,null,null,null,null,null,null,null,null,0]
[null,"",null,null,null,null,null,null,null,null,null,0]
[null,"",null,null,null,null,null,null,null,null,null,0]
[null,"",null,null,null,null,null,null,null,null,null,0]
[null,"",null,null,null,null,null,null,null,null,null,0]
[null,"",null,null,null,null,null,null,null,null,null,0]
[null,"",null,null,null,null,null,null,null,null,null,0]
[null,"",null,null,null,null,null,null,null,null,null,0]
[null,"",null,null,null,null,null,null,null,null,null,0]
[null,"",null,null,null,null,null,null,null,null,null,0]
[null,"",null,null,null,null,null,null,null,null,null,0]
[null,"",null,null,null,null,null,null,null,null,null,0]
[null,"",null,null,null,null,null,null,null,null,null,0]
[null,"",null,null,null,null,null,null,null,null,null,0]
[null,"",null,null,null,null,null,null,null,null,null,0]
[null,"",null,null,null,null,null,null,null,null,null,0]
[null,"",null,null,null,null,null,null,null,null,null,0]
[null,"",null,null,null,null,null,null,null,null,null,0]
[null,"",null,null,null,null,null,null,null,null,null,0]
[null,"",null,null,null,null,null,null,null,null,null,0]
[null,"",null,null,null,null,null,null,null,null,null,0]
[null,"",null,null,null,null,null,null,null,null,null,0]
[null,"",null,null,null,null,null,null,null,null,null,0]
[null,"",null,null,null,null,null,null,null,null,null,0]
[null,"",null,null,null,null,null,null,null,null,null,0]
[null,"",null,null,null,null,null,null,null,null,null,0]
[null,"",null,null,null,null,null,null,null,null,null,0]
[null,"",null,null,null,null,null,null,null,null,null,0]
[null,"",null,null,null,null,null,null,null,null,null,0]
[null,"",null,null,null,null,null,null,null,null,null,0]
[null,"",null,null,null,null,null,null,null,null,null,0]
[null,"",null,null,null,null,null,null,null,null,null,0]
[null,"",null,null,null,null,null,null,null,null,null,0]
[null,"",null,null,null,null,null,null,null,null,null,0]
[null,"",null,null,null,null,null,null,null,null,null,0]
[null,"",null,null,null,null,null,null,null,null,null,0]
[null,"",null,null,null,null,null,null,null,null,null,0]
[null,"",null,null,null,null,null,null,null,null,null,0]
[null,"",null,null,null,null,null,null,null,null,null,0]
[null,"",null,null,null,null,null,null,null,null,null,0]
[null,"",null,null,null,null,null,null,null,null,null,0]
[null,"",null,null,null,null,null,null,null,null,null,0]
[null,"",null,null,null,null,null,null,null,null,null,0]
[null,"",null,null,null,null,null,null,null,null,null,0]
[null,"",null,null,null,null,null,null,null,null,null,0]
[null,"",null,null,null,null,null,null,null,null,null,0]
[null,"",null,null,null,null,null,null,null,null,null,0]
[null,"",null,null,null,null,null,null,null,null,null,{"$f":"SUM(F68:K68)","v":0}]
[null,{"$f":"IF(C69>0.005,B68+1,\"\")","v":""},null,null,null,null,null,null,null,null,null,0]
[null,"",null,null,null,null,null,null,null,null,null,0]
[null,"",null,null,null,null,null,null,null,null,null,0]
[null,"",null,null,null,null,null,null,null,null,null,0]
[null,"",null,null,null,null,null,null,null,null,null,0]
[null,"",null,null,null,null,null,null,null,null,null,0]
[null,"",null,null,null,null,null,null,null,null,null,0]
[null,"",null,null,null,null,null,null,null,null,null,0]
[null,"",null,null,null,null,null,null,null,null,null,0]
[null,"",null,null,null,null,null,null,null,null,null,0]
[null,"",null,null,null,null,null,null,null,null,null,0]
[null,"",null,null,null,null,null,null,null,null,null,0]
[null,"",null,null,null,null,null,null,null,null,null,0]
[null,"",null,null,null,null,null,null,null,null,null,0]
[null,"",null,null,null,null,null,null,null,null,null,0]
[null,"",null,null,null,null,null,null,null,null,null,0]
[null,"",null,null,null,null,null,null,null,null,null,0]
[null,"",null,null,null,null,null,null,null,null,null,0]
[null,"",null,null,null,null,null,null,null,null,null,0]
[null,"",null,null,null,null,null,null,null,null,null,0]
[null,"",null,null,null,null,null,null,null,null,null,0]
[null,"",null,null,null,null,null,null,null,null,null,0]
[null,"",null,null,null,null,null,null,null,null,null,0]
[null,"",null,null,null,null,null,null,null,null,null,0]
[null,"",null,null,null,null,null,null,null,null,null,0]
[null,"",null,null,null,null,null,null,null,null,null,0]
[null,"",null,null,null,null,null,null,null,null,null,0]
[null,"",null,null,null,null,null,null,null,null,null,0]
[null,"",null,null,null,null,null,null,null,null,null,0]
[null,"",null,null,null,null,null,null,null,null,null,0]
[null,"",null,null,null,null,null,null,null,null,null,0]
[null,"",null,null,null,null,null,null,null,null,null,0]
[null,"",null,null,null,null,null,null,null,null,null,0]
[null,"",null,null,null,null,null,null,null,null,null,0]
[null,"",null,null,null,null,null,null,null,null,null,0]
[null,"",null,null,null,null,null,null,null,null,null,0]
[null,"",null,null,null,null,null,null,null,null,null,0]
[null,"",null,null,null,null,null,null,null,null,null,0]
[null,"",null,null,null,null,null,null,null,null,null,0]
[null,"",null,null,null,null,null,null,null,null,null,0]
[null,"",null,null,null,null,null,null,null,null,null,0]
[null,"",null,null,null,null,null,null,null,null,null,0]
[null,"",null,null,null,null,null,null,null,null,null,0]
[null,"",null,null,null,null,null,null,null,null,null,0]
[null,"",null,null,null,null,null,null,null,null,null,0]
[null,"",null,null,null,null,null,null,null,null,null,0]
[null,"",null,null,null,null,null,null,null,null,null,0]
[null,"",null,null,null,null,null,null,null,null,null,0]
[null,"",null,null,null,null,null,null,null,null,null,0]
[null,"",null,null,null,null,null,null,null,null,null,0]
[null,"",null,null,null,null,null,null,null,null,null,0]
[null,"",null,null,null,null,null,null,null,null,null,0]
[null,"",null,null,null,null,null,null,null,null,null,0]
[null,"",null,null,null,null,null,null,null,null,null,0]
[null,"",null,null,null,null,null,null,null,null,null,0]
[null,"",null,null,null,null,null,null,null,null,null,0]
[null,"",null,null,null,null,null,null,null,null,null,0]
[null,"",null,null,null,null,null,null,null,null,null,0]
[null,"",null,null,null,null,null,null,null,null,null,0]
[null,"",null,null,null,null,null,null,null,null,null,0]
[null,"",null,null,null,null,null,null,null,null,null,0]
[null,"",null,null,null,null,null,null,null,null,null,0]
[null,"",null,null,null,null,null,null,null,null,null,0]
[null,"",null,null,null,null,null,null,null,null,null,{"$f":"SUM(F132:K132)","v":0}]
[null,{"$f":"IF(C133>0.005,B132+1,\"\")","v":""},null,null,null,null,null,null,null,null,null,0]
[null,"",null,null,null,null,null,null,null,null,null,0]
[null,"",null,null,null,null,null,null,null,null,null,0]
[null,"",null,null,null,null,null,null,null,null,null,0]
[null,"",null,null,null,null,null,null,null,null,null,0]
[null,"",null,null,null,null,null,null,null,null,null,0]
[null,"",null,null,null,null,null,null,null,null,null,0]
[null,"",null,null,null,null,null,null,null,null,null,0]
[null,"",null,null,null,null,null,null,null,null,null,0]
[null,"",null,null,null,null,null,null,null,null,null,0]
[null,"",null,null,null,null,null,null,null,null,null,0]
[null,"",null,null,null,null,null,null,null,null,null,0]
[null,"",null,null,null,null,null,null,null,null,null,0]
[null,"",null,null,null,null,null,null,null,null,null,0]
[null,"",null,null,null,null,null,null,null,null,null,0]
[null,"",null,null,null,null,null,null,null,null,null,0]
[null,"",null,null,null,null,null,null,null,null,null,0]
[null,"",null,null,null,null,null,null,null,null,null,0]
[null,"",null,null,null,null,null,null,null,null,null,0]
[null,"",null,null,null,null,null,null,null,null,null,0]
[null,"",null,null,null,null,null,null,null,null,null,0]
[null,"",null,null,null,null,null,null,null,null,null,0]
[null,"",null,null,null,null,null,null,null,null,null,0]
[null,"",null,null,null,null,null,null,null,null,null,0]
[null,"",null,null,null,null,null,null,null,null,null,0]
[null,"",null,null,null,null,null,null,null,null,null,0]
[null,"",null,null,null,null,null,null,null,null,null,0]
[null,"",null,null,null,null,null,null,null,null,null,0]
[null,"",null,null,null,null,null,null,null,null,null,0]
[null,"",null,null,null,null,null,null,null,null,null,0]
[null,"",null,null,null,null,null,null,null,null,null,0]
[null,"",null,null,null,null,null,null,null,null,null,0]
[null,"",null,null,null,null,null,null,null,null,null,0]
[null,"",null,null,null,null,null,null,null,null,null,0]
[null,"",null,null,null,null,null,null,null,null,null,0]
[null,"",null,null,null,null,null,null,null,null,null,0]
[null,"",null,null,null,null,null,null,null,null,null,0]
[null,"",null,null,null,null,null,null,null,null,null,0]
[null,"",null,null,null,null,null,null,null,null,null,0]
[null,"",null,null,null,null,null,null,null,null,null,0]
[null,"",null,null,null,null,null,null,null,null,null,0]
[null,"",null,null,null,null,null,null,null,null,null,0]
[null,"",null,null,null,null,null,null,null,null,null,0]
[null,"",null,null,null,null,null,null,null,null,null,0]
[null,"",null,null,null,null,null,null,null,null,null,0]
[null,"",null,null,null,null,null,null,null,null,null,0]
[null,"",null,null,null,null,null,null,null,null,null,0]
[null,"",null,null,null,null,null,null,null,null,null,0]
[null,"",null,null,null,null,null,null,null,null,null,0]
[null,"",null,null,null,null,null,null,null,null,null,0]
[null,"",null,null,null,null,null,null,null,null,null,0]
[null,"",null,null,null,null,null,null,null,null,null,0]
[null,"",null,null,null,null,null,null,null,null,null,0]
[null,"",null,null,null,null,null,null,null,null,null,0]
[null,"",null,null,null,null,null,null,null,null,null,0]
[null,"",null,null,null,null,null,null,null,null,null,0]
[null,"",null,null,null,null,null,null,null,null,null,0]
[null,"",null,null,null,null,null,null,null,null,null,0]
[null,"",null,null,null,null,null,null,null,null,null,0]
[null,"",null,null,null,null,null,null,null,null,null,0]
[null,"",null,null,null,null,null,null,null,null,null,0]
[null,"",null,null,null,null,null,null,null,null,null,0]
[null,"",null,null,null,null,null,null,null,null,null,0]
[null,"",null,null,null,null,null,null,null,null,null,{"$f":"SUM(F196:K196)","v":0}]
[null,{"$f":"IF(C197>0.005,B196+1,\"\")","v":""},null,null,null,null,null,null,null,null,null,0]
[null,"",null,null,null,null,null,null,null,null,null,0]
[null,"",null,null,null,null,null,null,null,null,null,0]
[null,"",null,null,null,null,null,null,null,null,null,0]
[null,"",null,null,null,null,null,null,null,null,null,0]
[null,"",null,null,null,null,null,null,null,null,null,0]
[null,"",null,null,null,null,null,null,null,null,null,0]
[null,"",null,null,null,null,null,null,null,null,null,0]
[null,"",null,null,null,null,null,null,null,null,null,0]
[null,"",null,null,null,null,null,null,null,null,null,0]
[null,"",null,null,null,null,null,null,null,null,null,0]
[null,"",null,null,null,null,null,null,null,null,null,0]
[null,"",null,null,null,null,null,null,null,null,null,0]
[null,"",null,null,null,null,null,null,null,null,null,0]
[null,"",null,null,null,null,null,null,null,null,null,0]
[null,"",null,null,null,null,null,null,null,null,null,0]
[null,"",null,null,null,null,null,null,null,null,null,0]
[null,"",null,null,null,null,null,null,null,null,null,0]
[null,"",null,null,null,null,null,null,null,null,null,0]
[null,"",null,null,null,null,null,null,null,null,null,0]
[null,"",null,null,null,null,null,null,null,null,null,0]
[null,"",null,null,null,null,null,null,null,null,null,0]
[null,"",null,null,null,null,null,null,null,null,null,0]
[null,"",null,null,null,null,null,null,null,null,null,0]
[null,"",null,null,null,null,null,null,null,null,null,0]
[null,"",null,null,null,null,null,null,null,null,null,0]
[null,"",null,null,null,null,null,null,null,null,null,0]
[null,"",null,null,null,null,null,null,null,null,null,0]
[null,"",null,null,null,null,null,null,null,null,null,0]
[null,"",null,null,null,null,null,null,null,null,null,0]
[null,"",null,null,null,null,null,null,null,null,null,0]
[null,"",null,null,null,null,null,null,null,null,null,0]
[null,"",null,null,null,null,null,null,null,null,null,0]
[null,"",null,null,null,null,null,null,null,null,null,0]
[null,"",null,null,null,null,null,null,null,null,null,0]
[null,"",null,null,null,null,null,null,null,null,null,0]
[null,"",null,null,null,null,null,null,null,null,null,0]
[null,"",null,null,null,null,null,null,null,null,null,0]
[null,"",null,null,null,null,null,null,null,null,null,0]
[null,"",null,null,null,null,null,null,null,null,null,0]
[null,"",null,null,null,null,null,null,null,null,null,0]
[null,"",null,null,null,null,null,null,null,null,null,0]
[null,"",null,null,null,null,null,null,null,null,null,0]
[null,"",null,null,null,null,null,null,null,null,null,0]
[null,"",null,null,null,null,null,null,null,null,null,0]
[null,"",null,null,null,null,null,null,null,null,null,0]
[null,"",null,null,null,null,null,null,null,null,null,0]
[null,"",null,null,null,null,null,null,null,null,null,0]
[null,"",null,null,null,null,null,null,null,null,null,0]
[null,"",null,null,null,null,null,null,null,null,null,0]
[null,"",null,null,null,null,null,null,null,null,null,0]
[null,"",null,null,null,null,null,null,null,null,null,0]
[null,"",null,null,null,null,null,null,null,null,null,0]
[null,"",null,null,null,null,null,null,null,null,null,0]
[null,"",null,null,null,null,null,null,null,null,null,0]
[null,"",null,null,null,null,null,null,null,null,null,0]
[null,"",null,null,null,null,null,null,null,null,null,0]
[null,"",null,null,null,null,null,null,null,null,null,0]
[null,"",null,null,null,null,null,null,null,null,null,0]
[null,"",null,null,null,null,null,null,null,null,null,0]
[null,"",null,null,null,null,null,null,null,null,null,0]
[null,"",null,null,null,null,null,null,null,null,null,0]
[null,"",null,null,null,null,null,null,null,null,null,0]
[null,"",null,null,null,null,null,null,null,null,null,{"$f":"SUM(F260:K260)","v":0}]
[null,{"$f":"IF(C261>0.005,B260+1,\"\")","v":""},null,null,null,null,null,null,null,null,null,0]
[null,"",null,null,null,null,null,null,null,null,null,0]
[null,"",null,null,null,null,null,null,null,null,null,0]
[null,"",null,null,null,null,null,null,null,null,null,0]
[null,"",null,null,null,null,null,null,null,null,null,0]
[null,"",null,null,null,null,null,null,null,null,null,0]
[null,"",null,null,null,null,null,null,null,null,null,0]
[null,"",null,null,null,null,null,null,null,null,null,0]
[null,"",null,null,null,null,null,null,null,null,null,0]
[null,"",null,null,null,null,null,null,null,null,null,0]
[null,"",null,null,null,null,null,null,null,null,null,0]
[null,"",null,null,null,null,null,null,null,null,null,0]
[null,"",null,null,null,null,null,null,null,null,null,0]
[null,"",null,null,null,null,null,null,null,null,null,0]
[null,"",null,null,null,null,null,null,null,null,null,0]
[null,"",null,null,null,null,null,null,null,null,null,0]
[null,"",null,null,null,null,null,null,null,null,null,0]
[null,"",null,null,null,null,null,null,null,null,null,0]
[null,"",null,null,null,null,null,null,null,null,null,0]
[null,"",null,null,null,null,null,null,null,null,null,0]
[null,"",null,null,null,null,null,null,null,null,null,0]
[null,"",null,null,null,null,null,null,null,null,null,0]
[null,"",null,null,null,null,null,null,null,null,null,0]
[null,"",null,null,null,null,null,null,null,null,null,0]
[null,"",null,null,null,null,null,null,null,null,null,0]
[null,"",null,null,null,null,null,null,null,null,null,0]
[null,"",null,null,null,null,null,null,null,null,null,0]
[null,"",null,null,null,null,null,null,null,null,null,0]
[null,"",null,null,null,null,null,null,null,null,null,0]
[null,"",null,null,null,null,null,null,null,null,null,0]
[null,"",null,null,null,null,null,null,null,null,null,0]
[null,"",null,null,null,null,null,null,null,null,null,0]
[null,"",null,null,null,null,null,null,null,null,null,0]
[null,"",null,null,null,null,null,null,null,null,null,0]
[null,"",null,null,null,null,null,null,null,null,null,0]
[null,"",null,null,null,null,null,null,null,null,null,0]
[null,"",null,null,null,null,null,null,null,null,null,0]
[null,"",null,null,null,null,null,null,null,null,null,0]
[null,"",null,null,null,null,null,null,null,null,null,0]
[null,"",null,null,null,null,null,null,null,null,null,0]
[null,"",null,null,null,null,null,null,null,null,null,0]
[null,"",null,null,null,null,null,null,null,null,null,0]
[null,"",null,null,null,null,null,null,null,null,null,0]
[null,"",null,null,null,null,null,null,null,null,null,0]
[null,"",null,null,null,null,null,null,null,null,null,0]
[null,"",null,null,null,null,null,null,null,null,null,0]
[null,"",null,null,null,null,null,null,null,null,null,0]
[null,"",null,null,null,null,null,null,null,null,null,0]
[null,"",null,null,null,null,null,null,null,null,null,0]
[null,"",null,null,null,null,null,null,null,null,null,0]
[null,"",null,null,null,null,null,null,null,null,null,0]
[null,"",null,null,null,null,null,null,null,null,null,0]
[null,"",null,null,null,null,null,null,null,null,null,0]
[null,"",null,null,null,null,null,null,null,null,null,0]
[null,"",null,null,null,null,null,null,null,null,null,0]
[null,"",null,null,null,null,null,null,null,null,null,0]
[null,"",null,null,null,null,null,null,null,null,null,0]
[null,"",null,null,null,null,null,null,null,null,null,0]
[null,"",null,null,null,null,null,null,null,null,null,0]
[null,"",null,null,null,null,null,null,null,null,null,0]
[null,"",null,null,null,null,null,null,null,null,null,0]
[null,"",null,null,null,null,null,null,null,null,null,0]
[null,"",null,null,null,null,null,null,null,null,null,0]
[null,"",null,null,null,null,null,null,null,null,null,{"$f":"SUM(F324:K324)","v":0}]
[null,{"$f":"IF(C325>0.005,B324+1,\"\")","v":""},null,null,null,null,null,null,null,null,null,0]
[null,"",null,null,null,null,null,null,null,null,null,0]
[null,"",null,null,null,null,null,null,null,null,null,0]
[null,"",null,null,null,null,null,null,null,null,null,0]
[null,"",null,null,null,null,null,null,null,null,null,0]
[null,"",null,null,null,null,null,null,null,null,null,0]
[null,"",null,null,null,null,null,null,null,null,null,0]
[null,"",null,null,null,null,null,null,null,null,null,0]
[null,"",null,null,null,null,null,null,null,null,null,0]
[null,"",null,null,null,null,null,null,null,null,null,0]
[null,"",null,null,null,null,null,null,null,null,null,0]
[null,"",null,null,null,null,null,null,null,null,null,0]
[null,"",null,null,null,null,null,null,null,null,null,0]
[null,"",null,null,null,null,null,null,null,null,null,0]
[null,"",null,null,null,null,null,null,null,null,null,0]
[null,"",null,null,null,null,null,null,null,null,null,0]
[null,"",null,null,null,null,null,null,null,null,null,0]
[null,"",null,null,null,null,null,null,null,null,null,0]
[null,"",null,null,null,null,null,null,null,null,null,0]
[null,"",null,null,null,null,null,null,null,null,null,0]
[null,"",null,null,null,null,null,null,null,null,null,0]
[null,"",null,null,null,null,null,null,null,null,null,0]
[null,"",null,null,null,null,null,null,null,null,null,0]
[null,"",null,null,null,null,null,null,null,null,null,0]
[null,"",null,null,null,null,null,null,null,null,null,0]
[null,"",null,null,null,null,null,null,null,null,null,0]
[null,"",null,null,null,null,null,null,null,null,null,0]
[null,"",null,null,null,null,null,null,null,null,null,0]
[null,"",null,null,null,null,null,null,null,null,null,0]
[null,"",null,null,null,null,null,null,null,null,null,0]
[null,"",null,null,null,null,null,null,null,null,null,0]
[null,"",null,null,null,null,null,null,null,null,null,0]
[null,"",null,null,null,null,null,null,null,null,null,0]
[null,"",null,null,null,null,null,null,null,null,null,0]
[null,"",null,null,null,null,null,null,null,null,null,0]
[null,"",null,null,null,null,null,null,null,null,null,0]
[null,"",null,null,null,null,null,null,null,null,null,0]
[null,"",null,null,null,null,null,null,null,null,null,0]
[null,"",null,null,null,null,null,null,null,null,null,0]
[null,"",null,null,null,null,null,null,null,null,null,0]
[null,"",null,null,null,null,null,null,null,null,null,0]
[null,"",null,null,null,null,null,null,null,null,null,0]
[null,"",null,null,null,null,null,null,null,null,null,0]
[null,"",null,null,null,null,null,null,null,null,null,0]
[null,"",null,null,null,null,null,null,null,null,null,0]
[null,"",null,null,null,null,null,null,null,null,null,0]
[null,"",null,null,null,null,null,null,null,null,null,0]
[null,"",null,null,null,null,null,null,null,null,null,0]
[null,"",null,null,null,null,null,null,null,null,null,0]
[null,"",null,null,null,null,null,null,null,null,null,0]
[null,"",null,null,null,null,null,null,null,null,null,0]
[null,"",null,null,null,null,null,null,null,null,null,0]
[null,"",null,null,null,null,null,null,null,null,null,0]
[null,"",null,null,null,null,null,null,null,null,null,0]
[null,"",null,null,null,null,null,null,null,null,null,0]
[null,"",null,null,null,null,null,null,null,null,null,0]
[null,"",null,null,null,null,null,null,null,null,null,0]
[null,"",null,null,null,null,null,null,null,null,null,0]
[null,"",null,null,null,null,null,null,null,null,null,0]
[null,"",null,null,null,null,null,null,null,null,null,0]
[null,"",null,null,null,null,null,null,null,null,null,0]
[null,"",null,null,null,null,null,null,null,null,null,0]
[null,"",null,null,null,null,null,null,null,null,null,0]
[null,"",null,null,null,null,null,null,null,null,null,{"$f":"SUM(F388:K388)","v":0}]
[null,{"$f":"IF(C389>0.005,B388+1,\"\")","v":""},null,null,null,null,null,null,null,null,null,0]
[null,"",null,null,null,null,null,null,null,null,null,0]
[null,"",null,null,null,null,null,null,null,null,null,0]
[null,"",null,null,null,null,null,null,null,null,null,0]
[null,"",null,null,null,null,null,null,null,null,null,0]
[null,"",null,null,null,null,null,null,null,null,null,0]
[null,"",null,null,null,null,null,null,null,null,null,0]
[null,"",null,null,null,null,null,null,null,null,null,0]
[null,"",null,null,null,null,null,null,null,null,null,0]
[null,"",null,null,null,null,null,null,null,null,null,0]
[null,"",null,null,null,null,null,null,null,null,null,0]
[null,"",null,null,null,null,null,null,null,null,null,0]
[null,"",null,null,null,null,null,null,null,null,null,0]
[null,"",null,null,null,null,null,null,null,null,null,0]
[null,"",null,null,null,null,null,null,null,null,null,0]
[null,"",null,null,null,null,null,null,null,null,null,0]
[null,"",null,null,null,null,null,null,null,null,null,0]
[null,"",null,null,null,null,null,null,null,null,null,0]
[null,"",null,null,null,null,null,null,null,null,null,0]
[null,"",null,null,null,null,null,null,null,null,null,0]
[null,"",null,null,null,null,null,null,null,null,null,0]
[null,"",null,null,null,null,null,null,null,null,null,0]
[null,"",null,null,null,null,null,null,null,null,null,0]
[null,"",null,null,null,null,null,null,null,null,null,0]
[null,"",null,null,null,null,null,null,null,null,null,0]
[null,"",null,null,null,null,null,null,null,null,null,0]
[null,"",null,null,null,null,null,null,null,null,null,0]
[null,"",null,null,null,null,null,null,null,null,null,0]
[null,"",null,null,null,null,null,null,null,null,null,0]
[null,"",null,null,null,null,null,null,null,null,null,0]
[null,"",null,null,null,null,null,null,null,null,null,0]
[null,"",null,null,null,null,null,null,null,null,null,0]
[null,"",null,null,null,null,null,null,null,null,null,0]
[null,"",null,null,null,null,null,null,null,null,null,0]
[null,"",null,null,null,null,null,null,null,null,null,0]
[null,"",null,null,null,null,null,null,null,null,null,0]
[null,"",null,null,null,null,null,null,null,null,null,0]
[null,"",null,null,null,null,null,null,null,null,null,0]
[null,"",null,null,null,null,null,null,null,null,null,0]
[null,"",null,null,null,null,null,null,null,null,null,0]
[null,"",null,null,null,null,null,null,null,null,null,0]
[null,"",null,null,null,null,null,null,null,null,null,0]
[null,"",null,null,null,null,null,null,null,null,null,0]
[null,"",null,null,null,null,null,null,null,null,null,0]
[null,"",null,null,null,null,null,null,null,null,null,0]
[null,"",null,null,null,null,null,null,null,null,null,0]
[null,"",null,null,null,null,null,null,null,null,null,0]
[null,"",null,null,null,null,null,null,null,null,null,0]
[null,"",null,null,null,null,null,null,null,null,null,0]
[null,"",null,null,null,null,null,null,null,null,null,0]
[null,"",null,null,null,null,null,null,null,null,null,0]
[null,"",null,null,null,null,null,null,null,null,null,0]
[null,"",null,null,null,null,null,null,null,null,null,0]
[null,"",null,null,null,null,null,null,null,null,null,0]
[null,"",null,null,null,null,null,null,null,null,null,0]
[null,"",null,null,null,null,null,null,null,null,null,0]
[null,"",null,null,null,null,null,null,null,null,null,0]
[null,"",null,null,null,null,null,null,null,null,null,0]
[null,"",null,null,null,null,null,null,null,null,null,0]
[null,"",null,null,null,null,null,null,null,null,null,0]
[null,"",null,null,null,null,null,null,null,null,null,0]
[null,"",null,null,null,null,null,null,null,null,null,0]
[null,"",null,null,null,null,null,null,null,null,null,0]
[null,"",null,null,null,null,null,null,null,null,null,{"$f":"SUM(F452:K452)","v":0}]
[null,{"$f":"IF(C453>0.005,B452+1,\"\")","v":""},null,null,null,null,null,null,null,null,null,0]
[null,"",null,null,null,null,null,null,null,null,null,0]
[null,"",null,null,null,null,null,null,null,null,null,0]
[null,"",null,null,null,null,null,null,null,null,null,0]
[null,"",null,null,null,null,null,null,null,null,null,0]
[null,"",null,null,null,null,null,null,null,null,null,0]
[null,"",null,null,null,null,null,null,null,null,null,0]
[null,"",null,null,null,null,null,null,null,null,null,0]
[null,"",null,null,null,null,null,null,null,null,null,0]
[null,"",null,null,null,null,null,null,null,null,null,0]
[null,"",null,null,null,null,null,null,null,null,null,0]
[null,"",null,null,null,null,null,null,null,null,null,0]
[null,"",null,null,null,null,null,null,null,null,null,0]
[null,"",null,null,null,null,null,null,null,null,null,0]
[null,"",null,null,null,null,null,null,null,null,null,0]
[null,"",null,null,null,null,null,null,null,null,null,0]
[null,"",null,null,null,null,null,null,null,null,null,0]
[null,"",null,null,null,null,null,null,null,null,null,0]
[null,"",null,null,null,null,null,null,null,null,null,0]
[null,"",null,null,null,null,null,null,null,null,null,0]
[null,"",null,null,null,null,null,null,null,null,null,0]
[null,"",null,null,null,null,null,null,null,null,null,0]
[null,"",null,null,null,null,null,null,null,null,null,0]
[null,"",null,null,null,null,null,null,null,null,null,0]
[null,"",null,null,null,null,null,null,null,null,null,0]
[null,"",null,null,null,null,null,null,null,null,null,0]
[null,"",null,null,null,null,null,null,null,null,null,0]
[null,"",null,null,null,null,null,null,null,null,null,0]
[null,"",null,null,null,null,null,null,null,null,null,0]
[null,"",null,null,null,null,null,null,null,null,null,0]
[null,"",null,null,null,null,null,null,null,null,null,0]
[null,"",null,null,null,null,null,null,null,null,null,0]
[null,"",null,null,null,null,null,null,null,null,null,0]
[null,"",null,null,null,null,null,null,null,null,null,0]
[null,"",null,null,null,null,null,null,null,null,null,0]
[null,"",null,null,null,null,null,null,null,null,null,0]
[null,"",null,null,null,null,null,null,null,null,null,0]
[null,"",null,null,null,null,null,null,null,null,null,0]
[null,"",null,null,null,null,null,null,null,null,null,0]
[null,"",null,null,null,null,null,null,null,null,null,0]
[null,"",null,null,null,null,null,null,null,null,null,0]
[null,"",null,null,null,null,null,null,null,null,null,0]
[null,"",null,null,null,null,null,null,null,null,null,0]
[null,"",null,null,null,null,null,null,null,null,null,0]
[null,"",null,null,null,null,null,null,null,null,null,0]
[null,"",null,null,null,null,null,null,null,null,null,0]
[null,"",null,null,null,null,null,null,null,null,null,0]
[null,"",null,null,null,null,null,null,null,null,null,0]
[null,"",null,null,null,null,null,null,null,null,null,0]
[null,"",null,null,null,null,null,null,null,null,null,0]
[null,"",null,null,null,null,null,null,null,null,null,0]
[null,"",null,null,null,null,null,null,null,null,null,0]
[null,"",null,null,null,null,null,null,null,null,null,0]
[null,"",null,null,null,null,null,null,null,null,null,0]
[null,"",null,null,null,null,null,null,null,null,null,0]
[null,"",null,null,null,null,null,null,null,null,null,0]
[null,"",null,null,null,null,null,null,null,null,null,0]
[null,"",null,null,null,null,null,null,null,null,null,0]
[null,"",null,null,null,null,null,null,null,null,null,0]
[null,"",null,null,null,null,null,null,null,null,null,0]
[null,"",null,null,null,null,null,null,null,null,null,0]
[null,"",null,null,null,null,null,null,null,null,null,0]
[null,"",null,null,null,null,null,null,null,null,null,0]
[null,"",null,null,null,null,null,null,null,null,null,{"$f":"SUM(F516:K516)","v":0}]
[null,{"$f":"IF(C517>0.005,B516+1,\"\")","v":""},null,null,null,null,null,null,null,null,null,0]
[null,"",null,null,null,null,null,null,null,null,null,0]
[null,"",null,null,null,null,null,null,null,null,null,0]
[null,"",null,null,null,null,null,null,null,null,null,0]
[null,"",null,null,null,null,null,null,null,null,null,0]
[null,"",null,null,null,null,null,null,null,null,null,0]
[null,"",null,null,null,null,null,null,null,null,null,0]
[null,"",null,null,null,null,null,null,null,null,null,0]
[null,"",null,null,null,null,null,null,null,null,null,0]
[null,"",null,null,null,null,null,null,null,null,null,0]
[null,"",null,null,null,null,null,null,null,null,null,0]
[null,"",null,null,null,null,null,null,null,null,null,0]
[null,"",null,null,null,null,null,null,null,null,null,0]
[null,"",null,null,null,null,null,null,null,null,null,0]
[null,"",null,null,null,null,null,null,null,null,null,0]
[null,"",null,null,null,null,null,null,null,null,null,0]
[null,"",null,null,null,null,null,null,null,null,null,0]
[null,"",null,null,null,null,null,null,null,null,null,0]
[null,"",null,null,null,null,null,null,null,null,null,0]
[null,"",null,null,null,null,null,null,null,null,null,0]
[null,"",null,null,null,null,null,null,null,null,null,0]
[null,"",null,null,null,null,null,null,null,null,null,0]
[null,"",null,null,null,null,null,null,null,null,null,0]
[null,"",null,null,null,null,null,null,null,null,null,0]
[null,"",null,null,null,null,null,null,null,null,null,0]
[null,"",null,null,null,null,null,null,null,null,null,0]
[null,"",null,null,null,null,null,null,null,null,null,0]
[null,"",null,null,null,null,null,null,null,null,null,0]
[null,"",null,null,null,null,null,null,null,null,null,0]
[null,"",null,null,null,null,null,null,null,null,null,0]
[null,"",null,null,null,null,null,null,null,null,null,0]
[null,"",null,null,null,null,null,null,null,null,null,0]
[null,"",null,null,null,null,null,null,null,null,null,0]
[null,"",null,null,null,null,null,null,null,null,null,0]
[null,"",null,null,null,null,null,null,null,null,null,0]
[null,"",null,null,null,null,null,null,null,null,null,0]
[null,"",null,null,null,null,null,null,null,null,null,0]
[null,"",null,null,null,null,null,null,null,null,null,0]
[null,"",null,null,null,null,null,null,null,null,null,0]
[null,"",null,null,null,null,null,null,null,null,null,0]
[null,"",null,null,null,null,null,null,null,null,null,0]
[null,"",null,null,null,null,null,null,null,null,null,0]
[null,"",null,null,null,null,null,null,null,null,null,0]
[null,"",null,null,null,null,null,null,null,null,null,0]
[null,"",null,null,null,null,null,null,null,null,null,0]
[null,"",null,null,null,null,null,null,null,null,null,0]
[null,"",null,null,null,null,null,null,null,null,null,0]
[null,"",null,null,null,null,null,null,null,null,null,0]
[null,"",null,null,null,null,null,null,null,null,null,0]
[null,"",null,null,null,null,null,null,null,null,null,0]
[null,"",null,null,null,null,null,null,null,null,null,0]
[null,"",null,null,null,null,null,null,null,null,null,0]
[null,"",null,null,null,null,null,null,null,null,null,0]
[null,"",null,null,null,null,null,null,null,null,null,0]
[null,"",null,null,null,null,null,null,null,null,null,0]
[null,"",null,null,null,null,null,null,null,null,null,0]
[null,"",null,null,null,null,null,null,null,null,null,0]
[null,"",null,null,null,null,null,null,null,null,null,0]
[null,"",null,null,null,null,null,null,null,null,null,0]
[null,"",null,null,null,null,null,null,null,null,null,0]
[null,"",null,null,null,null,null,null,null,null,null,0]
[null,"",null,null,null,null,null,null,null,null,null,0]
[null,"",null,null,null,null,null,null,null,null,null,0]
[null,"",null,null,null,null,null,null,null,null,null,{"$f":"SUM(F580:K580)","v":0}]
[null,{"$f":"IF(C581>0.005,B580+1,\"\")","v":""},null,null,null,null,null,null,null,null,null,0]
[null,"",null,null,null,null,null,null,null,null,null,0]
[null,"",null,null,null,null,null,null,null,null,null,0]
[null,"",null,null,null,null,null,null,null,null,null,0]
[null,"",null,null,null,null,null,null,null,null,null,0]
[null,"",null,null,null,null,null,null,null,null,null,0]
[null,"",null,null,null,null,null,null,null,null,null,0]
[null,"",null,null,null,null,null,null,null,null,null,0]
[null,"",null,null,null,null,null,null,null,null,null,0]
[null,"",null,null,null,null,null,null,null,null,null,0]
[null,"",null,null,null,null,null,null,null,null,null,0]
[null,"",null,null,null,null,null,null,null,null,null,0]
[null,"",null,null,null,null,null,null,null,null,null,0]
[null,"",null,null,null,null,null,null,null,null,null,0]
[null,"",null,null,null,null,null,null,null,null,null,0]
[null,"",null,null,null,null,null,null,null,null,null,0]
[null,"",null,null,null,null,null,null,null,null,null,0]
[null,"",null,null,null,null,null,null,null,null,null,0]
[null,"",null,null,null,null,null,null,null,null,null,0]
[null,"",null,null,null,null,null,null,null,null,null,{"$f":"SUM(L3:L599)","v":0}]

{"sheet":"عيد الاضحى","index":5,"n_rows":600,"n_cols":12,"rows_kept":600,"cut":false,"hidden":false,"merged":[[0,9,0,10]]}
[null,null,"عدد المستحقين ",{"$f":"COUNT(B3:B599)","v":0},null,null,null,null,null,"الإجمالي",null,{"$f":"SUM(L3:L598)","v":0}]
[null,"مسلسل","اسم الموظف ","الحساب البنكي ","اسم البنك ","الاستحقاق1","الاستحقاق2","الاستحقاق3","الاستحقاق4","الاستحقاق5","الاستحقاق6","الصافي "]
[null,{"$f":"IF(C3>0.005,1,\"\")","v":""},null,null,null,null,null,null,null,null,null,{"$f":"SUM(F3:K3)","v":0}]
[null,{"$f":"IF(C4>0.005,B3+1,\"\")","v":""},null,null,null,null,null,null,null,null,null,0]
[null,"",null,null,null,null,null,null,null,null,null,0]
[null,"",null,null,null,null,null,null,null,null,null,0]
[null,"",null,null,null,null,null,null,null,null,null,0]
[null,"",null,null,null,null,null,null,null,null,null,0]
[null,"",null,null,null,null,null,null,null,null,null,0]
[null,"",null,null,null,null,null,null,null,null,null,0]
[null,"",null,null,null,null,null,null,null,null,null,0]
[null,"",null,null,null,null,null,null,null,null,null,0]
[null,"",null,null,null,null,null,null,null,null,null,0]
[null,"",null,null,null,null,null,null,null,null,null,0]
[null,"",null,null,null,null,null,null,null,null,null,0]
[null,"",null,null,null,null,null,null,null,null,null,0]
[null,"",null,null,null,null,null,null,null,null,null,0]
[null,"",null,null,null,null,null,null,null,null,null,0]
[null,"",null,null,null,null,null,null,null,null,null,0]
[null,"",null,null,null,null,null,null,null,null,null,0]
[null,"",null,null,null,null,null,null,null,null,null,0]
[null,"",null,null,null,null,null,null,null,null,null,0]
[null,"",null,null,null,null,null,null,null,null,null,0]
[null,"",null,null,null,null,null,null,null,null,null,0]
[null,"",null,null,null,null,null,null,null,null,null,0]
[null,"",null,null,null,null,null,null,null,null,null,0]
[null,"",null,null,null,null,null,null,null,null,null,0]
[null,"",null,null,null,null,null,null,null,null,null,0]
[null,"",null,null,null,null,null,null,null,null,null,0]
[null,"",null,null,null,null,null,null,null,null,null,0]
[null,"",null,null,null,null,null,null,null,null,null,0]
[null,"",null,null,null,null,null,null,null,null,null,0]
[null,"",null,null,null,null,null,null,null,null,null,0]
[null,"",null,null,null,null,null,null,null,null,null,0]
[null,"",null,null,null,null,null,null,null,null,null,0]
[null,"",null,null,null,null,null,null,null,null,null,0]
[null,"",null,null,null,null,null,null,null,null,null,0]
[null,"",null,null,null,null,null,null,null,null,null,0]
[null,"",null,null,null,null,null,null,null,null,null,0]
[null,"",null,null,null,null,null,null,null,null,null,0]
[null,"",null,null,null,null,null,null,null,null,null,0]
[null,"",null,null,null,null,null,null,null,null,null,0]
[null,"",null,null,null,null,null,null,null,null,null,0]
[null,"",null,null,null,null,null,null,null,null,null,0]
[null,"",null,null,null,null,null,null,null,null,null,0]
[null,"",null,null,null,null,null,null,null,null,null,0]
[null,"",null,null,null,null,null,null,null,null,null,0]
[null,"",null,null,null,null,null,null,null,null,null,0]
[null,"",null,null,null,null,null,null,null,null,null,0]
[null,"",null,null,null,null,null,null,null,null,null,0]
[null,"",null,null,null,null,null,null,null,null,null,0]
[null,"",null,null,null,null,null,null,null,null,null,0]
[null,"",null,null,null,null,null,null,null,null,null,0]
[null,"",null,null,null,null,null,null,null,null,null,0]
[null,"",null,null,null,null,null,null,null,null,null,0]
[null,"",null,null,null,null,null,null,null,null,null,0]
[null,"",null,null,null,null,null,null,null,null,null,0]
[null,"",null,null,null,null,null,null,null,null,null,0]
[null,"",null,null,null,null,null,null,null,null,null,0]
[null,"",null,null,null,null,null,null,null,null,null,0]
[null,"",null,null,null,null,null,null,null,null,null,0]
[null,"",null,null,null,null,null,null,null,null,null,0]
[null,"",null,null,null,null,null,null,null,null,null,0]
[null,"",null,null,null,null,null,null,null,null,null,0]
[null,"",null,null,null,null,null,null,null,null,null,0]
[null,"",null,null,null,null,null,null,null,null,null,0]
[null,{"$f":"IF(C67>0.005,B66+1,\"\")","v":""},null,null,null,null,null,null,null,null,null,{"$f":"SUM(F67:K67)","v":0}]
[null,"",null,null,null,null,null,null,null,null,null,0]
[null,"",null,null,null,null,null,null,null,null,null,0]
[null,"",null,null,null,null,null,null,null,null,null,0]
[null,"",null,null,null,null,null,null,null,null,null,0]
[null,"",null,null,null,null,null,null,null,null,null,0]
[null,"",null,null,null,null,null,null,null,null,null,0]
[null,"",null,null,null,null,null,null,null,null,null,0]
[null,"",null,null,null,null,null,null,null,null,null,0]
[null,"",null,null,null,null,null,null,null,null,null,0]
[null,"",null,null,null,null,null,null,null,null,null,0]
[null,"",null,null,null,null,null,null,null,null,null,0]
[null,"",null,null,null,null,null,null,null,null,null,0]
[null,"",null,null,null,null,null,null,null,null,null,0]
[null,"",null,null,null,null,null,null,null,null,null,0]
[null,"",null,null,null,null,null,null,null,null,null,0]
[null,"",null,null,null,null,null,null,null,null,null,0]
[null,"",null,null,null,null,null,null,null,null,null,0]
[null,"",null,null,null,null,null,null,null,null,null,0]
[null,"",null,null,null,null,null,null,null,null,null,0]
[null,"",null,null,null,null,null,null,null,null,null,0]
[null,"",null,null,null,null,null,null,null,null,null,0]
[null,"",null,null,null,null,null,null,null,null,null,0]
[null,"",null,null,null,null,null,null,null,null,null,0]
[null,"",null,null,null,null,null,null,null,null,null,0]
[null,"",null,null,null,null,null,null,null,null,null,0]
[null,"",null,null,null,null,null,null,null,null,null,0]
[null,"",null,null,null,null,null,null,null,null,null,0]
[null,"",null,null,null,null,null,null,null,null,null,0]
[null,"",null,null,null,null,null,null,null,null,null,0]
[null,"",null,null,null,null,null,null,null,null,null,0]
[null,"",null,null,null,null,null,null,null,null,null,0]
[null,"",null,null,null,null,null,null,null,null,null,0]
[null,"",null,null,null,null,null,null,null,null,null,0]
[null,"",null,null,null,null,null,null,null,null,null,0]
[null,"",null,null,null,null,null,null,null,null,null,0]
[null,"",null,null,null,null,null,null,null,null,null,0]
[null,"",null,null,null,null,null,null,null,null,null,0]
[null,"",null,null,null,null,null,null,null,null,null,0]
[null,"",null,null,null,null,null,null,null,null,null,0]
[null,"",null,null,null,null,null,null,null,null,null,0]
[null,"",null,null,null,null,null,null,null,null,null,0]
[null,"",null,null,null,null,null,null,null,null,null,0]
[null,"",null,null,null,null,null,null,null,null,null,0]
[null,"",null,null,null,null,null,null,null,null,null,0]
[null,"",null,null,null,null,null,null,null,null,null,0]
[null,"",null,null,null,null,null,null,null,null,null,0]
[null,"",null,null,null,null,null,null,null,null,null,0]
[null,"",null,null,null,null,null,null,null,null,null,0]
[null,"",null,null,null,null,null,null,null,null,null,0]
[null,"",null,null,null,null,null,null,null,null,null,0]
[null,"",null,null,null,null,null,null,null,null,null,0]
[null,"",null,null,null,null,null,null,null,null,null,0]
[null,"",null,null,null,null,null,null,null,null,null,0]
[null,"",null,null,null,null,null,null,null,null,null,0]
[null,"",null,null,null,null,null,null,null,null,null,0]
[null,"",null,null,null,null,null,null,null,null,null,0]
[null,"",null,null,null,null,null,null,null,null,null,0]
[null,"",null,null,null,null,null,null,null,null,null,0]
[null,"",null,null,null,null,null,null,null,null,null,0]
[null,"",null,null,null,null,null,null,null,null,null,0]
[null,"",null,null,null,null,null,null,null,null,null,0]
[null,"",null,null,null,null,null,null,null,null,null,0]
[null,"",null,null,null,null,null,null,null,null,null,0]
[null,{"$f":"IF(C131>0.005,B130+1,\"\")","v":""},null,null,null,null,null,null,null,null,null,{"$f":"SUM(F131:K131)","v":0}]
[null,"",null,null,null,null,null,null,null,null,null,0]
[null,"",null,null,null,null,null,null,null,null,null,0]
[null,"",null,null,null,null,null,null,null,null,null,0]
[null,"",null,null,null,null,null,null,null,null,null,0]
[null,"",null,null,null,null,null,null,null,null,null,0]
[null,"",null,null,null,null,null,null,null,null,null,0]
[null,"",null,null,null,null,null,null,null,null,null,0]
[null,"",null,null,null,null,null,null,null,null,null,0]
[null,"",null,null,null,null,null,null,null,null,null,0]
[null,"",null,null,null,null,null,null,null,null,null,0]
[null,"",null,null,null,null,null,null,null,null,null,0]
[null,"",null,null,null,null,null,null,null,null,null,0]
[null,"",null,null,null,null,null,null,null,null,null,0]
[null,"",null,null,null,null,null,null,null,null,null,0]
[null,"",null,null,null,null,null,null,null,null,null,0]
[null,"",null,null,null,null,null,null,null,null,null,0]
[null,"",null,null,null,null,null,null,null,null,null,0]
[null,"",null,null,null,null,null,null,null,null,null,0]
[null,"",null,null,null,null,null,null,null,null,null,0]
[null,"",null,null,null,null,null,null,null,null,null,0]
[null,"",null,null,null,null,null,null,null,null,null,0]
[null,"",null,null,null,null,null,null,null,null,null,0]
[null,"",null,null,null,null,null,null,null,null,null,0]
[null,"",null,null,null,null,null,null,null,null,null,0]
[null,"",null,null,null,null,null,null,null,null,null,0]
[null,"",null,null,null,null,null,null,null,null,null,0]
[null,"",null,null,null,null,null,null,null,null,null,0]
[null,"",null,null,null,null,null,null,null,null,null,0]
[null,"",null,null,null,null,null,null,null,null,null,0]
[null,"",null,null,null,null,null,null,null,null,null,0]
[null,"",null,null,null,null,null,null,null,null,null,0]
[null,"",null,null,null,null,null,null,null,null,null,0]
[null,"",null,null,null,null,null,null,null,null,null,0]
[null,"",null,null,null,null,null,null,null,null,null,0]
[null,"",null,null,null,null,null,null,null,null,null,0]
[null,"",null,null,null,null,null,null,null,null,null,0]
[null,"",null,null,null,null,null,null,null,null,null,0]
[null,"",null,null,null,null,null,null,null,null,null,0]
[null,"",null,null,null,null,null,null,null,null,null,0]
[null,"",null,null,null,null,null,null,null,null,null,0]
[null,"",null,null,null,null,null,null,null,null,null,0]
[null,"",null,null,null,null,null,null,null,null,null,0]
[null,"",null,null,null,null,null,null,null,null,null,0]
[null,"",null,null,null,null,null,null,null,null,null,0]
[null,"",null,null,null,null,null,null,null,null,null,0]
[null,"",null,null,null,null,null,null,null,null,null,0]
[null,"",null,null,null,null,null,null,null,null,null,0]
[null,"",null,null,null,null,null,null,null,null,null,0]
[null,"",null,null,null,null,null,null,null,null,null,0]
[null,"",null,null,null,null,null,null,null,null,null,0]
[null,"",null,null,null,null,null,null,null,null,null,0]
[null,"",null,null,null,null,null,null,null,null,null,0]
[null,"",null,null,null,null,null,null,null,null,null,0]
[null,"",null,null,null,null,null,null,null,null,null,0]
[null,"",null,null,null,null,null,null,null,null,null,0]
[null,"",null,null,null,null,null,null,null,null,null,0]
[null,"",null,null,null,null,null,null,null,null,null,0]
[null,"",null,null,null,null,null,null,null,null,null,0]
[null,"",null,null,null,null,null,null,null,null,null,0]
[null,"",null,null,null,null,null,null,null,null,null,0]
[null,"",null,null,null,null,null,null,null,null,null,0]
[null,"",null,null,null,null,null,null,null,null,null,0]
[null,"",null,null,null,null,null,null,null,null,null,0]
[null,{"$f":"IF(C195>0.005,B194+1,\"\")","v":""},null,null,null,null,null,null,null,null,null,{"$f":"SUM(F195:K195)","v":0}]
[null,"",null,null,null,null,null,null,null,null,null,0]
[null,"",null,null,null,null,null,null,null,null,null,0]
[null,"",null,null,null,null,null,null,null,null,null,0]
[null,"",null,null,null,null,null,null,null,null,null,0]
[null,"",null,null,null,null,null,null,null,null,null,0]
[null,"",null,null,null,null,null,null,null,null,null,0]
[null,"",null,null,null,null,null,null,null,null,null,0]
[null,"",null,null,null,null,null,null,null,null,null,0]
[null,"",null,null,null,null,null,null,null,null,null,0]
[null,"",null,null,null,null,null,null,null,null,null,0]
[null,"",null,null,null,null,null,null,null,null,null,0]
[null,"",null,null,null,null,null,null,null,null,null,0]
[null,"",null,null,null,null,null,null,null,null,null,0]
[null,"",null,null,null,null,null,null,null,null,null,0]
[null,"",null,null,null,null,null,null,null,null,null,0]
[null,"",null,null,null,null,null,null,null,null,null,0]
[null,"",null,null,null,null,null,null,null,null,null,0]
[null,"",null,null,null,null,null,null,null,null,null,0]
[null,"",null,null,null,null,null,null,null,null,null,0]
[null,"",null,null,null,null,null,null,null,null,null,0]
[null,"",null,null,null,null,null,null,null,null,null,0]
[null,"",null,null,null,null,null,null,null,null,null,0]
[null,"",null,null,null,null,null,null,null,null,null,0]
[null,"",null,null,null,null,null,null,null,null,null,0]
[null,"",null,null,null,null,null,null,null,null,null,0]
[null,"",null,null,null,null,null,null,null,null,null,0]
[null,"",null,null,null,null,null,null,null,null,null,0]
[null,"",null,null,null,null,null,null,null,null,null,0]
[null,"",null,null,null,null,null,null,null,null,null,0]
[null,"",null,null,null,null,null,null,null,null,null,0]
[null,"",null,null,null,null,null,null,null,null,null,0]
[null,"",null,null,null,null,null,null,null,null,null,0]
[null,"",null,null,null,null,null,null,null,null,null,0]
[null,"",null,null,null,null,null,null,null,null,null,0]
[null,"",null,null,null,null,null,null,null,null,null,0]
[null,"",null,null,null,null,null,null,null,null,null,0]
[null,"",null,null,null,null,null,null,null,null,null,0]
[null,"",null,null,null,null,null,null,null,null,null,0]
[null,"",null,null,null,null,null,null,null,null,null,0]
[null,"",null,null,null,null,null,null,null,null,null,0]
[null,"",null,null,null,null,null,null,null,null,null,0]
[null,"",null,null,null,null,null,null,null,null,null,0]
[null,"",null,null,null,null,null,null,null,null,null,0]
[null,"",null,null,null,null,null,null,null,null,null,0]
[null,"",null,null,null,null,null,null,null,null,null,0]
[null,"",null,null,null,null,null,null,null,null,null,0]
[null,"",null,null,null,null,null,null,null,null,null,0]
[null,"",null,null,null,null,null,null,null,null,null,0]
[null,"",null,null,null,null,null,null,null,null,null,0]
[null,"",null,null,null,null,null,null,null,null,null,0]
[null,"",null,null,null,null,null,null,null,null,null,0]
[null,"",null,null,null,null,null,null,null,null,null,0]
[null,"",null,null,null,null,null,null,null,null,null,0]
[null,"",null,null,null,null,null,null,null,null,null,0]
[null,"",null,null,null,null,null,null,null,null,null,0]
[null,"",null,null,null,null,null,null,null,null,null,0]
[null,"",null,null,null,null,null,null,null,null,null,0]
[null,"",null,null,null,null,null,null,null,null,null,0]
[null,"",null,null,null,null,null,null,null,null,null,0]
[null,"",null,null,null,null,null,null,null,null,null,0]
[null,"",null,null,null,null,null,null,null,null,null,0]
[null,"",null,null,null,null,null,null,null,null,null,0]
[null,"",null,null,null,null,null,null,null,null,null,0]
[null,{"$f":"IF(C259>0.005,B258+1,\"\")","v":""},null,null,null,null,null,null,null,null,null,{"$f":"SUM(F259:K259)","v":0}]
[null,"",null,null,null,null,null,null,null,null,null,0]
[null,"",null,null,null,null,null,null,null,null,null,0]
[null,"",null,null,null,null,null,null,null,null,null,0]
[null,"",null,null,null,null,null,null,null,null,null,0]
[null,"",null,null,null,null,null,null,null,null,null,0]
[null,"",null,null,null,null,null,null,null,null,null,0]
[null,"",null,null,null,null,null,null,null,null,null,0]
[null,"",null,null,null,null,null,null,null,null,null,0]
[null,"",null,null,null,null,null,null,null,null,null,0]
[null,"",null,null,null,null,null,null,null,null,null,0]
[null,"",null,null,null,null,null,null,null,null,null,0]
[null,"",null,null,null,null,null,null,null,null,null,0]
[null,"",null,null,null,null,null,null,null,null,null,0]
[null,"",null,null,null,null,null,null,null,null,null,0]
[null,"",null,null,null,null,null,null,null,null,null,0]
[null,"",null,null,null,null,null,null,null,null,null,0]
[null,"",null,null,null,null,null,null,null,null,null,0]
[null,"",null,null,null,null,null,null,null,null,null,0]
[null,"",null,null,null,null,null,null,null,null,null,0]
[null,"",null,null,null,null,null,null,null,null,null,0]
[null,"",null,null,null,null,null,null,null,null,null,0]
[null,"",null,null,null,null,null,null,null,null,null,0]
[null,"",null,null,null,null,null,null,null,null,null,0]
[null,"",null,null,null,null,null,null,null,null,null,0]
[null,"",null,null,null,null,null,null,null,null,null,0]
[null,"",null,null,null,null,null,null,null,null,null,0]
[null,"",null,null,null,null,null,null,null,null,null,0]
[null,"",null,null,null,null,null,null,null,null,null,0]
[null,"",null,null,null,null,null,null,null,null,null,0]
[null,"",null,null,null,null,null,null,null,null,null,0]
[null,"",null,null,null,null,null,null,null,null,null,0]
[null,"",null,null,null,null,null,null,null,null,null,0]
[null,"",null,null,null,null,null,null,null,null,null,0]
[null,"",null,null,null,null,null,null,null,null,null,0]
[null,"",null,null,null,null,null,null,null,null,null,0]
[null,"",null,null,null,null,null,null,null,null,null,0]
[null,"",null,null,null,null,null,null,null,null,null,0]
[null,"",null,null,null,null,null,null,null,null,null,0]
[null,"",null,null,null,null,null,null,null,null,null,0]
[null,"",null,null,null,null,null,null,null,null,null,0]
[null,"",null,null,null,null,null,null,null,null,null,0]
[null,"",null,null,null,null,null,null,null,null,null,0]
[null,"",null,null,null,null,null,null,null,null,null,0]
[null,"",null,null,null,null,null,null,null,null,null,0]
[null,"",null,null,null,null,null,null,null,null,null,0]
[null,"",null,null,null,null,null,null,null,null,null,0]
[null,"",null,null,null,null,null,null,null,null,null,0]
[null,"",null,null,null,null,null,null,null,null,null,0]
[null,"",null,null,null,null,null,null,null,null,null,0]
[null,"",null,null,null,null,null,null,null,null,null,0]
[null,"",null,null,null,null,null,null,null,null,null,0]
[null,"",null,null,null,null,null,null,null,null,null,0]
[null,"",null,null,null,null,null,null,null,null,null,0]
[null,"",null,null,null,null,null,null,null,null,null,0]
[null,"",null,null,null,null,null,null,null,null,null,0]
[null,"",null,null,null,null,null,null,null,null,null,0]
[null,"",null,null,null,null,null,null,null,null,null,0]
[null,"",null,null,null,null,null,null,null,null,null,0]
[null,"",null,null,null,null,null,null,null,null,null,0]
[null,"",null,null,null,null,null,null,null,null,null,0]
[null,"",null,null,null,null,null,null,null,null,null,0]
[null,"",null,null,null,null,null,null,null,null,null,0]
[null,"",null,null,null,null,null,null,null,null,null,0]
[null,{"$f":"IF(C323>0.005,B322+1,\"\")","v":""},null,null,null,null,null,null,null,null,null,{"$f":"SUM(F323:K323)","v":0}]
[null,"",null,null,null,null,null,null,null,null,null,0]
[null,"",null,null,null,null,null,null,null,null,null,0]
[null,"",null,null,null,null,null,null,null,null,null,0]
[null,"",null,null,null,null,null,null,null,null,null,0]
[null,"",null,null,null,null,null,null,null,null,null,0]
[null,"",null,null,null,null,null,null,null,null,null,0]
[null,"",null,null,null,null,null,null,null,null,null,0]
[null,"",null,null,null,null,null,null,null,null,null,0]
[null,"",null,null,null,null,null,null,null,null,null,0]
[null,"",null,null,null,null,null,null,null,null,null,0]
[null,"",null,null,null,null,null,null,null,null,null,0]
[null,"",null,null,null,null,null,null,null,null,null,0]
[null,"",null,null,null,null,null,null,null,null,null,0]
[null,"",null,null,null,null,null,null,null,null,null,0]
[null,"",null,null,null,null,null,null,null,null,null,0]
[null,"",null,null,null,null,null,null,null,null,null,0]
[null,"",null,null,null,null,null,null,null,null,null,0]
[null,"",null,null,null,null,null,null,null,null,null,0]
[null,"",null,null,null,null,null,null,null,null,null,0]
[null,"",null,null,null,null,null,null,null,null,null,0]
[null,"",null,null,null,null,null,null,null,null,null,0]
[null,"",null,null,null,null,null,null,null,null,null,0]
[null,"",null,null,null,null,null,null,null,null,null,0]
[null,"",null,null,null,null,null,null,null,null,null,0]
[null,"",null,null,null,null,null,null,null,null,null,0]
[null,"",null,null,null,null,null,null,null,null,null,0]
[null,"",null,null,null,null,null,null,null,null,null,0]
[null,"",null,null,null,null,null,null,null,null,null,0]
[null,"",null,null,null,null,null,null,null,null,null,0]
[null,"",null,null,null,null,null,null,null,null,null,0]
[null,"",null,null,null,null,null,null,null,null,null,0]
[null,"",null,null,null,null,null,null,null,null,null,0]
[null,"",null,null,null,null,null,null,null,null,null,0]
[null,"",null,null,null,null,null,null,null,null,null,0]
[null,"",null,null,null,null,null,null,null,null,null,0]
[null,"",null,null,null,null,null,null,null,null,null,0]
[null,"",null,null,null,null,null,null,null,null,null,0]
[null,"",null,null,null,null,null,null,null,null,null,0]
[null,"",null,null,null,null,null,null,null,null,null,0]
[null,"",null,null,null,null,null,null,null,null,null,0]
[null,"",null,null,null,null,null,null,null,null,null,0]
[null,"",null,null,null,null,null,null,null,null,null,0]
[null,"",null,null,null,null,null,null,null,null,null,0]
[null,"",null,null,null,null,null,null,null,null,null,0]
[null,"",null,null,null,null,null,null,null,null,null,0]
[null,"",null,null,null,null,null,null,null,null,null,0]
[null,"",null,null,null,null,null,null,null,null,null,0]
[null,"",null,null,null,null,null,null,null,null,null,0]
[null,"",null,null,null,null,null,null,null,null,null,0]
[null,"",null,null,null,null,null,null,null,null,null,0]
[null,"",null,null,null,null,null,null,null,null,null,0]
[null,"",null,null,null,null,null,null,null,null,null,0]
[null,"",null,null,null,null,null,null,null,null,null,0]
[null,"",null,null,null,null,null,null,null,null,null,0]
[null,"",null,null,null,null,null,null,null,null,null,0]
[null,"",null,null,null,null,null,null,null,null,null,0]
[null,"",null,null,null,null,null,null,null,null,null,0]
[null,"",null,null,null,null,null,null,null,null,null,0]
[null,"",null,null,null,null,null,null,null,null,null,0]
[null,"",null,null,null,null,null,null,null,null,null,0]
[null,"",null,null,null,null,null,null,null,null,null,0]
[null,"",null,null,null,null,null,null,null,null,null,0]
[null,"",null,null,null,null,null,null,null,null,null,0]
[null,{"$f":"IF(C387>0.005,B386+1,\"\")","v":""},null,null,null,null,null,null,null,null,null,{"$f":"SUM(F387:K387)","v":0}]
[null,"",null,null,null,null,null,null,null,null,null,0]
[null,"",null,null,null,null,null,null,null,null,null,0]
[null,"",null,null,null,null,null,null,null,null,null,0]
[null,"",null,null,null,null,null,null,null,null,null,0]
[null,"",null,null,null,null,null,null,null,null,null,0]
[null,"",null,null,null,null,null,null,null,null,null,0]
[null,"",null,null,null,null,null,null,null,null,null,0]
[null,"",null,null,null,null,null,null,null,null,null,0]
[null,"",null,null,null,null,null,null,null,null,null,0]
[null,"",null,null,null,null,null,null,null,null,null,0]
[null,"",null,null,null,null,null,null,null,null,null,0]
[null,"",null,null,null,null,null,null,null,null,null,0]
[null,"",null,null,null,null,null,null,null,null,null,0]
[null,"",null,null,null,null,null,null,null,null,null,0]
[null,"",null,null,null,null,null,null,null,null,null,0]
[null,"",null,null,null,null,null,null,null,null,null,0]
[null,"",null,null,null,null,null,null,null,null,null,0]
[null,"",null,null,null,null,null,null,null,null,null,0]
[null,"",null,null,null,null,null,null,null,null,null,0]
[null,"",null,null,null,null,null,null,null,null,null,0]
[null,"",null,null,null,null,null,null,null,null,null,0]
[null,"",null,null,null,null,null,null,null,null,null,0]
[null,"",null,null,null,null,null,null,null,null,null,0]
[null,"",null,null,null,null,null,null,null,null,null,0]
[null,"",null,null,null,null,null,null,null,null,null,0]
[null,"",null,null,null,null,null,null,null,null,null,0]
[null,"",null,null,null,null,null,null,null,null,null,0]
[null,"",null,null,null,null,null,null,null,null,null,0]
[null,"",null,null,null,null,null,null,null,null,null,0]
[null,"",null,null,null,null,null,null,null,null,null,0]
[null,"",null,null,null,null,null,null,null,null,null,0]
[null,"",null,null,null,null,null,null,null,null,null,0]
[null,"",null,null,null,null,null,null,null,null,null,0]
[null,"",null,null,null,null,null,null,null,null,null,0]
[null,"",null,null,null,null,null,null,null,null,null,0]
[null,"",null,null,null,null,null,null,null,null,null,0]
[null,"",null,null,null,null,null,null,null,null,null,0]
[null,"",null,null,null,null,null,null,null,null,null,0]
[null,"",null,null,null,null,null,null,null,null,null,0]
[null,"",null,null,null,null,null,null,null,null,null,0]
[null,"",null,null,null,null,null,null,null,null,null,0]
[null,"",null,null,null,null,null,null,null,null,null,0]
[null,"",null,null,null,null,null,null,null,null,null,0]
[null,"",null,null,null,null,null,null,null,null,null,0]
[null,"",null,null,null,null,null,null,null,null,null,0]
[null,"",null,null,null,null,null,null,null,null,null,0]
[null,"",null,null,null,null,null,null,null,null,null,0]
[null,"",null,null,null,null,null,null,null,null,null,0]
[null,"",null,null,null,null,null,null,null,null,null,0]
[null,"",null,null,null,null,null,null,null,null,null,0]
[null,"",null,null,null,null,null,null,null,null,null,0]
[null,"",null,null,null,null,null,null,null,null,null,0]
[null,"",null,null,null,null,null,null,null,null,null,0]
[null,"",null,null,null,null,null,null,null,null,null,0]
[null,"",null,null,null,null,null,null,null,null,null,0]
[null,"",null,null,null,null,null,null,null,null,null,0]
[null,"",null,null,null,null,null,null,null,null,null,0]
[null,"",null,null,null,null,null,null,null,null,null,0]
[null,"",null,null,null,null,null,null,null,null,null,0]
[null,"",null,null,null,null,null,null,null,null,null,0]
[null,"",null,null,null,null,null,null,null,null,null,0]
[null,"",null,null,null,null,null,null,null,null,null,0]
[null,"",null,null,null,null,null,null,null,null,null,0]
[null,{"$f":"IF(C451>0.005,B450+1,\"\")","v":""},null,null,null,null,null,null,null,null,null,{"$f":"SUM(F451:K451)","v":0}]
[null,"",null,null,null,null,null,null,null,null,null,0]
[null,"",null,null,null,null,null,null,null,null,null,0]
[null,"",null,null,null,null,null,null,null,null,null,0]
[null,"",null,null,null,null,null,null,null,null,null,0]
[null,"",null,null,null,null,null,null,null,null,null,0]
[null,"",null,null,null,null,null,null,null,null,null,0]
[null,"",null,null,null,null,null,null,null,null,null,0]
[null,"",null,null,null,null,null,null,null,null,null,0]
[null,"",null,null,null,null,null,null,null,null,null,0]
[null,"",null,null,null,null,null,null,null,null,null,0]
[null,"",null,null,null,null,null,null,null,null,null,0]
[null,"",null,null,null,null,null,null,null,null,null,0]
[null,"",null,null,null,null,null,null,null,null,null,0]
[null,"",null,null,null,null,null,null,null,null,null,0]
[null,"",null,null,null,null,null,null,null,null,null,0]
[null,"",null,null,null,null,null,null,null,null,null,0]
[null,"",null,null,null,null,null,null,null,null,null,0]
[null,"",null,null,null,null,null,null,null,null,null,0]
[null,"",null,null,null,null,null,null,null,null,null,0]
[null,"",null,null,null,null,null,null,null,null,null,0]
[null,"",null,null,null,null,null,null,null,null,null,0]
[null,"",null,null,null,null,null,null,null,null,null,0]
[null,"",null,null,null,null,null,null,null,null,null,0]
[null,"",null,null,null,null,null,null,null,null,null,0]
[null,"",null,null,null,null,null,null,null,null,null,0]
[null,"",null,null,null,null,null,null,null,null,null,0]
[null,"",null,null,null,null,null,null,null,null,null,0]
[null,"",null,null,null,null,null,null,null,null,null,0]
[null,"",null,null,null,null,null,null,null,null,null,0]
[null,"",null,null,null,null,null,null,null,null,null,0]
[null,"",null,null,null,null,null,null,null,null,null,0]
[null,"",null,null,null,null,null,null,null,null,null,0]
[null,"",null,null,null,null,null,null,null,null,null,0]
[null,"",null,null,null,null,null,null,null,null,null,0]
[null,"",null,null,null,null,null,null,null,null,null,0]
[null,"",null,null,null,null,null,null,null,null,null,0]
[null,"",null,null,null,null,null,null,null,null,null,0]
[null,"",null,null,null,null,null,null,null,null,null,0]
[null,"",null,null,null,null,null,null,null,null,null,0]
[null,"",null,null,null,null,null,null,null,null,null,0]
[null,"",null,null,null,null,null,null,null,null,null,0]
[null,"",null,null,null,null,null,null,null,null,null,0]
[null,"",null,null,null,null,null,null,null,null,null,0]
[null,"",null,null,null,null,null,null,null,null,null,0]
[null,"",null,null,null,null,null,null,null,null,null,0]
[null,"",null,null,null,null,null,null,null,null,null,0]
[null,"",null,null,null,null,null,null,null,null,null,0]
[null,"",null,null,null,null,null,null,null,null,null,0]
[null,"",null,null,null,null,null,null,null,null,null,0]
[null,"",null,null,null,null,null,null,null,null,null,0]
[null,"",null,null,null,null,null,null,null,null,null,0]
[null,"",null,null,null,null,null,null,null,null,null,0]
[null,"",null,null,null,null,null,null,null,null,null,0]
[null,"",null,null,null,null,null,null,null,null,null,0]
[null,"",null,null,null,null,null,null,null,null,null,0]
[null,"",null,null,null,null,null,null,null,null,null,0]
[null,"",null,null,null,null,null,null,null,null,null,0]
[null,"",null,null,null,null,null,null,null,null,null,0]
[null,"",null,null,null,null,null,null,null,null,null,0]
[null,"",null,null,null,null,null,null,null,null,null,0]
[null,"",null,null,null,null,null,null,null,null,null,0]
[null,"",null,null,null,null,null,null,null,null,null,0]
[null,"",null,null,null,null,null,null,null,null,null,0]
[null,{"$f":"IF(C515>0.005,B514+1,\"\")","v":""},null,null,null,null,null,null,null,null,null,{"$f":"SUM(F515:K515)","v":0}]
[null,"",null,null,null,null,null,null,null,null,null,0]
[null,"",null,null,null,null,null,null,null,null,null,0]
[null,"",null,null,null,null,null,null,null,null,null,0]
[null,"",null,null,null,null,null,null,null,null,null,0]
[null,"",null,null,null,null,null,null,null,null,null,0]
[null,"",null,null,null,null,null,null,null,null,null,0]
[null,"",null,null,null,null,null,null,null,null,null,0]
[null,"",null,null,null,null,null,null,null,null,null,0]
[null,"",null,null,null,null,null,null,null,null,null,0]
[null,"",null,null,null,null,null,null,null,null,null,0]
[null,"",null,null,null,null,null,null,null,null,null,0]
[null,"",null,null,null,null,null,null,null,null,null,0]
[null,"",null,null,null,null,null,null,null,null,null,0]
[null,"",null,null,null,null,null,null,null,null,null,0]
[null,"",null,null,null,null,null,null,null,null,null,0]
[null,"",null,null,null,null,null,null,null,null,null,0]
[null,"",null,null,null,null,null,null,null,null,null,0]
[null,"",null,null,null,null,null,null,null,null,null,0]
[null,"",null,null,null,null,null,null,null,null,null,0]
[null,"",null,null,null,null,null,null,null,null,null,0]
[null,"",null,null,null,null,null,null,null,null,null,0]
[null,"",null,null,null,null,null,null,null,null,null,0]
[null,"",null,null,null,null,null,null,null,null,null,0]
[null,"",null,null,null,null,null,null,null,null,null,0]
[null,"",null,null,null,null,null,null,null,null,null,0]
[null,"",null,null,null,null,null,null,null,null,null,0]
[null,"",null,null,null,null,null,null,null,null,null,0]
[null,"",null,null,null,null,null,null,null,null,null,0]
[null,"",null,null,null,null,null,null,null,null,null,0]
[null,"",null,null,null,null,null,null,null,null,null,0]
[null,"",null,null,null,null,null,null,null,null,null,0]
[null,"",null,null,null,null,null,null,null,null,null,0]
[null,"",null,null,null,null,null,null,null,null,null,0]
[null,"",null,null,null,null,null,null,null,null,null,0]
[null,"",null,null,null,null,null,null,null,null,null,0]
[null,"",null,null,null,null,null,null,null,null,null,0]
[null,"",null,null,null,null,null,null,null,null,null,0]
[null,"",null,null,null,null,null,null,null,null,null,0]
[null,"",null,null,null,null,null,null,null,null,null,0]
[null,"",null,null,null,null,null,null,null,null,null,0]
[null,"",null,null,null,null,null,null,null,null,null,0]
[null,"",null,null,null,null,null,null,null,null,null,0]
[null,"",null,null,null,null,null,null,null,null,null,0]
[null,"",null,null,null,null,null,null,null,null,null,0]
[null,"",null,null,null,null,null,null,null,null,null,0]
[null,"",null,null,null,null,null,null,null,null,null,0]
[null,"",null,null,null,null,null,null,null,null,null,0]
[null,"",null,null,null,null,null,null,null,null,null,0]
[null,"",null,null,null,null,null,null,null,null,null,0]
[null,"",null,null,null,null,null,null,null,null,null,0]
[null,"",null,null,null,null,null,null,null,null,null,0]
[null,"",null,null,null,null,null,null,null,null,null,0]
[null,"",null,null,null,null,null,null,null,null,null,0]
[null,"",null,null,null,null,null,null,null,null,null,0]
[null,"",null,null,null,null,null,null,null,null,null,0]
[null,"",null,null,null,null,null,null,null,null,null,0]
[null,"",null,null,null,null,null,null,null,null,null,0]
[null,"",null,null,null,null,null,null,null,null,null,0]
[null,"",null,null,null,null,null,null,null,null,null,0]
[null,"",null,null,null,null,null,null,null,null,null,0]
[null,"",null,null,null,null,null,null,null,null,null,0]
[null,"",null,null,null,null,null,null,null,null,null,0]
[null,"",null,null,null,null,null,null,null,null,null,0]
[null,{"$f":"IF(C579>0.005,B578+1,\"\")","v":""},null,null,null,null,null,null,null,null,null,{"$f":"SUM(F579:K579)","v":0}]
[null,"",null,null,null,null,null,null,null,null,null,0]
[null,"",null,null,null,null,null,null,null,null,null,0]
[null,"",null,null,null,null,null,null,null,null,null,0]
[null,"",null,null,null,null,null,null,null,null,null,0]
[null,"",null,null,null,null,null,null,null,null,null,0]
[null,"",null,null,null,null,null,null,null,null,null,0]
[null,"",null,null,null,null,null,null,null,null,null,0]
[null,"",null,null,null,null,null,null,null,null,null,0]
[null,"",null,null,null,null,null,null,null,null,null,0]
[null,"",null,null,null,null,null,null,null,null,null,0]
[null,"",null,null,null,null,null,null,null,null,null,0]
[null,"",null,null,null,null,null,null,null,null,null,0]
[null,"",null,null,null,null,null,null,null,null,null,0]
[null,"",null,null,null,null,null,null,null,null,null,0]
[null,"",null,null,null,null,null,null,null,null,null,0]
[null,"",null,null,null,null,null,null,null,null,null,0]
[null,"",null,null,null,null,null,null,null,null,null,0]
[null,"",null,null,null,null,null,null,null,null,null,0]
[null,"",null,null,null,null,null,null,null,null,null,0]
[null,"",null,null,null,null,null,null,null,null,null,{"$f":"SUM(L2:L598)","v":0}]
[null,{"$f":"SUBTOTAL(3,$C$3:C600)","v":0},null,null,null,null,null,null,null,null,null,{"$f":"SUM(F600:K600)","v":0}]